Workbook

Sheet Income Details
C3: FORM | E3: ITR-1 SAHAJ | J3: INDIAN INCOME TAX RETURN | AP3: Assessment Year 2025-26
J4: [For individuals being a resident (other than not ordinarily resident) having total income up to Rs.50 lakh and having Income from Salaries, one house property, other sources (Interest etc.), long-term capital gains under section 112A upto Rs. 1.25 lakh, and agricultural income up to Rs.5 thousand] [Not for an individual who is either Director in a company or has invested in unlisted equity shares or in cases where TDS has been deducted u/s 194N or if income-tax is deferred on ESOP or has assets (including financial interest in any entity) located outside India] (Refer instructions for eligibility)
C6: PART A GENERAL INFORMATION | E6: First Name | O6: Middle Name | Y6: Last Name | AN6: PAN | BG6: Residential Status
E7: SHRINATH | O7: S. | Y7: MAKHIJA | AN7: AANPM6521G | BK7: =calculateAge(sheet1.DOB) -> 54
E8: Aadhaar Number [12 Digits] | BC8: N | BK8: =IF(BK7<=59,1,0) -> 1 | BL8: =IF(BK7>=80,1,0) -> 0
E9: Aadhaar Enrolment Id [Note: If Aadhaar Number is not yet allotted, then Aadhaar Enrolment Id is required. All the digits in enrolment ID & Date and time of enrolment to be entered continuously. For example Enrolment ID: 1234/12345/12345 & Date/Time of enrolment: 01/12/2016 11:50:22 to be entered as 1234123451234501122016115022] | BK9: =IF(BK7<=59,1,0) -> 1
E10: Flat / Door / Block No. | O10: Name of Premises / Building / Village | AN10: Date of Birth (DD/MM/YYYY) | BH10: TOTAL_INCOME | BI10: =MAX(IncD.GrossTotIncome,0) -> 4155650 | BK10: =IF( OR(MID(SELECT80D,1,1) ="(", MID(SELECT80D,1,1)=""),0,MID(SELECT80D,1,1)) -> 0
E11: 44-98 | O11: JATIN COMPLEX | AN11: 24/11/1970 | BG11: =IF(AND(INT(MID(sheet1.DOB,4,2))=4,INT(MID(sheet1.DOB,1,2))=1),BK11,BK11) -> 0 | BH11: IncdSection80D | BI11: =MIN(MIN(IF(INT(MID(sheet1.DOB,7,4))<1960,IF(MID(sheet1.ResidentialStatus1,1,3)="NRI",BK11,BK11),IF(INT(MID(sheet1.DOB,7,4))=1960, IF(INT(MID(sheet1.DOB,4,2))<4,IF(MID(sheet1.ResidentialStatus1,1,3)="NRI",BK11,BK11),BG11),BK11)),VALUE(IncD.Section80D)),TOTAL_INCOME) -> 0 | BK11: =IF(OR(BK10="1",BK10="3"),25000,IF(OR(BK10="2",BK10="4"),IF(AND(BK10="2",BK8=1),50000,50000),IF(BK10="5",50000,IF(BK10="6",75000,IF(BK10="7",IF(BK9=1,75000,100000),0))))) -> 0
E12: Road / Street/ Post Office | W12: Area / Locality | AN12: Town/ City/ District | BG12: =IF(AND(INT(MID(sheet1.DOB,4,2))=4,INT(MID(sheet1.DOB,1,2))=1),BI14,BI14) -> 0 | BH12: IncdSection80DB | BI12: =MIN(MIN(IF(INT(MID(sheet1.DOB,7,4))<1960,IF(MID(sheet1.ResidentialStatus1,1,3)="NRI",BI14,BI14),IF(INT(MID(sheet1.DOB,7,4))=1960, IF(INT(MID(sheet1.DOB,4,2))<4,IF(MID(sheet1.ResidentialStatus1,1,3)="NRI",BI14,BI14),BG12),BI14)),VALUE(IncD.Section80DB)),TOTAL_INCOME) -> 0
E13: 24th FLOOR | W13: BANDRA WEST | AN13: MUMBAI | BI13: =IF( OR(MID(SELECT80DB,1,1) ="(", MID(SELECT80DB,1,1)=""),0,MID(SELECT80DB,1,1)) -> 0
E14: State | W14: Country/ Region | AA14: PIN Code | AE14: No ZIP Code | AN14: ZIP Code | AP14: Nature of Employment | BI14: =IF(BI13="3",100000,IF(BI13="1",50000,IF(BI13="2",50000,0))) -> 0 | BM14: =IF(BK7<59,1,IF(AND(BK7>=59,BK7<=79),2,3)) -> 1
E15: 19-MAHARASHTRA | W15: 91-INDIA | AA15: 400050 | AP15: Others | BM15: =IF( OR(MID(SELECT80DDS,1,1) ="(", MID(SELECT80DDS,1,1)=""),0,MID(SELECT80DDS,1,1)) -> 0
E16: Do you wish to exercise the option u/s 115BAC(6) of Opting out of new tax regime ? (default is “No”) 1. By selecting "No" option your income and tax computation shall be as per “NEW TAX REGIME” 2. By selecting "Yes" option your income and tax computation shall be as per “OLD TAX REGIME” Note- For Opting out, option should be exercised along with the return of income filed u/s 139(1).
E17: To estimate your total tax and decide as to which tax regime is beneficial, you may use income tax calculator
E18: Are you filing return of income under Seventh proviso to section 139(1) but otherwise not required to furnish return of income? If yes, please furnish following information [Note: To be filled only if a person is not required to furnish a return of income under section 139(1) but filing return of income due to fulfilling one or more conditions mentioned in the seventh proviso to section 139(1)] | AN18: No
E19: Have you deposited amount or aggregate of amounts exceeding Rs. 1 Crore in one or more current account during the previous year?
E20: Have you incurred expenditure of an amount or aggregate of amount exceeding Rs. 2 lakhs for travel to a foreign country for yourself or for any other person?
E21: Have you incurred expenditure of amount or aggregate of amount exceeding Rs. 1 lakh on consumption of electricity during the previous year?
E22: Are you required to file a return as per other conditions prescribed under clause (iv) of seventh proviso to section 139(1) (If yes,please furnish following information)
E23: The total sales, turnover or gross receipts, as the case may be, of the person in the business exceeds sixty lakh rupees during the previous year; or
E24: the total gross receipts of the person in profession exceeds ten lakh rupees during the previous year; or
E25: the aggregate of tax deducted at source and tax collected at source during the previous year, in the case of the person, is twenty-five thousand rupees or more (fifty thousand for resident senior citizen); or
E26: The deposit in one or more savings bank account of the person, in aggregate, is fifty lakh rupees or more, in the previous year
E27: Email Address | P27: Mobile Number | AC27: Filed u/s Filed in response to notice u/s | BG27: =IF(AND(INT(MID(sheet1.DOB,4,2))=4,INT(MID(sheet1.DOB,1,2))=1),BM27,BM27) -> FALSE | BH27: IncdSection80DDB | BI27: =MIN(MIN(BM27,VALUE(IncD.Section80DDB)),TOTAL_INCOME) -> 0 | BM27: =IF(BM15="1",40000,IF(BM15="2",100000)) -> FALSE | BN27: =IF(OR(BM15="1",BM14=1),40000,IF(OR(BM15="2",BM14=2),60000,IF(OR(BM15="3",BM14=3),80000,0))) -> 40000
E28: shrinaths1980@gmail.com | P28: 91 | Q28: 9654667702 | AC28: 139(1)-On or before due date | BD28: 11 - 139(1)-On or before due date
E29: "Tax payer is required to select section as "139(8A) in Part A General" while filing corrected return in response to notice u/s 139(9) issued against the ITR filed u/s 139(8A) and it is not mandatory to provide DIN and Date of Notice details. Please refer FAQs in below path : " https://www.incometax.gov.in/iec/foportal/help/response-to-defective-notice%20-against-updated-return/faqs"
E30: If revised/defective then enter
E31: Receipt Number | AA31: Date of filing of original return
E32: If filed in response to notice u/s 139(9)/142(1)/148/153C or order u/s 119(2)(b)-
E33: Unique Number/ Document Identification Number (DIN) | AA33: Date of such Notice or Order
E34: Due Date of filing of ITR | P34: 31/07/2025
C35: SALARY / PENSION | F35: i | G35: Gross Salary (ia + ib + ic + id + ie) | AO35: =MAX(0,(IncD.Allowances+IncD.Perquisites+IncD.Profits+IncomeNotified89A+IncomeNotifiedOther89A)) -> 3239500
G36: a | I36: Salary as per section 17(1) | AO36: 3142500 | AZ36: =COUNTIF(Others.NOI_1,"10(10B) First proviso - Compensation limit notified by CG in the Official Gazette") -> 0 | BA36: =COUNTIF(Others.NOI_2,"Interest accrued on contributions to provident fund to the extent taxable as per first proviso to section 10(11)") -> 0 | BK36: =IncD.Allowances+IncD.Perquisites+IncD.Profits -> 3239500 | BL36: SIT-86618 (Due to this SIT we have changed the condition
G37: b | I37: Value of perquisites as per section 17(2) | AO37: 97000 | AZ37: =COUNTIF(Others.NOI_1,"10(10B) Second proviso - Compensation under scheme approved by the Central Government") -> 0 | BA37: =COUNTIF(Others.NOI_2,"Interest accrued on contributions to provident fund to the extent taxable as per second proviso to section 10(11)") -> 0
G38: c | I38: Profit in lieu of salary as per section 17(3) | AZ38: =COUNTIF(Others.NOI_1,"Sec 10(10C)- Amount received/receivable on voluntary retirement or termination of service") -> 0 | BA38: =COUNTIF(Others.NOI_2,"Interest accrued on contributions to provident fund to the extent taxable as per first proviso to section 10(12)") -> 0 | BB38: =Sheet1.HRA -> 0
G39: d | I39: Income from retirement benefit account maintained in a notified country u/s 89A | AO39: =IncomeNotified89A_AmountUS+IncomeNotified89A_AmountUK+IncomeNotified89A_AmountCan -> 0 | AZ39: =SUM(AZ36:AZ38) -> 0 | BA39: =COUNTIF(Others.NOI_2,"Interest accrued on contributions to provident fund to the extent taxable as per second proviso to section 10(12)") -> 0 | BB39: =SUMIF(Others.NOI_1,"Sec 10(13A)-Allowance to meet expenditure incurred on house rent",Others.Amount_1) -> 0 | BC39: This is old formula of 10(13A)
I40: Country | AO40: Amount
I41: United States of America
I42: United Kingdom of Great Britain and Northern Ireland
I43: Canada
G44: e | I44: Income from retirement benefit account maintained in a country other than notified country u/s 89A | BA44: =SUM(BA36:BA39) -> 0
F45: ii | G45: Less : Allowances to the extent exempt u/s 10 (Ensure that it is included in salary income u/s 17(1)/17(2)/17(3) ) | AO45: =SUM(Others.Amount_1,Sheet1.HRA) -> 42000
G46: Sl.No. | J46: Nature of Exempt Allowance | Z46: Description ( If 'Any Other' selected) | AO46: Amount
E47: 1 | G47: 1 | J47: Section 10(14)(i) - Allowances referred in sub-clauses (a) to (c) of sub-rule (1) in Rule 2BB | Z47: Not Applicable | AO47: 42000
G48: =G47+1 -> 2 | J48: (Select)
G49: =G48+1 -> 3 | J49: (Select)
G50: 4 | J50: (Select)
F52: Sec 10(13A)-Allowance to meet expenditure incurred on house rent | AO52: =Sch10of13A_ElgiblExmptAllwnce10of13A -> 0
F53: iia | G53: Less: Income claimed for relief from taxation u/s 89A
F54: iii | G54: Net Salary (i – ii - iia) | AO54: =MAX(0,IncD.IncomeFromSal-MIN(Less_allowance,IncD.Allowances+IncD.Perquisites+IncD.Profits)-Increliefus89A) -> 3197500
F55: iv | G55: Deductions u/s 16 (iva + ivb + ivc) | AO55: =MAX(0,(IncD.Deduction16ia+IncD.Deduction16+IncD.Deduction16ic)) -> 75000
G56: a | I56: Standard Deduction u/s 16(ia) | AO56: =IF(BacValue=1,MIN(Net_salary,75000),IF(BacValue=2,MIN(Net_salary,50000),0)) -> 75000 | BB56: =IF(BacValue=1,MIN(Net_salary,75000),IF(BacValue=2,MIN(Net_salary,50000),0)) -> 75000
G57: b | I57: Entertainment Allowance u/s 16(ii) | AO57: 0
G58: c | I58: Professional Tax u/s 16(iii) | AO58: 0
F59: v | G59: Income chargeable under the Head ‘Salaries’ (iii-iv) | AO59: =MAX(0,(Net_salary-Deductions_16)) -> 3122500
C60: HOUSE PROPERTY | E60: 2 | F60: Type of House Property | AO60: Self Occupied
F61: i | G61: Gross rent received/ receivable/ lettable value during the year
F62: ii | G62: Tax paid to local authorities
F63: iii | G63: Annual Value (i – ii) | AO63: =MAX(IncD.GrossRentRecieved-IncD.TaxPaidLocalAuthorities,0) -> 0
F64: iv | G64: 30% of Annual Value (30% * iii) | AO64: =ROUND(IF(OR(IncD.AnnualValue=0,IncD.AnnualValue<0),0,0.3*IncD.AnnualValue),0) -> 0
F65: v | G65: Interest payable on borrowed capital | AO65: =IF(AND(BacValue=1,MID(IncD.TypeOfHP,1,1)="S"),0,IF(AND(BacValue=2,MID(IncD.TypeOfHP,1,1)="S"),IF(TotAmt.24b>200000,200000,MIN(200000,TotAmt.24b)),IF(AND(MID(IncD.TypeOfHP,1,1)<>"S",IncD.GrossRentRecieved=0),0,TotAmt.24b))) -> 0
F66: vi | G66: Arrears/Unrealised Rent received during the year Less 30%
F67: vii | G67: Income chargeable under the head ‘House Property’ (iii – iv – v )+ vi Note : (If loss, put the figure in negative) Maximum Loss from House property that can be set-off in computing income of this year is INR 2,00,000. To avail the benefit of carry forward and set off of loss, please use ITR-2" | AO67: =MAX(-200000,(IncD.AnnualValue-IncD.StandardDeduction-IncD.InterestBorrowedCapital+IncD.Arrears)) -> 0
F68: Income from Other Sources | AO68: =MAX(0,(SUM(IncD.Div,SUM(Others.Amount_2),OSIncomeNotifiedOther89A,OSIncomeNotified89A)-IncD.LessDeduction57-OSIncreliefus89A)) -> 1033150 | BB68: =COUNTIF(Others.NOI_2,"Family pension") -> 0 | BC68: =SUMIF(Others.NOI_2,"Family pension",Others.Amount_2) -> 0
G69: Sl.No. | J69: Nature of Income | Z69: Description ( If 'Any Other' selected) | AO69: Amount
E70: 3 | G70: 1 | J70: Interest from Savings Bank Account | Z70: Not Applicable | AO70: 28400 | BB70: =IF(MID(J70,1,1)="F",AO70,0) -> 0 | BC70: =IF(MID(J70,1,1)="F",1,0) -> 0 | BD70: =IF(MID(J70,1,15)="Interest from S",AO70,0) -> 28400 | BE70: =IF(MID(J70,1,15)="Interest from S",AO70,0) -> 28400 | BF70: =IF(MID(J70,1,15)="Interest from D",AO70,0) -> 0
G71: =G70+1 -> 2 | J71: Interest from Deposit (Bank/Post Office/Cooperative Society) | Z71: Not Applicable | AO71: 1000000 | BB71: =IF(MID(J71,1,1)="F",AO71,0) -> 0 | BC71: =IF(MID(J71,1,1)="F",1,0) -> 0 | BD71: =IF(MID(J71,1,15)="Interest from S",AO71,0) -> 0 | BE71: =IF(MID(J71,1,15)="Interest from S",AO71,0) -> 0 | BF71: =IF(MID(J71,1,15)="Interest from D",AO71,0) -> 1000000
G72: =G71+1 -> 3 | J72: Any Other | Z72: Dividend | AO72: 4750 | BB72: =IF(MID(J72,1,1)="F",AO72,0) -> 0 | BC72: =IF(MID(J72,1,1)="F",1,0) -> 0 | BD72: =IF(MID(J72,1,15)="Interest from S",AO72,0) -> 0 | BE72: =IF(MID(J72,1,15)="Interest from S",AO72,0) -> 0 | BF72: =IF(MID(J72,1,15)="Interest from D",AO72,0) -> 0
G73: =G72+1 -> 4 | BB73: =IF(MID(J73,1,1)="F",AO73,0) -> 0 | BC73: =IF(MID(J73,1,1)="F",1,0) -> 0 | BD73: =IF(MID(J73,1,15)="Interest from S",AO73,0) -> 0 | BE73: =IF(MID(J73,1,15)="Interest from S",AO73,0) -> 0 | BF73: =IF(MID(J73,1,15)="Interest from D",AO73,0) -> 0
F75: Income from retirement benefit account maintained in a country other than a country notified u/s 89A
F76: Income from retirement benefit account maintained in a notified country u/s 89A (1 + 2 + 3) | AO76: =OSIncomeNotified89A_AmountUS+OSIncomeNotified89A_AmountUK+OSIncomeNotified89A_AmountCan -> 0
F77: 1 | G77: United States of America
F78: 2 | G78: United Kingdom of Great Britain and Northern Ireland
F79: 3 | G79: Canada
F80: Income from retirement benefit account maintained in a notified country u/s 89A (Quarterly breakup of Taxable Portion)
F81: i | G81: Upto 15-Jun-2024 | AO81: 0 | BB81: =IncD_q1OS1+IncD_q2OS1+IncD_q3OS1+IncD_q4OS1+IncD_q5OS1 -> 0
F82: ii | G82: From 16-Jun-2024 to 15-Sep-2024 | BB82: =OSIncomeNotified89A-OSIncreliefus89A -> 0
F83: iii | G83: From 16-Sep-2024 to 15-Dec-2024
F84: iv | G84: From 16-Dec-2024 to 15-Mar-2025
F85: v | G85: From 16-Mar-2025 to 31-Mar-2025
F86: Dividend (i+ii+iii+iv+v) | AO86: 0
F87: i | G87: Upto 15-Jun-2024 | AO87: 0 | BQ87: =MIN(IncD.TotalIncome,IncD_q1div+IncD_q1OS1)+MAX(0,IncD.TotalIncome-IncD.Div-IncD_qOS1) -> 4155650 | BR87: 936695
F88: ii | G88: From 16-Jun-2024 to 15-Sep-2024 | AO88: 0 | BQ88: =MIN(IncD.TotalIncome-MAX(IncD_q1div+IncD_q1OS1-IncD.TotalChapVIADeductions,0),IncD_q2div+IncD_q2OS1)+IncD.Q1Inc -> 4155650 | BR88: 936695
F89: iii | G89: From 16-Sep-2024 to 15-Dec-2024 | AO89: 0 | BQ89: =MIN(IncD.TotalIncome-MAX(IncD_q1div+IncD_q2div+IncD_q1OS1+IncD_q2OS1-IncD.TotalChapVIADeductions,0),IncD_q3div+IncD_q3OS1)+IncD.Q2Inc -> 4155650 | BR89: 936695
F90: iv | G90: From 16-Dec-2024 to 15-Mar-2025 | AO90: 0 | BQ90: =MIN(IncD.TotalIncome-MAX(IncD_q1div+IncD_q2div+IncD_q3div+IncD_q1OS1+IncD_q2OS1+IncD_q3OS1-IncD.TotalChapVIADeductions,0),IncD_q4div+IncD_q4OS1)+ IncD.Q3Inc -> 4155650 | BR90: 936695
F91: v | G91: From 16-Mar-2025 to 31-Mar-2025 | AO91: 0 | BQ91: =MIN(IncD.TotalIncome-MAX(IncD_q1div+IncD_q2div+IncD_q3div+IncD_q4div+IncD_q1OS1+IncD_q2OS1+IncD_q3OS1+IncD_q4OS1-IncD.TotalChapVIADeductions,0),IncD_q5div+IncD_q5OS1)+ IncD.Q4Inc -> 4155650 | BR91: 0
F92: Less : Income claimed for relief from taxation u/s 89A
F93: Less: Deduction u/s 57(iia) (In case of family pension only) | AO93: 0 | AZ93: =IF(BacValue=1,ROUND(MIN(25000,((1/3)*TotFamilyPension)),0),IF(BacValue=2,ROUND(MIN(15000,((1/3)*TotFamilyPension)),0),0)) -> 0 | BA93: =IF(BacValue=1,ROUND(MIN(25000,((1/3)*TotFamilyPension)),0),IF(BacValue=2,ROUND(MIN(15000,((1/3)*TotFamilyPension)),0),0)) -> 0 | BD93: =SUM(Others.Amount_2_2) -> 0
E94: 4 | F94: Gross Total Income (1+2+3) (If loss, put the figure in negative) Note: To avail the benefit of carry forward and set off of loss, please use ITR-2 | AO94: =SUM(IncD.TotalHeadSalaries,IF(BacValue=1,MAX(0,IncD.IncomeHeadHouseProperty),IncD.IncomeHeadHouseProperty),IncD.IncomeFromOS) -> 4155650 | AX94: For deduction we're using GTI which didn't included 112A | BD94: =SUM(Others.Amount_2_1) -> 0 | BK94: =IF(IncD.TypeOfHP="Self Occupied",IncD.IncomeFromHP,(IF(IncD.TypeOfHP="Let Out",IF(ISBLANK(IncD.IncomeFromHP),0,MAX(-200000,IncD.IncomeFromHP)),0))) -> 
E95: 4 | F95: Gross Total Income (1+2+3+7a(iii)) (If loss, put the figure in negative) Note: To avail the benefit of carry forward and set off of loss, please use ITR-2 | AO95: =SUM(IncD.TotalHeadSalaries,IF(BacValue=1,MAX(0,IncD.IncomeHeadHouseProperty),IncD.IncomeHeadHouseProperty),IncD.IncomeFromOS,IncD.CG_LTCG) -> 4155650
C96: DEDUCTIONS | E96: 5 | F96: Part C – Deductions and Taxable Total Income | AB96: Amount | AN96: System Calculated
F97: Please note that the deduction in respect of the investment/ deposit/ payments for the period 01-04-2020 to 31-07-2020 cannot be claimed again, if already claimed in the AY 2020-21)
F98: a | H98: 80C - Life insurance premium, deferred annuity, contributions to provident fund, subscription to certain equity shares or debentures, etc. | Y98: 5a | AB98: 0 | AN98: =MIN(MIN(VALUE(IncD.Section80C),150000),TOTAL_INCOME) -> 0 | AO98: 0 | AP98: 0 | AQ98: 0 | AR98: 0 | AS98: 0 | AT98: 0 | AU98: 0 | AV98: 0 | BD98: =SUM(AB98:AM121) -> 0
F99: b | H99: 80CCC - Payment in respect Pension Fund, etc. | Y99: 5b | AB99: 0 | AN99: =IF(MIN(MIN(VALUE(IncD.Section80CCC), MIN(150000,ABS(IncD.GrossTotIncome)),MIN(150000,ABS(IncD.GrossTotIncome)) - IncD.Section80C_Calc),TOTAL_INCOME)>150000,150000,MIN(MIN(VALUE(IncD.Section80CCC), MIN(150000,ABS(IncD.GrossTotIncome)),MIN(150000,ABS(IncD.GrossTotIncome)) - IncD.Section80C_Calc),TOTAL_INCOME)) -> 0 | AO99: 0 | AP99: 0 | AQ99: 0 | AR99: 0 | AS99: 0 | AT99: 0 | AU99: 0 | AV99: 0
F100: c | H100: 80CCD(1) - Contribution to pension scheme of Central Government | Y100: 5c | AB100: 0 | AN100: =IF((MAX(0,MIN(MIN(VALUE(IncD.Section80CCD_SE), ROUND(IF(OR(MID(sheet1.EmployerCategory1,1,1)="S",MID(sheet1.EmployerCategory1,1,1)="C",MID(sheet1.EmployerCategory1,1,2)="Pu",MID(sheet1.EmployerCategory1,1,1)="O"),0.1*VALUE(Net_salary-IncD.Perquisites-IncomeNotified89A-IncomeNotifiedOther89A+Increliefus89A),0.2*VALUE(IncD.GrossTotIncome)),0), 150000 - IncD.Section80C_Calc - IncD.Section80CCC_Calc ),MIN(150000,ABS(IncD.GrossTotIncome) - IncD.Section80C_Calc-IncD.Section80CCC_Calc),TOTAL_INCOME)))>150000,150000,(MAX(0,MIN(MIN(VALUE(IncD.Section80CCD_SE), ROUND(IF(OR(MID(sheet1.EmployerCategory1,1,1)="S",MID(sheet1.EmployerCategory1,1,1)="C",MID(sheet1.EmployerCategory1,1,2)="Pu",MID(sheet1.EmployerCategory1,1,1)="O"),0.1*VALUE(Net_salary-IncD.Perquisites-IncomeNotified89A-IncomeNotifiedOther89A+Increliefus89A),0.2*VALUE(IncD.GrossTotIncome)),0), 150000 - IncD.Section80C_Calc - IncD.Section80CCC_Calc ),MIN(150000,ABS(IncD.GrossTotIncome) - IncD.Section80C_Calc-IncD.Section80CCC_Calc),TOTAL_INCOME)))) -> 0 | AO100: 0 | AP100: 0 | AQ100: 0 | AR100: 0 | AS100: 0 | AT100: 0 | AU100: 0 | AV100: 0
F101: d | H101: 80CCD(1B) - Contribution to pension scheme of Central Government | Y101: 5d | AB101: 0 | AN101: =MIN(VALUE(IncD.Section80CCD1B_SE),50000,TOTAL_INCOME) -> 0 | BA101: =IF(OR(MID(sheet1.EmployerCategory1,1,2)="Pu",MID(sheet1.EmployerCategory1,1,1)="O"),1,IF(OR(MID(sheet1.EmployerCategory1,1,1)="C",MID(sheet1.EmployerCategory1,1,1)="S"),2,0)) -> 1
F102: PRAN of the taxpayer
F103: e | H103: 80CCD(2) - Contribution to pension scheme of Central Government by employer | Y103: 5e | AN103: =IF(BacValue=2,MIN(VALUE(IncD.Section80CCD), IF(BA101=1,ROUND(0.1*MAX(0,(Net_salary-IncD.Perquisites-IncomeNotified89A-IncomeNotifiedOther89A+Increliefus89A)),0), IF(BA101=2,ROUND(0.14*MAX(0,(Net_salary-IncD.Perquisites-IncomeNotified89A-IncomeNotifiedOther89A+Increliefus89A)),0),0)),TOTAL_INCOME),IF(BacValue=1,MIN(VALUE(IncD.Section80CCD), IF(OR(BA101=1,BA101=2),ROUND(0.14*MAX(0,(Net_salary-IncD.Perquisites-IncomeNotified89A-IncomeNotifiedOther89A+Increliefus89A)),0),0),TOTAL_INCOME),0)) -> 0 | AO103: 0 | AP103: 0 | AQ103: 0 | AR103: 0 | AS103: 0 | AT103: 0 | AU103: 0 | AV103: 0
F104: f | H104: 80CCG - Investment made under an equity savings scheme | Y104: 5f | AN104: =MIN( IF(TOTAL_INCOME > 1200000,0,MIN(VALUE(IncD.Section80CCG),25000)),TOTAL_INCOME) -> 0 | AO104: 0
F105: PRAN of the taxpayer
F106: f | H106: 80D-Deduction in respect of Health Insurance premia. (Please fill 80D Schedule. This field is auto-populated from schedule 80D.) | Y106: 5f | AB106: =IF(BacValue=1,0,Eligible_Amount_80D) -> 0 | AN106: =IF(IncD.GrossTotIncome<0,0,IncD.Section80DValue) -> 0
H107: a) Health insurance premium | K107: (Select) | Y107: 5ga | AN107: =MIN(100000,SUM(BD109,IF(ISERROR(IncdSection80DB),0,IncdSection80DB))) -> 0 | BB107: Sum of 80DA and 80DC | BD107: =SUM(IF(ISERROR(IncdSection80D),0,IncdSection80D),Temp80DC) -> 0 | BE107: 80D | BF107: =MIN(100000,SUM(BD109,IF(ISERROR(IncdSection80DB),0,IncdSection80DB))) -> 0
H108: b) Medical expenditure | K108: (Select) | Y108: 5gb | BB108: Combination of 80DA and 80DB | BD108: =IF(AND(MID(SELECT80D,1,1)="1",MID(SELECT80DC,1,1)="1"),1,IF(AND(MID(SELECT80D,1,1)="3",MID(SELECT80DC,1,1)="2"),2,IF(AND(MID(SELECT80D,1,1)="5",MID(SELECT80DC,1,1)="3"),3,IF(AND(MID(SELECT80D,1,1)="6",OR(MID(SELECT80DC,1,1)="1",MID(SELECT80DC,1,1)="2",MID(SELECT80DC,1,1)="3")),4,0)))) -> 0
H109: c) Preventive health check-up | K109: (Select) | Y109: 5gc | BB109: Check and Final Sum of 80DA & 80DC | BD109: =IF(BD108=1,MIN(25000,BD107),IF(BD108=2,MIN(25000,BD107),IF(BD108=3,MIN(50000,BD107),IF(BD108=4,MIN(75000,BD107),BD107)))) -> 0 | BG109: =MID(SELECT80DC,1,1) -> ( | BH109: =MIN(IF(BG109="1",5000,IF(BG109="2",5000,IF(BG109="3",5000,0))),TOTAL_INCOME,IF(IncD.Section80DC="",0,IncD.Section80DC)) -> 0
F110: g | H110: 80DD - Maintenance including medical treatment of a dependent who is a person with disability.(Please fill 80DD Schedule. This field is auto-populated from schedule 80DD.) | Y110: 5g | AB110: =IF(BacValue=1,0,Amtdeduction_80DD) -> 0 | AN110: =IF(BacValue=1,0,IncD.Section80DD) -> 0 | BG110: =MID(Naturedisability_80DD_v1,1,1) ->  | BH110: =IF(BG110="1",75000,IF(BG110="2",125000,0)) -> 0
F111: h | H111: 80DDB - Medical treatment of specified disease | K111: Name of the specified Disease | Y111: 5h | AB111: 0 | AN111: =IF(ISERROR(IncdSection80DD),0,IncdSection80DD) -> 0
H112: (Select) | K112: (Select)
F113: i | H113: 80E - Interest on loan taken for higher education | Y113: 5i | AB113: 0 | AN113: =MIN(VALUE(IncD.Section80E),TOTAL_INCOME) -> 0
F114: j | H114: 80EE - Interest on loan taken for residential house property | Y114: 5j | AB114: 0 | AN114: =MIN(MIN(VALUE(IncD.Section80EE),TOTAL_INCOME),50000) -> 0
F115: k | H115: 80EEA-Deduction in respect of interest on loan taken for certain house property | Y115: 5k | AB115: 0 | AN115: =MIN(MIN(VALUE(IncD.Section80EEA),TOTAL_INCOME),150000) -> 0
F116: l | H116: 80EEB-Deduction in respect of purchase of electric vehicle | Y116: 5l | AB116: 0 | AN116: =MIN(MIN(VALUE(IncD.Section80EEB),TOTAL_INCOME),150000) -> 0
F117: m | H117: 80G - Donations to certain funds, charitable institutions, etc. (Please fill 80G Schedule. This field is auto-populated from schedule 80G.) | Y117: 5m | AB117: =IF(BacValue=1,0,MIN(TOTAL_INCOME,Per5080G.TotalEligibleDonationsUs80G)) -> 0 | AC117: 0 | AD117: 0 | AE117: 0 | AF117: 0 | AG117: 0 | AH117: 0 | AI117: 0 | AJ117: 0 | AK117: 0 | AL117: 0 | AM117: 0 | AN117: =IncD.Section80G -> 0
F118: n | H118: 80GG - Rent paid (Please submit form 10BA to claim deduction) | Y118: 5n | AB118: 0 | AN118: =MIN(MIN(ROUND(MIN(IF(HRA>0,55000,60000), 0.25*(MAX(0,TOTAL_INCOME-(SUM(AN98:AW117)+SUM(AN120:AW127)+0)))),0),VALUE(IncD.Section80GG)),TOTAL_INCOME) -> 0
F119: Acknowledgement number of Form 10BA
F120: o | H120: 80GGA - Certain donations for scientific research or rural development (Please fill 80GGA Schedule. This field is auto-populated from schedule 80GGA.) | Y120: 5o | AB120: =IF(BacValue=1,0,Total_Donation_80GGA) -> 0 | AN120: =IF(BacValue=1,0,Total_Donation_Eligible_80GGA) -> 0
F121: p | H121: 80GGC - Contribution to Political party. (Please fill 80GGC Schedule. This field is auto-populated from schedule 80GGC.) | Y121: 5p | AB121: =IF(BacValue=1,0,Total_Donation_80GGC) -> 0 | AN121: =IF(BacValue=1,0,Total_Donation_Eligible_80GGC) -> 0
F122: p | H122: 80 QQB - Royalty income of authors of certain books. | Y122: 5p
F123: q | H123: 80 RRB - Royalty on patents | Y123: 5q
F124: q | H124: 80TTA - Interest on saving bank Accounts in case of other than Resident senior citizens | Y124: 5q | AB124: 0 | AN124: =MIN(MIN(VALUE(IncD.Section80TTA),10000),MAX(0,MIN(TOTAL_INCOME,MAX(0,tta)))) -> 0 | BD124: =SUM(Others.Amount_2_3) -> 28400
F125: r | H125: 80TTB- Interest on deposits in case of Resident senior citizens | Y125: 5r | AB125: 0 | AN125: =MIN(MIN(VALUE(IncD.Section80TTB),50000),MAX(0,MIN(TOTAL_INCOME,MAX(0,ttb)))) -> 0 | BD125: =SUM(Others.Amount_2_4,Others.Amount_2_5) -> 1028400
F126: s | H126: 80U - In case of a person with disability.(Please fill 80U Schedule. This field is auto-populated from schedule 80U.) | Y126: 5s | AB126: =IF(BacValue=1,0,Amtdeduction_80U) -> 0 | AN126: =IF(BacValue=1,0,IncD.Section80U) -> 0 | BG126: =MID(Naturedisability_80U_v1,1,1) ->  | BH126: =IF(BG126="1",75000,IF(BG126="2",125000,0)) -> 0
F127: t | H127: 80CCH-Contribution to Agnipath Scheme | Y127: 5t | AB127: 0 | AN127: =IF(IncD.AnyOtherDeductions>0,MIN(IncD.AnyOtherDeductions,MIN((ROUND(IncD.Allowances*46.2/100,0)),288000)),0) -> 0 | BG127: =MID(SELECT80U,1,1) ->  | BH127: =IF(BG127="1",75000,IF(BG127="2",125000,0)) -> 0
F128: u | H128: Any Other deductions | Y128: 5u
E129: 6 | F129: Total Deductions (Total of 5a to 5t) | Y129: 6 | AB129: =SUM(AB98:AM101,AB103:AM118,AB120:AM127) -> 0 | AC129: 0 | AD129: 0 | AE129: 0 | AF129: 0 | AG129: 0 | AH129: 0 | AI129: 0 | AJ129: 0 | AK129: 0 | AL129: 0 | AM129: 0 | AN129: 6 | AO129: =ROUND(MAX(MIN(MIN(IncD.TotalChapVIADeductions_Input,SUM(AN97:AW101,AN103:AW118,AN120:AW127)),IncD.GrossTotIncome),0),0) -> 0
E130: 7 | F130: Total Income (4 - 6) | AN130: 7 | AO130: =ROUND(MAX(0,IncD.GrossTotIncome-IncD.TotalChapVIADeductions),-1) -> 4155650 | AX130: For slab rates,234ABC we're using total income in which didn't included 112A
E131: 7 | F131: Total Income (4 - 6) | AN131: 7 | AO131: =ROUND(MAX(0,IncD.GrossTotIncome_New-IncD.TotalChapVIADeductions),-1) -> 4155650
F132: Exempt Income: For reporting purpose and Income on which no tax is payable
F133: Sl.No. | H133: Nature of Income | T133: Description ( If 'Any Other' selected) | AH133: Amount
F134: 1 | H134: (Select) | T134: Not Applicable
F135: =F134+1 -> 2 | H135: (Select) | T135: Not Applicable
F137: Total Exempt Income | AO137: =SUM(Others.Amount) -> 0
E138: 7a | F138: Income on which no tax is payable: Long Term capital gains u/s 112A not chargeable to Income-tax
F139: i | G139: Total sale consideration | AN139: i | AO139: 0
F140: ii | G140: Total cost of acquisition | AN140: ii | AO140: 0
F141: iii | G141: Long term capital gains as per sec 112A | AN141: iii | AO141: =IF((MAX(0,(IncD.Sale_LTCG-IncD.Cost_LTCG)))>125000,0,MAX(0,(IncD.Sale_LTCG-IncD.Cost_LTCG))) -> 0
E142: 8 | F142: Tax Payable on Total Income | AN142: 8 | AO142: 936695
E143: 9 | F143: Rebate u/s 87A | AN143: 9 | AO143: =IF(BacValue=2,IF((IncD.TotalIncome_New)<=500000,MIN(IncD.TotalTaxPayable,12500),0),IF(BacValue=1,IF((IncD.TotalIncome)<=700000,MIN(IncD.TotalTaxPayable,25000),IF((IncD.TotalTaxPayable>(IncD.TotalIncome-700000)),(IncD.TotalTaxPayable-(IncD.TotalIncome-700000)),0)),0)) -> 0 | BG143: =IF(BacValue=2,IF((IncD.TotalIncome)<=500000,MIN(IncD.TotalTaxPayable,12500),0),IF(BacValue=1,IF((IncD.TotalIncome)<=700000,MIN(IncD.TotalTaxPayable,25000),IF((IncD.TotalTaxPayable>(IncD.TotalIncome-700000)),(IncD.TotalTaxPayable-(IncD.TotalIncome-700000)),0)),0)) -> 0 | BH143: Rebate us/87A Old Formula
E144: 10 | F144: Tax payable after Rebate | AN144: 10 | AO144: =ROUND(IncD.TotalTaxPayable-IncD.Rebate87A,0) -> 936695
E146: 11 | F146: Health and Education Cess @4% on (10) | AN146: 11 | AO146: =ROUND((IncD.TaxPayableOnRebate)*0.04,0) -> 37468
E147: 12 | F147: Total Tax and Cess | AN147: 12 | AO147: =ROUND(IncD.TaxPayableOnRebate+IncD.EducationCess,0) -> 974163
E148: 13 | F148: Relief u/s 89 (Please ensure to submit Form 10E to claim this relief) | AN148: 13 | AO148: 0 | AZ148: =IF(IncD.TotalTaxPayable<=0,0,ROUND(((IncD.TotalHeadSalaries-IncomeNotified89A-IncomeNotifiedOther89A+TotFamilyPension-IncD.LessDeduction57)/(IncD.TotalIncome))*IncD.TotalTaxPayable,0)) -> 703820
E149: 13a | F149: Relief u/s 89A | AN149: 13a | AO149: 0 | AZ149: =IF(IncD.TotalTaxPayable<=0,0,ROUND(((IncomeNotified89A)/(IncD.TotalIncome))*IncD.TotalTaxPayable,0)) -> 0
E150: 14 | F150: Balance Tax after Relief (12-13) | AN150: 14 | AO150: =ROUND(MAX(IncD.GrossTaxLiability-IncD.Section89-IncD.Section89A,0),0) -> 974163 | BG150: Verification Date | BI150: =VALUE(MID(Ver.Date,1,2)) -> 6
E151: 15 | F151: Interest u/s 234 A | AN151: 15a | AO151: 0 | BG151: Verification Month | BI151: =VALUE(MID(Ver.Date,4,2)) -> 10
F152: Interest u/s 234 B | AN152: 15b | AO152: 0 | BG152: Verification Year | BI152: =VALUE(MID(Ver.Date,7,4)) -> 2025
F153: Interest u/s 234 C | AN153: 15c | AO153: 111
F154: Fee u/s 234F | AN154: 15d | AO154: 5000 | BG154: Due Date + 1 | BI154: 2018-08-01
E155: 16 | F155: Total Interest, Fee Payable (15a + 15b + 15c+15d) | AN155: 16 | AO155: =SUM(IncD.IntrstPayUs234A,IncD.IntrstPayUs234B,IncD.IntrstPayUs234C,IncD.IntrstPayUs234F) -> 5111 | BG155: Year End Date | BI155: 2018-12-31
E156: 17 | F156: Total Tax , Fee and Interest (14 + 16) | AN156: 17 | AO156: =IncD.NetTaxLiability+IncD.TotalIntrstPay -> 979274

Sheet Part A Gen_139(8A) (hidden)
C3: FORM | E3: ITR-U | J3: INDIAN INCOME TAX UPDATED RETURN
J4: [ For persons to update income within twenty-four months from end of the relevant assessment year] (Refer Instructions for eligibility ) (Please see rule 12AC of the Income-tax Rules, 1962)
E5: PART A GENERAL INFORMATION – 139(8A)
E6: (A1) PAN | T6: (A2) Name
E7: =IF(sheet1.PAN="","",sheet1.PAN) -> AANPM6521G | T7: =CONCATENATE(sheet1.FirstName," ",sheet1.MiddleName," ",sheet1.SurNameOrOrgName) -> SHRINATH S. MAKHIJA
E8: (A3) Aadhaar Number (Please enter Aadhaar Number. Applicable to Individual only) | Y8: (A3a) Aadhaar Enrolment Id (28 digits) (If eligible for Aadhaar No.) | AP8: (A4) Assessment Year
E9: =IF(Sheet1.Aadhaar="","",Sheet1.Aadhaar) ->  | AP9: AY 2024-2025
E10: (A5) Whether return previously filed for this assessment year? | AS10: (Select)
E11: While submitting corrected return in response to notice u/s 139(9) issued against updated return u/s 139(8A), tax payer should select same option in“A5 of Part A General 139(8A)”as whatever he selected while filing 139(8A) ITR and need to fill same details of “Original Date of filing” and “Acknowledgement number” while he provided while submitting 139(8A) and is required to select section as "139(8A)" in Part A General" and it is not mandatory to provide DIN and Date of Notice details. Please refer FAQs in below path :"https://www.incometax.gov.in/iec/foportal/help/response-to-defective-notice%20-against-updated-return/faqs"
E12: (A6) If Yes, Whether U/s | Z12: (Select)
E13: (A7) If applicable, enter form filed, acknowledgement no. or Receipt no. and date of filing original return (DD/MM/YYYY)
E14: ITR Type | Z14: (Select)
E15: Acknowledgement Number | AA15: Date of Filing of Original Return
E16: (A8) Are you eligible for filing an updated return as per the conditions laid out in first, second and third provisos to section 139(8A)? | AS16: (Select)
E17: (A9) Please choose the ITR form for updating your income (ITRs 1-7 to be selected from drop-down and filled as per the details made available by e-filing utility– see instruction) | AS17: ITR1
E18: (A10) Reasons for updating your income: | AZ18: =COUNTIF(U_ReasonsForUpdatingIncome,"Reduction of carried forward loss") -> 0 | BA18: =COUNTIF(U_ReasonsForUpdatingIncome,"Reduction of unabsorbed depreciation") -> 0 | BB18: =COUNTIF(U_ReasonsForUpdatingIncome,"Reduction of tax credit u/s 115JB/115JC") -> 0
E19: (Select)
E22: (A11) Are you filing the updated return during the period | AM22: (Select)
E23: (A12) (a) Are you filing the updated return to reduce carried forward loss or unabsorbed depreciation or tax credit?
E24: (b) If Yes , please specify the assessment years where carried forward loss or unabsorbed depreciation or tax credit is being affected because of the updated return | AZ24: =COUNTIF(U_UnabsorbedDepreciationYear,"2023") -> 0 | BA24: =COUNTIF(U_UnabsorbedDepreciationYear,"2024") -> 0
E25: Sl.No. | F25: Assessment Year | L25: Whether return has been filed after giving effect of Sl. No. 12a above | AA25: Return Filed, if yes is selected
E26: 1
E27: 2

Sheet Schedule EA 10(13A) (hidden)
C3: Schedule-10(13A) | D3: House rent allowance(HRA)
C4: 1 | D4: Place of Work | G4: 2. Non-Metro
C5: 2 | D5: Actual HRA received (A) | G5: 217000
C6: 3 | D6: Actual Rent paid | G6: 440000
C7: 4 | D7: Details of Salary as per section 17(1) | G7: =IF(AND(BacValue=2,MID(sheet1.EmployerCategory1,1,3)<>"Not"),MAX(0,SUM(Sch10of13A_BasicSalary,Sch10of13A_DearAllowance)),0) -> 0
C8: 4(a) | D8: Basic Salary | G8: 2800000
C9: 4(b) | D9: Dearness Allowance
C10: 5 | D10: Actual rent paid-10% of salary (B) (3-10% of 4) | G10: =IF(AND(BacValue=2,MID(sheet1.EmployerCategory1,1,3)<>"Not"),MAX(0,(Sch10of13A_ActlRentpaid-ROUND((Sch10of13A_DetlsofSalpersec17of1*0.1),0))),0) -> 0
C11: 6 | D11: 50% /40% of salary (C) | G11: 1120000
C12: 7 | D12: Eligible Exempt Allowance u/s 10(13A) | G12: =IF(AND(BacValue=2,MID(sheet1.EmployerCategory1,1,3)<>"Not"),MIN(Sch10of13A_ActlHRArecivedA,Sch10of13A_Actlrentpaid10persalaryB,Sch10of13A_50Por40Pofsalary),0) -> 0

Sheet Schedule 24(b) (hidden)
B2: Section 24(b) | C2: Interest on borrowed capital
C3: Sl. No. | D3: Loan taken from | E3: IFSC code of the bank from which the loan is taken | F3: PAN of the Institution/Person from which the loan is taken | G3: Name of the bank / Institution / Person from which the loan is taken | H3: Loan Account Number of the Bank/Institution | I3: Date of sanction of loan | J3: Total amount of loan | K3: Loan outstanding as on last date of financial year | L3: Interest on Borrowed capital u/s 24(b)
D4: (i) | E4: (iia) | F4: (iib) | G4: (ii) | H4: (iii) | I4: (iv) | J4: (v) | K4: (vi) | L4: (vii)
C5: 1 | D5: Bank | G5: HDFC Bank | H5: 123456 | I5: 31/12/2019 | J5: 5000000 | K5: 4000000 | L5: 395000 | W5: =TRIM(G5)&"_"&TRIM(H5)&"_"&TRIM(I5)&"_"&TRIM(J5) -> HDFC Bank_123456_31/12/2019_5000000
C6: =C5+1 -> 2 | D6: (Select) | W6: =TRIM(G6)&"_"&TRIM(H6)&"_"&TRIM(I6)&"_"&TRIM(J6) -> ___
C7: =C6+1 -> 3 | D7: (Select) | W7: ___
C8: =C7+1 -> 4 | D8: (Select) | W8: ___
C10: Total of Interest on Borrowed capital u/s 24(b) | L10: =SUM(Intrst.24b) -> 395000

Sheet TDS
C3: 18 TDS1 | D3: Details of Tax Deducted at Source from SALARY [As per FORM 16 issued by Employer(s)]
D4: SI.No. | E4: Tax Deduction Account Number (TAN) of the Deductor | F4: Name of Deductor | G4: Income chargeable under Salaries | H4: Total Tax Deducted
E5: (1) | F5: (2) | G5: (3) | H5: (4)
D6: 1 | E6: RTKA85463A | F6: KRISHNA CHEMICALS PVT LTD | G6: 3197500 | H6: 670000
D7: =D6+1 -> 2
D8: =D7+1 -> 3
D9: =D8+1 -> 4
D10: =D9+1 -> 5
C11: Total | H11: =SUM(TDSal.TotalTDSSalary) -> 670000 | N11: =SUM(TDSal.IncChrgSalary) -> 3197500
C14: 19 TDS2 | D14: Details of Tax Deducted at Source from Income OTHER THAN Salary [As per FORM 16 A issued by Deductor(s)]
D15: SI.No. | E15: Tax Deduction Account Number (TAN) of the Deductor | F15: Name of Deductor | G15: Section under which TDS deducted | H15: Gross receipt which is subject to tax deduction | I15: Year of tax deduction | J15: Tax Deducted | K15: TDS Credit out of (5) claimed this Year
E16: (1) | F16: (2a) | G16: (2b) | H16: (3) | I16: (4) | J16: (5) | K16: (6)
D17: 1 | E17: DELP26004G | F17: PUNJAB NATIONAL BANK | G17: 194A-Interest other than 'Interest on securities' | H17: 1000000 | I17: 2024-25 | J17: 100000 | K17: 100000
D18: =D17+1 -> 2 | I18: (Select)
D19: =D18+1 -> 3 | I19: (Select)
D20: =D19+1 -> 4 | I20: (Select)
D21: =D20+1 -> 5 | I21: (Select)
C22: Total | K22: =SUM(TDSoth.6income) -> 100000
O24: =SUMIF(FormulaOfSAT,"=3",TaxP.Amt) -> 0 | P24: =SUMIF(FormulaOfSAT,"=6",TaxP.Amt) -> 0 | Q24: =SUMIF(FormulaOfSAT,"=9",TaxP.Amt) -> 0 | R24: =SUMIF(FormulaOfSAT,"=13",TaxP.Amt) -> 0 | S24: =SUMIF(FormulaOfSAT,"=17",TaxP.Amt) -> 0 | T24: =SUMIF(FormulaOfSAT,"=21",TaxP.Amt) -> 0
C25: 20 TDS3 | D25: Details of Tax Deducted at Source [As per Form 16C furnished by the Payer(s)]
D26: SI.No. | E26: Permanent Account Number (PAN) of the Tenant | F26: Aadhaar No of the tenant | G26: Name of the Tenant | H26: Section under which TDS deducted | I26: Gross receipt which is subject to tax deduction | J26: Year of tax Deduction | K26: Tax Deducted | L26: TDS credit out of (6) claimed this Year
E27: (1) | F27: (2) | G27: (3a) | H27: (3b) | I27: (4) | J27: (5) | K27: (6) | L27: (7)
D28: 1 | H28: (Select) | J28: (Select)
D29: =D28+1 -> 2 | H29: (Select) | J29: (Select)
D30: =D29+1 -> 3 | H30: (Select) | J30: (Select)
D31: =D30+1 -> 4 | H31: (Select) | J31: (Select)
C32: Total | D32: Total | L32: =SUM(TDS26QB.6income) -> 0
P34: =SUMIF(FormulaOfSAT,"=2",TaxP.Amt) -> 0 | Q34: =SUMIF(FormulaOfSAT,"=5",TaxP.Amt) -> 0 | R34: =SUMIF(FormulaOfSAT,"=8",TaxP.Amt) -> 0 | S34: =SUMIF(FormulaOfSAT,"=12",TaxP.Amt) -> 0 | T34: =SUMIF(FormulaOfSAT,"=16",TaxP.Amt) -> 0 | U34: =SUMIF(FormulaOfSAT,"=20",TaxP.Amt) -> 0 | V34: =SUMIF(FormulaOfSAT,"=24",TaxP.Amt) -> 0
C35: 21 IT | D35: Details of Advance tax and Self Assessment tax payments | N35: TN AND PONDICHERRY CASE | O35: =FALSE -> FALSE | P35: =SUMIF(FormulaOfSAT,"=1",TaxP.Amt) -> 0 | Q35: =SUMIF(FormulaOfSAT,"=4",TaxP.Amt) -> 0 | R35: =SUMIF(FormulaOfSAT,"=7",TaxP.Amt) -> 0 | S35: =SUMIF(FormulaOfSAT,"=11",TaxP.Amt) -> 0 | T35: =SUMIF(FormulaOfSAT,"=15",TaxP.Amt) -> 0 | U35: =SUMIF(FormulaOfSAT,"=19",TaxP.Amt) -> 0 | V35: =SUMIF(FormulaOfSAT,"=23",TaxP.Amt) -> 0
D36: Sl.No. | E36: BSR Code | F36: Date of Deposit (DD/MM/YYYY) | G36: Serial Number of Challan | H36: Tax Paid | S36: =SUMIF(FormulaOfSAT,"=10",TaxP.Amt) -> 0 | T36: =SUMIF(FormulaOfSAT,"=14",TaxP.Amt) -> 0 | U36: =SUMIF(FormulaOfSAT,"=18",TaxP.Amt) -> 0 | V36: =SUMIF(FormulaOfSAT,"=22",TaxP.Amt) -> 0
E37: (1) | F37: (2) | G37: (3) | H37: (4) | N37: Year | O37: Day | P37: Month | T37: normal case | U37: TN case
D38: 1 | E38: 0005641 | F38: 15/06/2024 | G38: 00084 | H38: 95000 | N38: =VALUE(MID(F38,7,4)) -> 2024 | O38: =VALUE(MID(F38,1,2)) -> 15 | P38: =VALUE(MID(F38,4,2)) -> 6 | Q38: =IF(N38>2025,2,IF(N38>=2025,IF(P38>=4,2,1),1)) -> 1 | R38: =IF(TN.Flag,U38,T38) -> 1 | S38: =IF(N38<=2025,IF(Q38>1,IF(P38<4,P38+9,P38-3),0),P38+9) -> 0 | T38: =IF(Q38>1,6,IF(N38<2025,IF((P38=6)*(O38>15),2,IF(P38<7,1,IF((P38=9)*(O38>16),3,IF(P38<10,2,IF((P38=12)*(O38>16),4,IF(P38<13,3,4)))))),IF(P38<3,4,IF(O38<17,4,5)))) -> 1 | U38: =IF(Q38>1,6,IF(N38<2025,IF((P38=6)*(O38>15),2,IF(P38<7,1,IF((P38=9)*(O38>16),3,IF(P38<10,2,IF((P38=12)*(O38>31),4,IF(P38<13,3,4)))))),IF(P38<3,4,IF(O38<17,4,5)))) -> 1 | V38: =IF(N38<=2025,IF(Q38>1,IF(P38<4,P38+9,P38-3),0),P38 -3 + MAX(N38-2025) *12) -> 0
D39: =D38+1 -> 2 | E39: 0005641 | F39: 09/10/2024 | G39: 00062 | H39: 98000 | N39: 2024 | O39: 9 | P39: 10 | Q39: =IF(N39>2025,2,IF(N39>=2025,IF(P39>=4,2,1),1)) -> 1 | R39: 3 | S39: =IF(N39<=2025,IF(Q39>1,IF(P39<4,P39+9,P39-3),0),P39+9) -> 0 | T39: =IF(Q39>1,6,IF(N39<2025,IF((P39=6)*(O39>15),2,IF(P39<7,1,IF((P39=9)*(O39>16),3,IF(P39<10,2,IF((P39=12)*(O39>16),4,IF(P39<13,3,4)))))),IF(P39<3,4,IF(O39<17,4,5)))) -> 3 | U39: =IF(Q39>1,6,IF(N39<2025,IF((P39=6)*(O39>15),2,IF(P39<7,1,IF((P39=9)*(O39>16),3,IF(P39<10,2,IF((P39=12)*(O39>31),4,IF(P39<13,3,4)))))),IF(P39<3,4,IF(O39<17,4,5)))) -> 3 | V39: 0
D40: 3
D41: 4
D42: 5
D43: 6
D44: 7
C45: Total | H45: =SUM(TaxP.Amt) -> 193000

Sheet TCS
C3: 22 TCS | D3: DETAILS OF TAX COLLECTED AT SOURCE [AS PER FORM 27D ISSUED BY THE COLLECTOR(S)]
D4: SI.No. | E4: Tax Collection Account Number of the Collector | F4: Name of the Collector | G4: Gross payment which is subject to tax collection | H4: Year of tax Collection | I4: Tax Collected | J4: TCS credit out of (5) claimed this Year
E5: (1) | F5: (2) | G5: (3) | H5: (4) | I5: (5) | J5: (6)
D6: 1
D7: =D6+1 -> 2
D8: =D7+1 -> 3
D9: =D8+1 -> 4
C10: Total | J10: =SUM(TCS.AmtTCSClaimedThisYear) -> 0

Sheet Taxes Paid and Verification
C3: TAXES PAID | D3: 23 | E3: Total Taxes Paid PLEASE NOTE THAT CALCULATED FIELDS (IN WHITE) ARE PICKED UP FROM OTHER SCHEDULES AND ARE NOT TO BE ENTERED. For ex : The taxes paid figures below will get filled up when the Schedules linked to them are filled.
E4: a | F4: Total Advance Tax Paid (from item 21) | I4: 193000
E5: b | F5: Total TDS Claimed (Total from item 18 + item 19 + item 20) | I5: 770000
E6: c | F6: Total TCS Claimed (Total from item 22) | I6: 0
E7: d | F7: Total Self Assessment Tax Paid (from item 21) | I7: 0
D8: 24 | E8: Total Taxes Paid (23a+23b+23c+23d) | I8: =MAX(SUM(I4:I7),0) -> 963000
D9: =D8+1 -> 25 | E9: Amount Payable (17-24) (if 17 is greater than 24) | I9: =ROUND(IF(IncD.TotTaxPlusIntrstPay>IncD.TotalTaxesPaid, MAX(IncD.TotTaxPlusIntrstPay-IncD.TotalTaxesPaid,0),0),-1) -> 16270
D10: =D9+1 -> 26 | E10: Refund (24-17) (if 24 is greater than 17) | I10: =ROUND(IF(IncD.TotTaxPlusIntrstPay<IncD.TotalTaxesPaid, MAX(IncD.TotalTaxesPaid-IncD.TotTaxPlusIntrstPay,0),0),-1) -> 0
D11: 26 | E11: Enter your Bank Account number (Refund if any will directly credited into Bank Account)
D12: 27 | E12: IFS Code | I12: (Select)
D13: 27 | E13: Exempt income (For reporting Purposes)
E14: a
E15: b
E16: c | F16: Others
F17: Sl.No | G17: Nature of Income | H17: Description ( If 'Any Other' selected) | I17: Amount
F18: 1 | G18: Agriculture Income (≤ Rs.5000) | H18: NA
F19: =F18+1 -> 2 | G19: Sec.10(34) (Exempted Dividend Income) | H19: NA
F20: 1 | G20: (Select) | H20: NA
F21: =F20+1 -> 2 | G21: (Select) | H21: NA
F22: =F21+1 -> 3 | G22: (Select) | H22: NA
F23: =F22+1 -> 4 | G23: (Select) | H23: NA
E26: e | F26: Total Amount | I26: =SUM(Others.Amount) -> 0
D27: 27 | E27: Do you have a bank account in India (Non-residents claiming refund with no bank account in India may select NO)? | I27: YES
E28: Total number of savings and current bank accounts held by you at any time during the previous year (excluding dormant accounts).
E29: Provide the details below
D30: 27 | E30: Details of all Bank Accounts held in India at any time during the previous year (excluding dormant accounts). Note: If you do not have any bank account in India, enter the details as IFSC - NNNN0NNNNNN, Name of Bank - NOT APPLICABLE, Account No. - NA999.
D31: (i) | E31: Details of all Bank Accounts held in India at any time during the previous year (excluding dormant accounts)
E32: Sl.No. | F32: IFS Code of the Bank | G32: Name of the Bank | H32: Account Number | I32: Type of account | J32: Select Account for Refund Credit
E33: 1 | F33: SBIN0001422 | G33: STATE BANK OF INDIA | H33: 71457625689 | I33: Savings Account | O33: =IF(F33<>"",VLOOKUP(MID(F33,1,4),IFSCBank,2,FALSE)) -> STATE BANK OF INDIA | P33: TRUE
E34: =E33+1 -> 2 | I34: (Select) | O34: =IF(F34<>"",VLOOKUP(MID(F34,1,4),IFSCBank,2,FALSE)) -> FALSE | P34: FALSE
P35: TRUE
D36: Note:
D37: 1.All bank accounts held at any time are to be reported, except dormant A/c. 2. In case of multiple accounts, refund will be credited to one of the validated accounts other than account types "Others" after processing the return.
G41: (Do Not Delete Blank Rows)
C42: VERIFICATION
C43: I, (full name in block letters), | G43: SHRINATH S. MAKHIJA | H43: son/daughter of | I43: AJINKYA S. MAKHIJA
C45: solemnly declare that to the best of my knowledge and belief, the information given in the return is correct and complete and is in accordance with the provisions
C46: of the Income-tax Act, 1961. I further declare that I am making this return in my capacity as | H46: Self | I46: and I am also competent to make | Y46: =calculateAge(sheet1.DOB)<18 -> FALSE
C47: this return and verify it. | G47: I am holding Permanent Account Number | H47: AANPM6521G
C48: Date (System Date) | G48: =CONCATENATE(IF(DAY(TODAY())<10,"0",""),DAY(TODAY()),"/",IF(MONTH(TODAY())<10,"0",""),MONTH(TODAY()),"/",YEAR(TODAY())) -> 06/10/2025 | H48: Place | I48: MUMBAI
C49: 27 | D49: If the return has been prepared by a Tax Return Preparer (TRP) give further details below:
D50: Identification No. of TRP | H50: NAME OF TRP
D51: If TRP is entitled for any reimbursement from the Government, amount thereof
D52: NOTE : 1. Submission date is the system date of e-Filing portal of Income Tax Department. The same is available in the Acknowledgement/ITR-V generated after submission of return. 2. Verification Date is the date of e-Verification at e-Filing portal of Income Tax Department or the date of receipt of ITR-V at CPC, Bengaluru. The same will be available in View Returns/Forms option of e-Filing portal. In case of e-Verification, it is available in Acknowledgement
C57: 28 | D57: If the return has been prepared by a Tax Return Preparer (TRP) give further details as below:
C58: Identification No of TRP | G58: Name of TRP
C60: 29 | D60: If TRP is entitled for any reimbursement from the Government, amount thereof (to be filled by TRP)

Sheet Part B ATI (hidden)
C3: Part B - ATI | G3: Computation of total updated income and tax payable
C4: 1 | D4: A | E4: Head of Income under which additional income is being returned as per Updated Return Head of income (If yes, Please specify additional income)
E5: a | F5: Income from Salary | O5: a | Z5: =MID(sheet1.ReturnFileSec,4,4) -> (1)-
E6: b | F6: Income from house property | O6: b
E7: c | F7: Income from Business or Profession | O7: c
E8: d | F8: Income from Capital Gains | O8: d
E9: e | F9: Income from Other Sources | O9: e
E10: f | F10: Total additional Income (a+b+c+d+e) | O10: f | P10: =IF(MID(sheet1.ReturnFileSec,4,4)="(8A)",SUM(P5:P9),0) -> 0
D11: B | E11: Total Income as per last valid return (only in cases where the Income Tax Return has been previously filed) | O11: B
C12: 2 | D12: Total updated income as per Part_BTI (Please see instruction) | O12: 2 | P12: =IF(MID(sheet1.ReturnFileSec,4,4)="(8A)",IncD.TotalIncome,0) -> 0
C13: 3 | D13: Amount payable, if any (To be taken from the “Amount payable” of Part B-TTI of the updated ITR) (Please see instruction) | O13: 3 | P13: =IF(MID(sheet1.ReturnFileSec,4,4)="(8A)",IncD.BalTaxPayable,0) -> 0
C14: 4 | D14: Amount refundable, if any (To be taken from “Refund” of Part B-TTI of the updated ITR) (Please see instruction) | O14: 4 | P14: =IF(U_AmtPayable>0,0,IF(MID(sheet1.ReturnFileSec,4,4)="(8A)",IncD.RefundDue,0)) -> 0
C15: 5 | D15: Amount payable on the basis of last valid return (only in applicable cases) | O15: 5
C16: 6i | D16: Refund claimed as per last valid return, if any (Please see instruction) | O16: 6i | P16: 0
C17: 6ii | D17: Total Refund issued as per last valid return, if any ( this amount should include interest u/s 244A received ) (Please see instruction) | O17: 6ii | P17: 0 | S17: =VALUE(MID( Ver.Date,4,2)) -> 10 | T17: =VALUE(MID( Ver.Date,9,4)) -> 25
C18: 7 | D18: Fee for default in furnishing return of income u/s 234F | O18: 7 | P18: =IF(MID(sheet1.ReturnFileSec,4,4)="(8A)",IncD.IntrstPayUs234F,0) -> 0
C19: 8 | D19: Regular Assessment Tax, if any (in applicable cases) | O19: 8 | S19: =ROUND((MAX(0,(U_AggrLiabilityRefund+U_AggrLiabilityNoRefund)-U_FeeIncUS234F)*0.25),0) -> 0
C20: 9 | D20: Aggregate liability on additional income
D21: 9i | E21: In case refund has been issued [3 + 6ii- (5 + 8 + 4)]) | O21: 9i | P21: =MAX(0,IF(MID(sheet1.ReturnFileSec,4,4)="(8A)",IF(P17>0,P13+P17-(P15+P19+U_AmtRefundable),0),0)) -> 0
D22: 9ii | E22: In case refund has not been issued [3 + 6i – (5 + 8 + 4)] | O22: 9ii | P22: =MAX(0,IF(MID(sheet1.ReturnFileSec,4,4)="(8A)",IF(P17=0,P13+P16-(P15+P19+U_AmtRefundable),0),0)) -> 0
C23: 10 | D23: Additional income-tax liability on updated income [25% or 50% of (9-7)] | O23: 10 | P23: =MAX(IF(Return_Dropdown=1,ROUND((MAX(0,(U_AggrLiabilityRefund+U_AggrLiabilityNoRefund)-U_FeeIncUS234F)*0.25),0),IF(Return_Dropdown=2,ROUND((MAX(0,(U_AggrLiabilityRefund+U_AggrLiabilityNoRefund)-U_FeeIncUS234F)*0.5),0),0)),0) -> 0 | S23: =MAX(0,(U_AggrLiabilityRefund+U_AggrLiabilityNoRefund)-U_FeeIncUS234F) -> 0 | T23: =IF(LEFT(U_UpdatedReturnDuringPeriod,2)="Up",1,IF(LEFT(U_UpdatedReturnDuringPeriod,2)="Be",2,0)) -> 0 | U23: =MAX(IF(Return_Dropdown=1,ROUND((MAX(0,(U_AggrLiabilityRefund+U_AggrLiabilityNoRefund)-U_FeeIncUS234F)*0.25),0),IF(Return_Dropdown=2,ROUND((MAX(0,(U_AggrLiabilityRefund+U_AggrLiabilityNoRefund)-U_FeeIncUS234F)*0.5),0),0)),0) -> 0
C24: 11 | D24: Net amount payable (9+10) | O24: 11 | P24: =MAX(IF(MID(sheet1.ReturnFileSec,4,4)="(8A)",MAX(0,P21+P22+P23),0),0) -> 0
C25: 12 | D25: Tax paid u/s 140B | O25: 12 | P25: =U_Total1 -> 0
C26: 13 | D26: Tax due (11-12) | O26: 13 | P26: =IF(MID(sheet1.ReturnFileSec,4,4)="(8A)",MAX(0,P24-P25),0) -> 0
C27: 14 | D27: Tax Payment details (ONLY as per Updated Return)
E28: A | F28: Details of payments of tax on updated return u/s 140B
E29: Sl. No. | F29: BSR Code | G29: Date of Deposit (DD/MM/YYYY) | H29: Serial Number of Challan | K29: Amount (Rs)
F30: (1) | G30: (2) | H30: (3) | K30: (4)
E31: 1
E32: =E31+1 -> 2
E33: Total | K33: =IF(MID(sheet1.ReturnFileSec,4,4)="(8A)",SUM(U_Amt1),0) -> 0
C35: Note: | D35: Note: | F35: Enter the totals of tax paid u/s 140B at sl.no.12 of Part B-ATI
E36: B | F36: Details of payments of Advance Tax / Self Assessment Tax / Regular Assessment Tax, credit for which has not been claimed in the earlier return (credit for the same is not to be allowed again under section 140B(2) )
E37: Sl. No. | F37: BSR Code | G37: Date of Deposit (DD/MM/YYYY) | H37: Serial Number of Challan | K37: Amount (Rs)
F38: (1) | G38: (2) | H38: (3) | K38: (4)
E39: 1
E40: =E39+1 -> 2
E41: Total | K41: =IF(MID(sheet1.ReturnFileSec,4,4)="(8A)",SUM(U_Amt2),0) -> 0
C43: Note: | D43: Note: | F43: Credit for above is not to be allowed again under section 140B(2)
C44: 15 | D44: Relief u/s 89 which is not claimed in earlier return [relief for the same is not to be allowed under section 140B(2)] | O44: 15

Sheet 80D (hidden)
C3: 80D
C4: 1 | D4: Whether you or any of your family member (excluding parents) is a senior citizen? | L4: No
C5: a | D5: Self & Family | L5: =MIN(25000,SUM(Health_Insurance_80D,Preventive_Health_80D)) -> 25000
C6: (i) | D6: Health Insurance | L6: =TotAmtA1.80D -> 38000
D7: Details of insurance
D8: Sl. No. | E8: Name of the Insurer (Insurance company) | G8: Policy Number | I8: Receipt/document number of the premium paid | L8: Health Insurance amount
D9: (i) | E9: (ii) | G9: (iii) | I9: (iv) | L9: (iv)
D10: 1 | E10: TATA AIG | G10: 897754214238961 | L10: 38000
D11: =D10+1 -> 2
D12: =D11+1 -> 3
D14: Total of Payments | L14: =SUM(AmtA1.80D) -> 38000
C15: (ii) | D15: Preventive Health Checkup
C16: b | D16: Self & Family Including Senior Citizen
C17: (i) | D17: Health Insurance | L17: =TotAmtB1.80D -> 0
D18: Details of insurance
D19: Sl. No. | E19: Name of the Insurer (Insurance company) | G19: Policy Number | I19: Receipt/document number of the premium paid | L19: Health Insurance amount
D20: (i) | E20: (ii) | G20: (iii) | I20: (iv) | L20: (iv)
D21: 1
D22: =D21+1 -> 2
D23: =D22+1 -> 3
D25: Total of Payments | L25: =SUM(AmtB1.80D) -> 0
C26: (ii) | D26: Preventive Health Checkup
C27: (iii) | D27: Medical Expenditure (This deduction can be claimed on which health insurance is not claimed at (i) above)
C28: 2 | D28: Whether any one of your parents is a senior citizen | L28: Not claiming for Parents
C29: a | D29: Parents
C30: (i) | D30: Health Insurance | L30: =TotAmtA2.80D -> 0
D31: Details of insurance
D32: Sl. No. | E32: Name of the Insurer (Insurance company) | G32: Policy Number | I32: Receipt/document number of the premium paid | L32: Health Insurance amount
D33: (i) | E33: (ii) | G33: (iii) | I33: (iv) | L33: (iv)
D34: 1
D35: =D34+1 -> 2
D36: =D35+1 -> 3
D38: Total of Payments | L38: =SUM(AmtA2.80D) -> 0
C39: (ii) | D39: Preventive Health Checkup
C40: b | D40: Parents including Senior Citizen
C41: (i) | D41: Health Insurance | L41: =TotAmtB2.80D -> 0
D42: Details of insurance
D43: Sl. No. | E43: Name of the Insurer (Insurance company) | G43: Policy Number | I43: Receipt/document number of the premium paid | L43: Health Insurance amount
D44: (i) | E44: (ii) | G44: (iii) | I44: (iv) | L44: (iv)
D45: 1
D46: =D45+1 -> 2
D47: =D46+1 -> 3
D49: Total of Payments | L49: =SUM(AmtB2.80D) -> 0
C50: (ii) | D50: Preventive Health Checkup
C51: (iii) | D51: Medical Expenditure (This deduction can be claimed on which health insurance is not claimed at (i) above)
C52: 3 | D52: Eligible Amount of Deduction | L52: =MIN(100000,SUM(Self_And_Family_80D,Senior_Citizen_80D,Parents_80D,Parents_SC_80D),TOTAL_INCOME) -> 25000

Sheet 80G (hidden)
C3: Schedule 80G | E3: Details of donations entitled for deduction under section 80G | AE3: =SUM(PerYES10080G.EligibleAmt) -> 0 | AF3: =SUM(Per5080G.EligibleAmt) -> 0 | AG3: =ROUND(0.1*MAX(0,(TOTAL_INCOME-(SUM('Income Details'!AN98:AV114)+SUM('Income Details'!AN120:AV127)+MIN(60000,IncD.Section80GG)+IncD.Section80EEA_Calc++IncD.Section80EEB_Calc))),0) -> 415565 | AH3: =QualifyingAmount80G -> 415565 | AI3: =MAX(0,ROUND((CD_EligibleAmount-C_Eligible)/2,0)) -> 207783
C4: A | D4: Donations entitled for 100% deduction without qualifying limit, (where any row is filled by the user, all the fields in that row should become mandatory)
D5: Sl.No. | E5: Name of donee | F5: Address | G5: City or Town or District | H5: State Code | I5: Pin Code | J5: PAN of Donee | L5: Amount of donation | O5: Eligible Amount of Donation
L6: Donation in cash | M6: Donation in other mode | N6: Total Donation
D7: 1 | H7: (Select) | N7: =SUM(L7,M7) -> 0 | O7: =MIN(SUM(IF(L7>2000,0,L7),M7),TOTAL_INCOME) -> 0 | AB7: ABCPD1234A
D8: =D7+1 -> 2 | H8: (Select) | N8: =SUM(L8,M8) -> 0 | O8: =MIN(SUM(IF(L8>2000,0,L8),M8),TOTAL_INCOME) -> 0
D9: =D8+1 -> 3 | H9: (Select) | N9: =SUM(L9,M9) -> 0 | O9: =MIN(SUM(IF(L9>2000,0,L9),M9),TOTAL_INCOME) -> 0
D10: =D9+1 -> 4 | H10: (Select) | N10: =SUM(L10,M10) -> 0 | O10: =MIN(SUM(IF(L10>2000,0,L10),M10),TOTAL_INCOME) -> 0
E12: Total A | L12: =SUM(Per10080G.DonationAmt) -> 0 | M12: =SUM(Per10080G.DonationAmtOther) -> 0 | N12: =SUM(Per10080G.DonationAmtTotal) -> 0 | O12: =MIN(SUM(Per10080G.EligibleAmt),TOTAL_INCOME) -> 0
C14: (Do Not Delete Blank Rows)
C16: B | D16: Donations entitled for 50% deduction without qualifying limit
D18: Sl.No. | E18: Name of donee | F18: Address | G18: City or Town or District | H18: State Code | I18: Pin Code | J18: PAN of Donee | L18: Amount of donation
L19: Donation in cash | M19: Donation in other mode | N19: Total Donation | O19: Eligible Amount of Donation
D20: 1 | H20: (Select) | N20: =SUM(L20,M20) -> 0 | O20: =ROUND(MIN((SUM(IF(L20>2000,0,L20),M20))/2,TOTAL_INCOME),0) -> 0
D21: =D20+1 -> 2 | H21: (Select) | N21: =SUM(L21,M21) -> 0 | O21: =ROUND(MIN((SUM(IF(L21>2000,0,L21),M21))/2,TOTAL_INCOME),0) -> 0
D22: =D21+1 -> 3 | H22: (Select) | N22: =SUM(L22,M22) -> 0 | O22: =ROUND(MIN((SUM(IF(L22>2000,0,L22),M22))/2,TOTAL_INCOME),0) -> 0
D23: =D22+1 -> 4 | H23: (Select) | N23: =SUM(L23,M23) -> 0 | O23: =ROUND(MIN((SUM(IF(L23>2000,0,L23),M23))/2,TOTAL_INCOME),0) -> 0
E25: Total B | L25: =SUM(PerNO5080G.DonationAmt) -> 0 | M25: =SUM(PerNO5080G.DonationAmtOther) -> 0 | N25: =SUM(PerNO5080G.DonationAmtTotal) -> 0 | O25: =ROUND(MIN(SUM(PerNO5080G.EligibleAmt),TOTAL_INCOME),0) -> 0
C27: (Do Not Delete Blank Rows)
C29: C | D29: Donations entitled for 100% deduction subject to qualifying limit
D30: Sl.No. | E30: Name of donee | F30: Address | G30: City Or Town Or District | H30: State Code | I30: Pin Code | J30: PAN of Donee | L30: Amount of donation | O30: Eligible Amount of Donation
L31: Donation in cash | M31: Donation in other mode | N31: Total Donation
D32: 1 | H32: (Select) | N32: =SUM(L32,M32) -> 0 | O32: =ROUND(MIN(MIN(SUM(IF(L32>2000,0,L32),M32),TOTAL_INCOME),QualifyingAmount80G),0) -> 0
D33: =D32+1 -> 2 | H33: (Select) | N33: =SUM(L33,M33) -> 0 | O33: =ROUND(MIN(MIN(SUM(IF(L33>2000,0,L33),M33),TOTAL_INCOME),QualifyingAmount80G),0) -> 0
D34: =D33+1 -> 3 | H34: (Select) | N34: =SUM(L34,M34) -> 0 | O34: =ROUND(MIN(MIN(SUM(IF(L34>2000,0,L34),M34),TOTAL_INCOME),QualifyingAmount80G),0) -> 0
D35: =D34+1 -> 4 | H35: (Select) | N35: =SUM(L35,M35) -> 0 | O35: =ROUND(MIN(MIN(SUM(IF(L35>2000,0,L35),M35),TOTAL_INCOME),QualifyingAmount80G),0) -> 0
E37: Total C | L37: =SUM(PerYES10080G.DonationAmt) -> 0 | M37: =SUM(PerYES10080G.DonationAmtOther) -> 0 | N37: =SUM(PerYES10080G.DonationAmtTotal) -> 0 | O37: =ROUND(MIN(C_Eligible,CD_EligibleAmount),0) -> 0
C39: (Do Not Delete Blank Rows)
C41: D | D41: Donations entitled for 50% deduction subject to qualifying limit
D42: Sl.No. | E42: Name of donee | F42: Address | G42: City Or Town Or District | H42: State Code | I42: Pin Code | J42: PAN of Donee | K42: ARN Donation Reference Number | L42: Amount of donation | O42: Eligible Amount of Donation
L43: Donation in cash | M43: Donation in other mode | N43: Total Donation
D44: 1 | H44: (Select) | N44: =SUM(L44,M44) -> 0 | O44: =ROUND(MIN(TOTAL_INCOME,MIN(CDE_EligibleAmount,(SUM(IF(L44>2000,0,L44),M44))/2)),0) -> 0 | U44: =IF(L44>2000,0,L44) -> 0
D45: =D44+1 -> 2 | H45: (Select) | N45: =SUM(L45,M45) -> 0 | O45: =ROUND(MIN(TOTAL_INCOME,MIN(CDE_EligibleAmount,(SUM(IF(L45>2000,0,L45),M45))/2)),0) -> 0 | U45: =IF(L45>2000,0,L45) -> 0
D46: =D45+1 -> 3 | H46: (Select) | N46: =SUM(L46,M46) -> 0 | O46: =ROUND(MIN(TOTAL_INCOME,MIN(CDE_EligibleAmount,(SUM(IF(L46>2000,0,L46),M46))/2)),0) -> 0 | U46: =IF(L46>2000,0,L46) -> 0
D47: =D46+1 -> 4 | H47: (Select) | N47: =SUM(L47,M47) -> 0 | O47: =ROUND(MIN(TOTAL_INCOME,MIN(CDE_EligibleAmount,(SUM(IF(L47>2000,0,L47),M47))/2)),0) -> 0 | U47: =IF(L47>2000,0,L47) -> 0
E49: Total D | L49: =SUM(Per5080G.DonationAmt) -> 0 | M49: =SUM(Per5080G.DonationAmtOther) -> 0 | N49: =SUM(Per5080G.DonationAmtTotal) -> 0 | O49: =ROUND(MIN(TOTAL_INCOME,MIN(CDE_EligibleAmount,VALUE((SUM(Per5080G.DonationAmt_temp)+Per5080G.TotDonother100Percent)/2))),0) -> 0
C51: (Do Not Delete Blank Rows)
C53: E | D53: Donations (A + B + C + D) | L53: =ROUND(Per5080G.TotDon100Percent+PerYES10080G.TotDon100Percent+PerNO5080G.TotDon100Percent+Per10080G.TotDon100Percent,0) -> 0 | M53: =ROUND(Per10080G.TotDonOther100Percent+PerNO5080G.TotDonOther100Percent+PerYES10080G.TotDonOther100Percent+Per5080G.TotDonother100Percent,0) -> 0 | N53: =SUM(Per10080G.TotDon100PercentTotal,PerNO5080G.TotDon100PercentTotal,PerYES10080G.TotDon100PercentTotal,Per5080G.TotDon100PercentTotal) -> 0 | O53: =IF(IncD.GrossTotIncome>0,MIN(ROUND(Per5080G.TotElig100Percent+PerYES10080G.TotElig100Percent+PerNO5080G.TotElig100Percent+Per10080G.TotElig100Percent,0),(IncD.GrossTotIncome)),0) -> 0
C54: Note : In case of Donee is Government and PAN is not available then use "GGGGG0000G" as PAN.

Sheet 80GGA (hidden)
C3: Schedule 80GGA | E3: Details of donations for scientific research or rural development
C4: A | D4: Donations entitled for 100% deduction without qualifying limit. (Please see the NOTE given below)
D5: Sl.No. | E5: Relevant Clause under which deduction is claimed | F5: Name of Donee | G5: Address | H5: City or Town or District | I5: State Code | J5: Pin code | K5: PAN of donee | M5: Amount of donation | P5: Eligible Amount of Donation
L6: Date of Donation in cash | M6: Donation in cash | N6: Donation in other mode | O6: Total Donation
D7: 1 | O7: =MAX(SUM(M7,N7),0) -> 0 | P7: =MIN(SUM(IF(M7>S7,0,M7),N7),TOTAL_INCOME) -> 0 | S7: =IF(M7=0,0,2000) -> 0
D8: =D7+1 -> 2 | O8: =MAX(SUM(M8,N8),0) -> 0 | P8: =MIN(SUM(IF(M8>S8,0,M8),N8),TOTAL_INCOME) -> 0 | S8: =IF(M8=0,0,2000) -> 0
D9: =D8+1 -> 3 | O9: =MAX(SUM(M9,N9),0) -> 0 | P9: =MIN(SUM(IF(M9>S9,0,M9),N9),TOTAL_INCOME) -> 0 | S9: 0
D10: =D9+1 -> 4 | O10: =MAX(SUM(M10,N10),0) -> 0 | P10: =MIN(SUM(IF(M10>S10,0,M10),N10),TOTAL_INCOME) -> 0 | S10: 0
D12: Total Donation | M12: =SUM(Donation_cash_80GGA) -> 0 | N12: =SUM(Donation_other_80GGA) -> 0 | O12: =IF(BacValue=1,0,SUM(Donation_total_80GGA)) -> 0 | P12: =IF(BacValue=1,0,SUM(Donation_Eligible_80GGA)) -> 0
C13: (Do not delete blank rows)

Sheet 80GGC (hidden)
C3: Schedule 80GGC | E3: Details of contribution made to political parties
D5: Sl.No. | E5: Date | F5: Amount of Contribution | I5: Eligible Amount of contribution | J5: Transaction Reference number for UPI transfer / Cheque number/IMPS/NEFT/RTGS reference number | K5: IFSC code of Bank
F6: Contribution in Cash | G6: Contribution in Other Mode | H6: Total Contribution
D7: 1 | H7: =MAX(SUM(F7,G7),0) -> 0 | I7: =MIN(SUM(IF(F7>0,0,F7),G7),TOTAL_INCOME) -> 0 | Q7: =IF(K7<>"",VLOOKUP(MID(K7,1,4),IFSCBank,2,FALSE)) -> FALSE | S7: =IF(F7>0,1,0) -> 0
D8: =D7+1 -> 2 | H8: =MAX(SUM(F8,G8),0) -> 0 | I8: 0 | Q8: FALSE | S8: =IF(F8>0,0,0) -> 0
D9: =D8+1 -> 3 | H9: 0 | I9: 0 | Q9: FALSE | S9: 0
D10: 4 | H10: 0 | I10: 0 | Q10: FALSE | S10: 0
D11: 5 | H11: 0 | I11: 0 | Q11: FALSE | S11: 0
D12: 6 | H12: =MAX(SUM(F12,G12),0) -> 0 | I12: =MIN(SUM(IF(F12>0,0,F12),G12),TOTAL_INCOME) -> 0 | Q12: =IF(K12<>"",VLOOKUP(MID(K12,1,4),IFSCBank,2,FALSE)) -> FALSE | S12: =IF(F12>0,0,0) -> 0
D13: 7 | H13: =MAX(SUM(F13,G13),0) -> 0 | I13: =MIN(SUM(IF(F13>0,0,F13),G13),TOTAL_INCOME) -> 0 | Q13: =IF(K13<>"",VLOOKUP(MID(K13,1,4),IFSCBank,2,FALSE)) -> FALSE | S13: =IF(F13>0,0,0) -> 0
D14: 8 | H14: =MAX(SUM(F14,G14),0) -> 0 | I14: =MIN(SUM(IF(F14>0,0,F14),G14),TOTAL_INCOME) -> 0 | Q14: =IF(K14<>"",VLOOKUP(MID(K14,1,4),IFSCBank,2,FALSE)) -> FALSE | S14: =IF(F14>0,0,0) -> 0
D16: Total Contribution | F16: =SUM(Donationincash_80GGC) -> 0 | G16: =SUM(Donationinothermode_80GGC) -> 0 | H16: =SUM(TotalDonation_80GGC) -> 0 | I16: =IF(TOTAL_INCOME<0,0,SUM(EligibleAmountofDonation_80GGC)) -> 0
C17: (Do not delete blank rows)

Sheet 80U-80DD (hidden)
C3: Schedule 80U | D3: Details of deduction in case of a person with disability
C4: Nature of disability | D4: Type of disability | E4: Amount of deduction | F4: Ack. No. of Form 10IA filed | G4: UDID Number (If available)
C5: (Select) | D5: (Select) | E5: =Naturedisability_80U_v -> 0
S6: =MIN(IF(MID(Naturedisability_80U,1,1)="1",75000,IF(MID(Naturedisability_80U,1,1)="2",125000)),T6) -> 0 | T6: =MAX(IncD.GrossTotIncome,0) -> 4155650
N8: =IF(MID(Naturedisability_80U,1,1)="1",75000) -> FALSE
C16: Section 80DD | D16: Details of deduction in respect of maintenance including medical treatment of a dependent who is a person with disability.
C17: Nature of disability | D17: Type of disability | E17: Amount of deduction | F17: Type of dependent | G17: PAN of the dependent | H17: Aadhaar of the dependent | I17: Ack. No. of Form 10IA filed | J17: UDID Number (If available) | R17: =MIN(IF(MID(Naturedisability_80DD,1,1)="1",75000,IF(MID(Naturedisability_80DD,1,1)="2",125000)),TOTAL_INCOME_80DD) -> 0 | S17: =MAX(IncD.GrossTotIncome,0) -> 4155650
C18: (Select) | D18: (Select) | E18: =Naturedisability_80DD_v -> 0 | F18: (Select)

Sheet 80C (hidden)
B2: Section 80C | C2: Deduction in respect of life insurance premia, deferred annuity, contributions to provident fund etc. under section 80C
C3: Sl. No. | D3: Nature of payment | E3: Amount eligible for deduction u/s 80C | F3: Policy number or Document Identification number
D4: (i) | E4: (i) | F4: (ii)
C5: 1 | E5: 150000 | F5: 46798732013
C6: =C5+1 -> 2
C7: =C6+1 -> 3
C8: 4
C10: Total of Deduction u/s 80C | F10: =SUM(Amount.80C) -> 150000
B16: Section 80CCC | C16: Payment in respect Pension Fund
C17: Sl. No. | D17: Name of the insurer | E17: Policy document number | F17: Deduction u/s 80CCC
D18: (i) | E18: (ii) | F18: (iii)
C19: 1
C20: =C19+1 -> 2
C21: =C20+1 -> 3
C22: 4
C24: Total of "Deduction u/s 80CCC" | F24: =SUM(Amount.80CCC) -> 0

Sheet 80E_80EE_80EEA_80EEB (hidden)
B2: Section 80E | C2: Interest on loan taken for higher education
C3: Sl. No. | D3: Loan taken from | E3: IFSC code of the bank from which the loan is taken | F3: PAN of the Institution from which the loan is taken. | G3: Name of the bank/ Institution from which the loan is taken | H3: Loan Account Number of the Bank/Institution | I3: Date of sanction of loan | J3: Total amount of loan | K3: Loan outstanding as on last date of financial year | L3: Interest u/s 80E
D4: (i) | E4: (iia) | F4: (iib) | G4: (ii) | H4: (iii) | I4: (iv) | J4: (v) | K4: (vi) | L4: (vii)
C5: 1 | D5: (Select)
C6: =C5+1 -> 2 | D6: (Select)
C8: Total of Interest u/s 80E | L8: =SUM(Intrst.80E) -> 0
B13: Section 80EE | C13: Interest on loan taken for residential house property
C14: Value of the residential house property
C15: Sl. No. | D15: Loan taken from | E15: IFSC code of the bank from which the loan is taken | F15: PAN of the Institution from which the loan is taken. | G15: Name of the bank/ Institution from which the loan is taken | H15: Loan Account Number of the Bank/Institution | I15: Date of Sanction of loan | J15: Total amount of loan | K15: Loan outstanding as on last date of financial year | L15: Interest u/s 80EE
D16: (i) | E16: (iia) | F16: (iib) | G16: (ii) | H16: (iii) | I16: (iv) | J16: (v) | K16: (vi) | L16: (vii)
C17: 1 | D17: (Select) | W17: =SUM(loanAmt.80EE) -> 0 | X17: =TRIM(G17)&"_"&TRIM(H17)&"_"&TRIM(I17)&"_"&TRIM(J17) -> ___
C18: =C17+1 -> 2 | D18: (Select) | X18: =TRIM(G18)&"_"&TRIM(H18)&"_"&TRIM(I18)&"_"&TRIM(J18) -> ___
C20: Total of Interest u/s 80EE | L20: =SUM(Intrst.80EE) -> 0
B25: Section 80EEA | C25: Deduction in respect of interest on loan taken for certain house property
C26: Stamp Value of residential house property
C27: Sl. No. | D27: Loan taken from | E27: IFSC code of the bank from which the loan is taken | F27: PAN of the Institution from which the loan is taken. | G27: Name of the bank/ Institution from which the loan is taken | H27: Loan Account Number of the Bank/Institution | I27: Date of sanction of loan | J27: Total amount of loan | K27: Loan outstanding as on last date of financial year | L27: Interest u/s 80EEA
D28: (i) | E28: (iia) | F28: (iib) | G28: (ii) | H28: (iii) | I28: (iv) | J28: (v) | K28: (vi) | L28: (vii)
C29: 1 | D29: (Select) | W29: =TRIM(G29)&"_"&TRIM(H29)&"_"&TRIM(I29)&"_"&TRIM(J29) -> ___
C30: =C29+1 -> 2 | D30: (Select) | W30: =TRIM(G30)&"_"&TRIM(H30)&"_"&TRIM(I30)&"_"&TRIM(J30) -> ___
C32: Total of Interest u/s 80EEA | L32: =SUM(Intrst.80EEA) -> 0
B37: Section 80EEB | C37: Deduction in respect of interest Paid on purchase of electric vehicle
C38: Sl. No. | D38: Loan taken from | E38: IFSC code of the bank from which the loan is taken | F38: PAN of the Institution from which the loan is taken. | G38: Name of the bank/ Institution from which the loan is taken | H38: Loan Account Number of the Bank/Institution | I38: Date of sanction of loan | J38: Total amount of loan | K38: Loan outstanding as on last date of financial year | L38: Vehicle registration number | M38: Interest u/s 80EEB
D39: (i) | E39: (iia) | F39: (iib) | G39: (ii) | H39: (iii) | I39: (iv) | J39: (v) | K39: (vi) | L39: (vii) | M39: (viii)
C40: 1 | D40: (Select)
C41: =C40+1 -> 2 | D41: (Select)
C43: Total of Interest u/s 80EEB | M43: =SUM(Intrst.80EEB) -> 0

Sheet BankCode (hidden)
A1: ABHY | B1: ABHYUDAYA COOPERATIVE BANK LIMITED
A2: ABPB | B2: ADITYA BIRLA IDEA PAYMENTS BANK
A3: ADCB | B3: ABU DHABI COMMERCIAL BANK
A4: ADCC | B4: THE AKOLA DISTRICT CENTRAL COOPERATIVE BANK
A5: AIRP | B5: AIRTEL PAYMENTS BANK LIMITED
A6: AJHC | B6: AMBARNATH JAIHIND COOP BANK LTD AMBARNATH
A7: AKJB | B7: AKOLA JANATA COMMERCIAL COOPERATIVE BANK
A8: ALLA | B8: ALLAHABAD BANK
A9: AMCB | B9: AHMEDABAD MERCANTILE COOPERATIVE BANK
A10: AMDN | B10: AHMEDNAGAR MERCHANTS CO-OP BANK LTD
A11: ANDB | B11: ANDHRA BANK
A12: ANZB | B12: AUSTRALIA AND NEW ZEALAND BANKING GROUP LIMITED
A13: APBL | B13: THE ANDHRA PRADESH STATE COOPERATIVE BANK LIMITED
A14: APGB | B14: ANDHRA PRAGATHI GRAMEENA BANK
A15: APGV | B15: ANDHRA PRADESH GRAMEENA VIKAS BANK
A16: APMC | B16: THE A.P. MAHESH COOPERATIVE URBAN BANK LIMITED
A17: ASBL | B17: APNA SAHAKARI BANK LIMITED
A18: AUBL | B18: AU SMALL FINANCE BANK LIMITED
A19: AUCB | B19: ALMORA URBAN COOPERATIVE BANK LIMITED
A20: BACB | B20: BASSEIN CATHOLIC COOPERATIVE BANK LIMITED
A21: BARA | B21: THE BARAMATI SAHAKARI BANK LTD
A22: BARB | B22: BANK OF BARODA
A23: BARC | B23: BARCLAYS BANK
A24: BBKM | B24: BANK OF BAHARAIN AND KUWAIT BSC
A25: BCBM | B25: BHARAT COOPERATIVE BANK MUMBAI LIMITED
A26: BCEY | B26: BANK OF CEYLON
A27: BDBL | B27: BANDHAN BANK LIMITED
A28: BKDN | B28: DENA BANK
A29: BKID | B29: BANK OF INDIA
A30: BNPA | B30: B N P PARIBAS
A31: BNSB | B31: BHAGINI NIVEDITA SAHAKARI BANK LTD PUNE
A32: BOFA | B32: BANK OF AMERICA
A33: BOTM | B33: MUFG BANK, LTD
A34: CBIN | B34: CENTRAL BANK OF INDIA
A35: CCBL | B35: CITIZEN CREDIT COOPERATIVE BANK LIMITED
A36: CHAS | B36: JP MORGAN BANK
A37: CITI | B37: CITI BANK
A38: CIUB | B38: CITY UNION BANK LIMITED
A39: CLBL | B39: CAPITAL SMALL FINANCE BANK LIMITED
A40: CNRB | B40: CANARA BANK
A41: CORP | B41: CORPORATION BANK
A42: COSB | B42: THE COSMOS CO OPERATIVE BANK LIMITED
A43: CRES | B43: CREDIT SUISEE AG
A44: CRLY | B44: CREDIT AGRICOLE CORPORATE AND INVESTMENT BANK CALYON BANK
A45: CRUB | B45: SHRI CHHATRAPATI RAJASHRI SHAHU URBAN COOPERATIVE BANK LIMITED
A46: CSBK | B46: CATHOLIC SYRIAN BANK LIMITED
A47: CTCB | B47: CHINATRUST COMMERCIAL BANK LIMITED
A48: DBSS | B48: DBS BANK INDIA LIMITED
A49: DBSS | B49: DEVELOPMENT BANK OF SINGAPORE
A50: DCBL | B50: DCB BANK LIMITED
A51: DEOB | B51: DEOGIRI NAGARI SAHAKARI BANK LTD. AURANGABAD
A52: DEUT | B52: DEUSTCHE BANK
A53: DICG | B53: DEPOSIT INSURANCE AND CREDIT GUARANTEE CORPORATION
A54: DLSC | B54: THE DELHI STATE COOPERATIVE BANK LIMITED
A55: DLXB | B55: DHANALAKSHMI BANK
A56: DMKJ | B56: DMK JAOLI BANK
A57: DNSB | B57: DOMBIVLI NAGARI SAHAKARI BANK LIMITED
A58: DOHB | B58: DOHA BANK QSC
A59: DOHB | B59: DOHA BANK
A60: DURG | B60: DURGAPUR STEEL PEOPLES CO-OPERATIVE BANK LTD
A61: EBIL | B61: EMIRATES NBD BANK P J S C
A62: EIBI | B62: EXPORT IMPORT BANK OF INDIA
A63: ESFB | B63: EQUITAS SMALL FINANCE BANK LIMITED
A64: ESMF | B64: ESAF SMALL FINANCE BANK LIMITED
A65: FDRL | B65: FEDERAL BANK
A66: FINO | B66: FINO PAYMENTS BANK
A67: FIRN | B67: FIRSTRAND BANK LIMITED
A68: FSFB | B68: FINCARE SMALL FINANCE BANK LTD
A69: GBCB | B69: THE GREATER BOMBAY COOPERATIVE BANK LIMITED
A70: GDCB | B70: THE GADCHIROLI DISTRICT CENTRAL COOPERATIVE BANK LIMITED
A71: GSCB | B71: THE GUJARAT STATE COOPERATIVE BANK LIMITED
A72: HARC | B72: HARYANA STATE COOPERATIVE BANK
A73: HCBL | B73: THE HASTI COOP BANK LTD
A74: HDFC | B74: HDFC BANK
A75: HPSC | B75: HIMACHAL PRADESH STATE COOPERATIVE BANK LTD
A76: HSBC | B76: HSBC BANK
A77: HVBK | B77: WOORI BANK
A78: IBBK | B78: PT BANK MAYBANK INDONESIA TBK
A79: IBKL | B79: IDBI BANK
A80: IBKO | B80: INDUSTRIAL BANK OF KOREA
A81: ICBK | B81: INDUSTRIAL AND COMMERCIAL BANK OF CHINA LIMITED
A82: ICIC | B82: ICICI BANK LIMITED
A83: IDFB | B83: IDFC First Bank Ltd
A84: IDIB | B84: INDIAN BANK
A85: IDUK | B85: IDUKKI DISTRICT CO OPERATIVE BANK LTD
A86: INDB | B86: INDUSIND BANK
A87: IOBA | B87: INDIAN OVERSEAS BANK
A88: IPOS | B88: INDIA POST PAYMENT BANK
A89: ITBL | B89: Irinjalakuda Town Co-Operative Bank Ltd
A90: JAKA | B90: JAMMU AND KASHMIR BANK LIMITED
A91: JANA | B91: JANASEVA SAHAKARI BANK LIMITED
A92: JASB | B92: JANASEVA SAHAKARI BANK BORIVLI LIMITED
A93: JIOP | B93: JIO PAYMENTS BANK LIMITED
A94: JJSB | B94: JALGAON JANATA SAHAKARI BANK LIMITED
A95: JPCB | B95: THE JALGAON PEOPELS COOPERATIVE BANK LIMITED
A96: JSBL | B96: JANAKALYAN SAHAKARI BANK LIMITED
A97: JSBP | B97: JANATA SAHAKARI BANK LIMITED
A98: JSFB | B98: JANA SMALL FINANCE BANK LTD
A99: KACE | B99: THE KANGRA CENTRAL COOPERATIVE BANK LIMITED
A100: KAIJ | B100: KALLAPPANNA AWADE ICHALKARANJI JANATA SAHAKARI BANK LIMITED
A101: KANG | B101: THE KANGRA COOPERATIVE BANK LIMITED
A102: KARB | B102: KARNATAKA BANK LIMITED
A103: KCCB | B103: KALUPUR COMMERCIAL COOPERATIVE BANK
A104: KDCB | B104: KOZHIKODE DISTRICT COOPERATIAVE BANK LTD
A105: KGRB | B105: KAVERI GRAMEENA BANK
A106: KJSB | B106: KALYAN JANATA SAHAKARI BANK
A107: KKBK | B107: KOTAK MAHINDRA BANK LIMITED
A108: KLGB | B108: KERALA GRAMIN BANK
A109: KNSB | B109: THE KURMANCHAL NAGAR SAHAKARI BANK LIMITED
A110: KOEX | B110: KEB Hana Bank
A111: KRTH | B111: KRUNG THAI BANK PCL
A112: KSCB | B112: THE KARANATAKA STATE COOPERATIVE APEX BANK LIMITED
A113: KUCB | B113: THE KARAD URBAN COOPERATIVE BANK LIMITED
A114: KVBL | B114: KARUR VYSYA BANK
A115: KVGB | B115: KARNATAKA VIKAS GRAMEENA BANK
A116: LAVB | B116: LAXMI VILAS BANK
A117: MAHB | B117: BANK OF MAHARASHTRA
A118: MAHG | B118: Maharashtra Gramin Bank
A119: MCBL | B119: GS Mahanagar Co-operative Bank Limited, Mumbai
A120: MDCB | B120: THE MUMBAI DISTRICT CENTRAL COOPERATIVE BANK LIMITED
A121: MHCB | B121: MIZUHO BANK LTD
A122: MSBL | B122: Mahesh Sahakari Bank Ltd Pune
A123: MSCI | B123: MAHARASHTRA STATE COOPERATIVE BANK
A124: MSHQ | B124: MASHREQBANK PSC
A125: MSNU | B125: THE MEHSANA URBAN COOPERATIVE BANK
A126: MUBL | B126: THE MUNICIPAL COOPERATIVE BANK LIMITED
A127: MVCB | B127: SIR M VISVESVARAYA CO OPERATIVE BANK LTD
A128: NATA | B128: NATIONAL AUSTRALIA BANK LIMITED
A129: NBAD | B129: FIRST ABU DHABI BANK PJSC
A130: NBRD | B130: NATIONAL BANK FOR AGRICULTURE AND RURAL DEVELOPMENT
A131: NESF | B131: NORTH EAST SMALL FINANCE BANK LIMITED
A132: NGSB | B132: NAGPUR NAGARIK SAHAKARI BANK LIMITED
A133: NICB | B133: NEW INDIA COOPERATIVE BANK LIMITED
A134: NJBK | B134: NAV JEEVAN CO OP BANK LTD
A135: NKGS | B135: NKGSB COOPERATIVE BANK LIMITED
A136: NMCB | B136: THE NASIK MERCHANTS COOPERATIVE BANK LIMITED
A137: NNSB | B137: NUTAN NAGARIK SAHAKARI BANK LIMITED
A138: NOSC | B138: THE BANK OF NOVA SCOTIA
A139: NSPB | B139: NSDL Payments Bank Limited
A140: NTBL | B140: THE NAINITAL BANK LIMITED
A141: NUCB | B141: NAGAR URBAN CO OPERATIVE BANK
A142: NVNM | B142: THE NAVNIRMAN CO-OPERATIVE BANK LIMITED
A143: ORBC | B143: ORIENTAL BANK OF COMMERCE
A144: PJSB | B144: G P PARSIK BANK
A145: PKGB | B145: PRAGATHI KRISHNA GRAMIN BANK
A146: PMCB | B146: PUNJAB AND MAHARSHTRA COOPERATIVE BANK
A147: PMEC | B147: PRIME COOPERATIVE BANK LIMITED
A148: PRTH | B148: PRATHAMA BANK
A149: PSIB | B149: PUNJAB AND SIND BANK
A150: PUCB | B150: THE PANDHARPUR URBAN CO OP. BANK LTD. PANDHARPUR
A151: PUNB | B151: PUNJAB NATIONAL BANK
A152: PYTM | B152: PAYTM PAYMENTS BANK LTD
A153: QNBA | B153: QATAR NATIONAL BANK SAQ
A154: RABO | B154: RABOBANK INTERNATIONAL
A155: RATN | B155: RBL Bank Limited
A156: RBIH | B156: IDRBT
A157: RBIS | B157: RESERVE BANK OF INDIA , PAD
A158: RBIS | B158: RESERVE BANK OF INDIA, PAD
A159: RBIS | B159: RBI PAD, AHMEDABAD
A160: RBIS | B160: RESERVE BANK OF INDIA
A161: RNSB | B161: RAJKOT NAGRIK SAHAKARI BANK LIMITED
A162: RRBP | B162: RAJARAMBAPU SAHAKARI BANK LIMITED
A163: RSBL | B163: RAJGURUNAGAR SAHAKARI BANK LIMITED
A164: RSCB | B164: THE RAJASTHAN STATE COOPERATIVE BANK LIMITED
A165: SABR | B165: SBER BANK
A166: SAHE | B166: SAHEBRAO DESHMUKH COOPERATIVE BANK LIMITED
A167: SANT | B167: SANT SOPANKAKA SAHAKARI BANK LTD
A168: SBIN | B168: STATE BANK OF INDIA
A169: SBLS | B169: SAMARTH SAHAKARI BANK LTD
A170: SCBL | B170: STANDARD CHARTERED BANK
A171: SDCB | B171: THE SURAT DISTRICT COOPERATIVE BANK LIMITED
A172: SHBK | B172: SHINHAN BANK
A173: SIBL | B173: SOUTH INDIAN BANK
A174: SIDB | B174: SMALL INDUSTRIES DEVELOPMENT BANK OF INDIA
A175: SIDC | B175: THE SINDHUDURG DISTRICT CENTRAL COOP BANK LTD
A176: SJSB | B176: SOLAPUR JANATA SAHAKARI BANK LIMITED
A177: SKSB | B177: SHIKSHAK SAHAKARI BANK LIMITED
A178: SMBC | B178: SUMITOMO MITSUI BANKING CORPORATION
A179: SMCB | B179: SHIVALIK MERCANTILE CO OPERATIVE BANK LTD
A180: SOGE | B180: SOCIETE GENERALE
A181: SPCB | B181: THE SURATH PEOPLES COOPERATIVE BANK LIMITED
A182: SRCB | B182: SARASWAT COOPERATIVE BANK LIMITED
A183: STCB | B183: SBM BANK INDIA LIMITED
A184: SUNB | B184: SURAT NATIONAL COOPERATIVE BANK LIMITED
A185: SURY | B185: SURYODAY SMALL FINANCE BANK LIMITED
A186: SUTB | B186: SUTEX COOPERATIVE BANK LIMITED
A187: SVBL | B187: THE SEVA VIKAS COOPERATIVE BANK LIMITED
A188: SVCB | B188: THE SHAMRAO VITHAL COOPERATIVE BANK
A189: SVSH | B189: Shri Veershaiv Co Op Bank Ltd
A190: SYNB | B190: SYNDICATE BANK
A191: TBSB | B191: THE THANE BHARAT SAHAKARI BANK LIMITED
A192: TDCB | B192: THE THANE DISTRICT CENTRAL COOPERATIVE BANK LIMITED
A193: TGMB | B193: TUMKUR GRAIN MERCHANTS COOPERATIVE BANK LIMITED
A194: THRS | B194: THRISSUR DISTRICT CO-OPERATIVE BANK LTD
A195: TJSB | B195: TJSB SAHAKARI BANK LTD
A196: TJSB | B196: TJSB SAHAKARI BANK LIMITED
A197: TMBL | B197: TAMILNAD MERCANTILE BANK LIMITED
A198: TNSC | B198: THE TAMIL NADU STATE APEX COOPERATIVE BANK
A199: TSAB | B199: TELANGANA STATE COOP APEX BANK
A200: TTCB | B200: TEXTILE TRADERS CO-OPERATIVE BANK LIMITED
... 45 more rows

Sheet IFSC (hidden)
E3: ABHY0065001 | F3: MAHB0001092 | G3: HDFC0001945 | H3: NICB0000004 | I3: SBIN0016955
E4: ABHY0065002 | F4: MAHB0001093 | G4: HDFC0001944 | H4: NICB0000003 | I4: SBIN0016954
E5: ABHY0065003 | F5: MAHB0001094 | G5: HDFC0001943 | H5: NKGS0000114 | I5: SBIN0016952
E6: ABHY0065004 | F6: MAHB0001095 | G6: HDFC0001942 | H6: NKGS0000113 | I6: SBIN0016951
E7: ABHY0065005 | F7: MAHB0001096 | G7: HDFC0001941 | H7: NKGS0000112 | I7: SBIN0016950
E8: ABHY0065006 | F8: MAHB0001097 | G8: HDFC0001940 | H8: NKGS0000111 | I8: SBIN0016948
E9: ABHY0065007 | F9: MAHB0001098 | G9: HDFC0001939 | H9: NKGS0000110 | I9: SBIN0016947
E10: ABHY0065008 | F10: MAHB0001099 | G10: HDFC0001938 | H10: NKGS0000109 | I10: SBIN0016944
E11: ABHY0065009 | F11: MAHB0001100 | G11: HDFC0001937 | H11: NKGS0000108 | I11: SBIN0016943
E12: ABHY0065010 | F12: MAHB0001101 | G12: HDFC0001936 | H12: NKGS0000107 | I12: SBIN0016942
E13: ABHY0065011 | F13: MAHB0001102 | G13: HDFC0001935 | H13: NKGS0000104 | I13: SBIN0016940
E14: ABHY0065012 | F14: MAHB0001103 | G14: HDFC0001934 | H14: NKGS0000099 | I14: SBIN0016939
E15: ABHY0065013 | F15: MAHB0001104 | G15: HDFC0001933 | H15: NKGS0000097 | I15: SBIN0016938
E16: ABHY0065014 | F16: MAHB0001105 | G16: HDFC0001932 | H16: NKGS0000096 | I16: SBIN0016937
E17: ABHY0065015 | F17: MAHB0001106 | G17: HDFC0001931 | H17: NKGS0000095 | I17: SBIN0016936
E18: ABHY0065016 | F18: MAHB0001107 | G18: HDFC0001930 | H18: NKGS0000094 | I18: SBIN0016935
E19: ABHY0065017 | F19: MAHB0001108 | G19: HDFC0001929 | H19: NKGS0000093 | I19: SBIN0016934
E20: ABHY0065018 | F20: MAHB0001109 | G20: HDFC0001928 | H20: NKGS0000092 | I20: SBIN0016933
E21: ABHY0065019 | F21: MAHB0001110 | G21: HDFC0001927 | H21: NKGS0000091 | I21: SBIN0016932
E22: ABHY0065020 | F22: MAHB0001111 | G22: HDFC0001926 | H22: NKGS0000090 | I22: SBIN0016931
E23: ABHY0065021 | F23: MAHB0001112 | G23: HDFC0001925 | H23: NKGS0000089 | I23: SBIN0016930
E24: ABHY0065022 | F24: MAHB0001113 | G24: HDFC0001924 | H24: NKGS0000088 | I24: SBIN0016928
E25: ABHY0065023 | F25: MAHB0001114 | G25: HDFC0001923 | H25: NKGS0000087 | I25: SBIN0016927
E26: ABHY0065024 | F26: MAHB0001115 | G26: HDFC0001922 | H26: NKGS0000086 | I26: SBIN0016926
E27: ABHY0065025 | F27: MAHB0001116 | G27: HDFC0001921 | H27: NKGS0000085 | I27: SBIN0016925
E28: ABHY0065026 | F28: MAHB0001117 | G28: HDFC0001920 | H28: NKGS0000084 | I28: SBIN0016923
E29: ABHY0065027 | F29: MAHB0001118 | G29: HDFC0001919 | H29: NKGS0000083 | I29: SBIN0016922
E30: ABHY0065028 | F30: MAHB0001119 | G30: HDFC0001918 | H30: NKGS0000082 | I30: SBIN0016921
E31: ABHY0065029 | F31: MAHB0001120 | G31: HDFC0001917 | H31: NKGS0000081 | I31: SBIN0016920
E32: ABHY0065030 | F32: MAHB0001121 | G32: HDFC0001916 | H32: NKGS0000080 | I32: SBIN0016919
E33: ABHY0065031 | F33: MAHB0001122 | G33: HDFC0001915 | H33: NKGS0000079 | I33: SBIN0016917
E34: ABHY0065032 | F34: MAHB0001123 | G34: HDFC0001914 | H34: NKGS0000078 | I34: SBIN0016916
E35: ABHY0065034 | F35: MAHB0001124 | G35: HDFC0001913 | H35: NKGS0000077 | I35: SBIN0016915
E36: ABHY0065035 | F36: MAHB0001125 | G36: HDFC0001912 | H36: NKGS0000076 | I36: SBIN0016913
E37: ABHY0065036 | F37: MAHB0001126 | G37: HDFC0001911 | H37: NKGS0000075 | I37: SBIN0016912
E38: ABHY0065037 | F38: MAHB0001127 | G38: HDFC0001910 | H38: NKGS0000074 | I38: SBIN0016909
E39: ABHY0065038 | F39: MAHB0001128 | G39: HDFC0001909 | H39: NKGS0000073 | I39: SBIN0016908
E40: ABHY0065039 | F40: MAHB0001129 | G40: HDFC0001908 | H40: NKGS0000072 | I40: SBIN0016907
E41: ABHY0065040 | F41: MAHB0001130 | G41: HDFC0001907 | H41: NKGS0000071 | I41: SBIN0016906
E42: ABHY0065041 | F42: MAHB0001131 | G42: HDFC0001906 | H42: NKGS0000070 | I42: SBIN0016905
E43: ABHY0065042 | F43: MAHB0001132 | G43: HDFC0001905 | H43: NKGS0000069 | I43: SBIN0016904
E44: ABHY0065043 | F44: MAHB0001133 | G44: HDFC0001904 | H44: NKGS0000068 | I44: SBIN0016903
E45: ABHY0065044 | F45: MAHB0001134 | G45: HDFC0001903 | H45: NKGS0000067 | I45: SBIN0016902
E46: ABHY0065045 | F46: MAHB0001135 | G46: HDFC0001902 | H46: NKGS0000066 | I46: SBIN0016901
E47: ABHY0065046 | F47: MAHB0001136 | G47: HDFC0001901 | H47: NKGS0000065 | I47: SBIN0016900
E48: ABHY0065047 | F48: MAHB0001137 | G48: HDFC0001900 | H48: NKGS0000064 | I48: SBIN0016899
E49: ABHY0065048 | F49: MAHB0001138 | G49: HDFC0001899 | H49: NKGS0000063 | I49: SBIN0016898
E50: ABHY0065049 | F50: MAHB0001139 | G50: HDFC0001898 | H50: NKGS0000062 | I50: SBIN0016897
E51: ABHY0065050 | F51: MAHB0001140 | G51: HDFC0001897 | H51: NKGS0000061 | I51: SBIN0016896
E52: ABHY0065051 | F52: MAHB0001141 | G52: HDFC0001896 | H52: NKGS0000060 | I52: SBIN0016895
E53: ABHY0065052 | F53: MAHB0001142 | G53: HDFC0001895 | H53: NKGS0000059 | I53: SBIN0016894
E54: ABHY0065053 | F54: MAHB0001143 | G54: HDFC0001894 | H54: NKGS0000058 | I54: SBIN0016893
E55: ABHY0065054 | F55: MAHB0001144 | G55: HDFC0001893 | H55: NKGS0000057 | I55: SBIN0016892
E56: ABHY0065055 | F56: MAHB0001146 | G56: HDFC0001892 | H56: NKGS0000056 | I56: SBIN0016891
E57: ABHY0065056 | F57: MAHB0001147 | G57: HDFC0001891 | H57: NKGS0000055 | I57: SBIN0016890
E58: ABHY0065057 | F58: MAHB0001148 | G58: HDFC0001890 | H58: NKGS0000054 | I58: SBIN0016889
E59: ABHY0065058 | F59: MAHB0001149 | G59: HDFC0001889 | H59: NKGS0000053 | I59: SBIN0016888
E60: ABHY0065059 | F60: MAHB0001150 | G60: HDFC0001888 | H60: NKGS0000052 | I60: SBIN0016887
E61: ABHY0065060 | F61: MAHB0001151 | G61: HDFC0001887 | H61: NKGS0000051 | I61: SBIN0016886
E62: ABHY0065061 | F62: MAHB0001152 | G62: HDFC0001886 | H62: NKGS0000050 | I62: SBIN0016884
E63: ABHY0065062 | F63: MAHB0001153 | G63: HDFC0001885 | H63: NKGS0000049 | I63: SBIN0016883
E64: ABHY0065063 | F64: MAHB0001154 | G64: HDFC0001884 | H64: NKGS0000048 | I64: SBIN0016882
E65: ABHY0065064 | F65: MAHB0001155 | G65: HDFC0001883 | H65: NKGS0000047 | I65: SBIN0016881
E66: ABHY0065065 | F66: MAHB0001156 | G66: HDFC0001882 | H66: NKGS0000046 | I66: SBIN0016880
E67: ABHY0065066 | F67: MAHB0001157 | G67: HDFC0001881 | H67: NKGS0000045 | I67: SBIN0016879
E68: ABHY0065067 | F68: MAHB0001158 | G68: HDFC0001880 | H68: NKGS0000044 | I68: SBIN0016878
E69: ABHY0065068 | F69: MAHB0001159 | G69: HDFC0001879 | H69: NKGS0000043 | I69: SBIN0016877
E70: ABHY0065069 | F70: MAHB0001160 | G70: HDFC0001878 | H70: NKGS0000042 | I70: SBIN0016876
E71: ABHY0065070 | F71: MAHB0001161 | G71: HDFC0001877 | H71: NKGS0000041 | I71: SBIN0016875
E72: ABHY0065071 | F72: MAHB0001162 | G72: HDFC0001876 | H72: NKGS0000040 | I72: SBIN0016874
E73: ABHY0065072 | F73: MAHB0001163 | G73: HDFC0001875 | H73: NKGS0000039 | I73: SBIN0016873
E74: ABHY0065073 | F74: MAHB0001164 | G74: HDFC0001874 | H74: NKGS0000038 | I74: SBIN0016872
E75: ABHY0065074 | F75: MAHB0001165 | G75: HDFC0001873 | H75: NKGS0000037 | I75: SBIN0016871
E76: ABHY0065075 | F76: MAHB0001166 | G76: HDFC0001872 | H76: NKGS0000036 | I76: SBIN0016870
E77: ABHY0065076 | F77: MAHB0001167 | G77: HDFC0001871 | H77: NKGS0000035 | I77: SBIN0016869
E78: ABHY0065077 | F78: MAHB0001168 | G78: HDFC0001870 | H78: NKGS0000034 | I78: SBIN0016868
E79: ABHY0065102 | F79: MAHB0001169 | G79: HDFC0001869 | H79: NKGS0000033 | I79: SBIN0016867
E80: ABHY0065103 | F80: MAHB0001170 | G80: HDFC0001868 | H80: NKGS0000032 | I80: SBIN0016866
E81: ABHY0065104 | F81: MAHB0001171 | G81: HDFC0001867 | H81: NKGS0000031 | I81: SBIN0016865
E82: ABHY0065105 | F82: MAHB0001172 | G82: HDFC0001866 | H82: NKGS0000030 | I82: SBIN0016864
E83: ABHY0065106 | F83: MAHB0001173 | G83: HDFC0001865 | H83: NKGS0000029 | I83: SBIN0016863
E84: ABHY0065107 | F84: MAHB0001174 | G84: HDFC0001864 | H84: NKGS0000028 | I84: SBIN0016862
E85: ABHY0065108 | F85: MAHB0001175 | G85: HDFC0001863 | H85: NKGS0000027 | I85: SBIN0016861
E86: ABHY0065109 | F86: MAHB0001176 | G86: HDFC0001862 | H86: NKGS0000026 | I86: SBIN0016860
E87: ABHY0065110 | F87: MAHB0001177 | G87: HDFC0001861 | H87: NKGS0000025 | I87: SBIN0016859
E88: ABHY0065111 | F88: MAHB0001178 | G88: HDFC0001860 | H88: NKGS0000024 | I88: SBIN0016858
E89: ABHY0065112 | F89: MAHB0001179 | G89: HDFC0001859 | H89: NKGS0000023 | I89: SBIN0016857
E90: ABHY0065113 | F90: MAHB0001180 | G90: HDFC0001858 | H90: NKGS0000022 | I90: SBIN0016856
E91: ABHY0065114 | F91: MAHB0001181 | G91: HDFC0001857 | H91: NKGS0000021 | I91: SBIN0016855
E92: ABHY0065115 | F92: MAHB0001182 | G92: HDFC0001856 | H92: NKGS0000020 | I92: SBIN0016854
E93: ABHY0065116 | F93: MAHB0001183 | G93: HDFC0001855 | H93: NKGS0000019 | I93: SBIN0016853
E94: ABHY0065117 | F94: MAHB0001184 | G94: HDFC0001854 | H94: NKGS0000018 | I94: SBIN0016850
E95: ABHY0065118 | F95: MAHB0001185 | G95: HDFC0001853 | H95: NKGS0000017 | I95: SBIN0016849
E96: ABHY0065119 | F96: MAHB0001186 | G96: HDFC0001852 | H96: NKGS0000016 | I96: SBIN0016848
E97: ABHY0065120 | F97: MAHB0001187 | G97: HDFC0001851 | H97: NKGS0000015 | I97: SBIN0016847
E98: ABHY0065121 | F98: MAHB0001188 | G98: HDFC0001850 | H98: NKGS0000014 | I98: SBIN0016846
E99: ABHY0065122 | F99: MAHB0001189 | G99: HDFC0001849 | H99: NKGS0000013 | I99: SBIN0016845
E100: ABHY0065123 | F100: MAHB0001190 | G100: HDFC0001848 | H100: NKGS0000012 | I100: SBIN0016844
E101: ABHY0065124 | F101: MAHB0001191 | G101: HDFC0001847 | H101: NKGS0000011 | I101: SBIN0016843
E102: ABHY0065125 | F102: MAHB0001192 | G102: HDFC0001846 | H102: NKGS0000010 | I102: SBIN0016842
E103: ABHY0065126 | F103: MAHB0001193 | G103: HDFC0001845 | H103: NKGS0000009 | I103: SBIN0016841
E104: ABHY0065201 | F104: MAHB0001194 | G104: HDFC0001844 | H104: NKGS0000008 | I104: SBIN0016840
E105: ABHY0065202 | F105: MAHB0001195 | G105: HDFC0001843 | H105: NKGS0000007 | I105: SBIN0016839
E106: ABHY0065203 | F106: MAHB0001196 | G106: HDFC0001842 | H106: NKGS0000006 | I106: SBIN0016838
E107: ABHY0065204 | F107: MAHB0001197 | G107: HDFC0001841 | H107: NKGS0000005 | I107: SBIN0016837
E108: ABHY0065205 | F108: MAHB0001198 | G108: HDFC0001840 | H108: NKGS0000004 | I108: SBIN0016836
E109: ABHY0065208 | F109: MAHB0001199 | G109: HDFC0001839 | H109: NKGS0000003 | I109: SBIN0016835
E110: ABHY0065301 | F110: MAHB0001200 | G110: HDFC0001838 | H110: NKGS0000002 | I110: SBIN0016834
E111: ABHY0065302 | F111: MAHB0001201 | G111: HDFC0001837 | H111: NKGS0000001 | I111: SBIN0016833
E112: ABHY0065304 | F112: MAHB0001202 | G112: HDFC0001836 | H112: NESF0000005 | I112: SBIN0016832
E113: ABHY0065305 | F113: MAHB0001203 | G113: HDFC0001835 | H113: NESF0000004 | I113: SBIN0016831
E114: ABHY0065306 | F114: MAHB0001204 | G114: HDFC0001834 | H114: NESF0000003 | I114: SBIN0016830
E115: ADCB0000002 | F115: MAHB0001205 | G115: HDFC0001833 | H115: NESF0000002 | I115: SBIN0016829
E116: ADCB0000001 | F116: MAHB0001206 | G116: HDFC0001832 | H116: NESF0000001 | I116: SBIN0016828
E117: AMCB0RTGS4S | F117: MAHB0001207 | G117: HDFC0001831 | H117: NMGB0000002 | I117: SBIN0016827
E118: AMCB0660036 | F118: MAHB0001208 | G118: HDFC0001830 | H118: NMGB0000003 | I118: SBIN0016826
E119: AMCB0660035 | F119: MAHB0001209 | G119: HDFC0001829 | H119: NMGB0000004 | I119: SBIN0016825
E120: AMCB0660034 | F120: MAHB0001210 | G120: HDFC0001828 | H120: NMGB0000005 | I120: SBIN0016824
E121: AMCB0660033 | F121: MAHB0001211 | G121: HDFC0001827 | H121: NMGB0000006 | I121: SBIN0016823
E122: AMCB0660032 | F122: MAHB0001212 | G122: HDFC0001826 | H122: NMGB0000007 | I122: SBIN0016822
E123: AMCB0660031 | F123: MAHB0001213 | G123: HDFC0001825 | H123: NMGB0000008 | I123: SBIN0016821
E124: AMCB0660030 | F124: MAHB0001214 | G124: HDFC0001824 | H124: NMGB0000009 | I124: SBIN0016820
E125: AMCB0660029 | F125: MAHB0001215 | G125: HDFC0001823 | H125: NMGB0000010 | I125: SBIN0016819
E126: AMCB0660028 | F126: MAHB0001216 | G126: HDFC0001822 | H126: NMGB0000011 | I126: SBIN0016818
E127: AMCB0660027 | F127: MAHB0001217 | G127: HDFC0001821 | H127: NMGB0000012 | I127: SBIN0016817
E128: AMCB0660026 | F128: MAHB0001218 | G128: HDFC0001820 | H128: NMGB0000013 | I128: SBIN0016816
E129: AMCB0660025 | F129: MAHB0001219 | G129: HDFC0001819 | H129: NMGB0000014 | I129: SBIN0016815
E130: AMCB0660024 | F130: MAHB0001220 | G130: HDFC0001818 | H130: NMGB0000015 | I130: SBIN0016814
E131: AMCB0660023 | F131: MAHB0001221 | G131: HDFC0001817 | H131: NMGB0000016 | I131: SBIN0016813
E132: AMCB0660022 | F132: MAHB0001222 | G132: HDFC0001816 | H132: NMGB0000017 | I132: SBIN0016812
E133: AMCB0660021 | F133: MAHB0001223 | G133: HDFC0001815 | H133: NMGB0000018 | I133: SBIN0016811
E134: AMCB0660020 | F134: MAHB0001224 | G134: HDFC0001814 | H134: NMGB0000019 | I134: SBIN0016810
E135: AMCB0660019 | F135: MAHB0001225 | G135: HDFC0001813 | H135: NMGB0000020 | I135: SBIN0016809
E136: AMCB0660018 | F136: MAHB0001226 | G136: HDFC0001812 | H136: NMGB0000021 | I136: SBIN0016808
E137: AMCB0660017 | F137: MAHB0001227 | G137: HDFC0001811 | H137: NMGB0000022 | I137: SBIN0016807
E138: AMCB0660016 | F138: MAHB0001228 | G138: HDFC0001810 | H138: NMGB0000023 | I138: SBIN0016806
E139: AMCB0660015 | F139: MAHB0001229 | G139: HDFC0001809 | H139: NMGB0000024 | I139: SBIN0016805
E140: AMCB0660014 | F140: MAHB0001230 | G140: HDFC0001808 | H140: NMGB0000025 | I140: SBIN0016804
E141: AMCB0660013 | F141: MAHB0001231 | G141: HDFC0001807 | H141: NMGB0000026 | I141: SBIN0016802
E142: AMCB0660012 | F142: MAHB0001232 | G142: HDFC0001806 | H142: NMGB0000027 | I142: SBIN0016801
E143: AMCB0660011 | F143: MAHB0001233 | G143: HDFC0001805 | H143: NMGB0000028 | I143: SBIN0016800
E144: AMCB0660010 | F144: MAHB0001234 | G144: HDFC0001804 | H144: NMGB0000029 | I144: SBIN0016799
E145: AMCB0660009 | F145: MAHB0001235 | G145: HDFC0001803 | H145: NMGB0000030 | I145: SBIN0016798
E146: AMCB0660008 | F146: MAHB0001236 | G146: HDFC0001802 | H146: NMGB0000031 | I146: SBIN0016797
E147: AMCB0660007 | F147: MAHB0001237 | G147: HDFC0001801 | H147: NMGB0000032 | I147: SBIN0016793
E148: AMCB0660005 | F148: MAHB0001238 | G148: HDFC0001800 | H148: NMGB0000033 | I148: SBIN0016792
E149: AMCB0660004 | F149: MAHB0001239 | G149: HDFC0001799 | H149: NMGB0000034 | I149: SBIN0016791
E150: AMCB0660003 | F150: MAHB0001240 | G150: HDFC0001798 | H150: NMGB0000035 | I150: SBIN0016790
E151: AMCB0660002 | F151: MAHB0001241 | G151: HDFC0001797 | H151: NMGB0000036 | I151: SBIN0016789
E152: AIRP0000001 | F152: MAHB0001242 | G152: HDFC0001796 | H152: NMGB0000037 | I152: SBIN0016788
E153: AKJB0000041 | F153: MAHB0001243 | G153: HDFC0001795 | H153: NMGB0000038 | I153: SBIN0016787
E154: AKJB0000040 | F154: MAHB0001244 | G154: HDFC0001794 | H154: NMGB0000039 | I154: SBIN0016786
E155: AKJB0000039 | F155: MAHB0001245 | G155: HDFC0001793 | H155: NMGB0000040 | I155: SBIN0016785
E156: AKJB0000038 | F156: MAHB0001246 | G156: HDFC0001792 | H156: NMGB0000041 | I156: SBIN0016784
E157: AKJB0000037 | F157: MAHB0001247 | G157: HDFC0001791 | H157: NMGB0000042 | I157: SBIN0016783
E158: AKJB0000036 | F158: MAHB0001248 | G158: HDFC0001790 | H158: NMGB0000043 | I158: SBIN0016782
E159: AKJB0000035 | F159: MAHB0001249 | G159: HDFC0001789 | H159: NMGB0000044 | I159: SBIN0016781
E160: AKJB0000033 | F160: MAHB0001250 | G160: HDFC0001788 | H160: NMGB0000045 | I160: SBIN0016778
E161: AKJB0000032 | F161: MAHB0001251 | G161: HDFC0001787 | H161: NMGB0000046 | I161: SBIN0016777
E162: AKJB0000031 | F162: MAHB0001252 | G162: HDFC0001786 | H162: NMGB0000047 | I162: SBIN0016776
E163: AKJB0000030 | F163: MAHB0001253 | G163: HDFC0001785 | H163: NMGB0000048 | I163: SBIN0016775
E164: AKJB0000029 | F164: MAHB0001254 | G164: HDFC0001784 | H164: NMGB0000049 | I164: SBIN0016774
E165: AKJB0000028 | F165: MAHB0001255 | G165: HDFC0001783 | H165: NMGB0000050 | I165: SBIN0016773
E166: AKJB0000027 | F166: MAHB0001256 | G166: HDFC0001782 | H166: NMGB0000051 | I166: SBIN0016772
E167: AKJB0000026 | F167: MAHB0001257 | G167: HDFC0001781 | H167: NMGB0000052 | I167: SBIN0016771
E168: AKJB0000025 | F168: MAHB0001258 | G168: HDFC0001780 | H168: NMGB0000053 | I168: SBIN0016770
E169: AKJB0000024 | F169: MAHB0001259 | G169: HDFC0001779 | H169: NMGB0000054 | I169: SBIN0016769
E170: AKJB0000023 | F170: MAHB0001260 | G170: HDFC0001778 | H170: NMGB0000055 | I170: SBIN0016768
E171: AKJB0000022 | F171: MAHB0001261 | G171: HDFC0001777 | H171: NMGB0000056 | I171: SBIN0016767
E172: AKJB0000021 | F172: MAHB0001262 | G172: HDFC0001776 | H172: NMGB0000057 | I172: SBIN0016766
E173: AKJB0000020 | F173: MAHB0001263 | G173: HDFC0001775 | H173: NMGB0000058 | I173: SBIN0016765
E174: AKJB0000019 | F174: MAHB0001264 | G174: HDFC0001774 | H174: NMGB0000059 | I174: SBIN0016764
E175: AKJB0000018 | F175: MAHB0001265 | G175: HDFC0001773 | H175: NMGB0000060 | I175: SBIN0016763
E176: AKJB0000017 | F176: MAHB0001266 | G176: HDFC0001772 | H176: NMGB0000061 | I176: SBIN0016762
E177: AKJB0000016 | F177: MAHB0001267 | G177: HDFC0001771 | H177: NMGB0000062 | I177: SBIN0016761
E178: AKJB0000015 | F178: MAHB0001268 | G178: HDFC0001770 | H178: NMGB0000063 | I178: SBIN0016760
E179: AKJB0000014 | F179: MAHB0001269 | G179: HDFC0001769 | H179: NMGB0000064 | I179: SBIN0016759
E180: AKJB0000013 | F180: MAHB0001270 | G180: HDFC0001768 | H180: NMGB0000065 | I180: SBIN0016758
E181: AKJB0000012 | F181: MAHB0001271 | G181: HDFC0001767 | H181: NMGB0000066 | I181: SBIN0016757
E182: AKJB0000011 | F182: MAHB0001272 | G182: HDFC0001766 | H182: NMGB0000067 | I182: SBIN0016756
E183: AKJB0000010 | F183: MAHB0001273 | G183: HDFC0001765 | H183: NMGB0000068 | I183: SBIN0016755
E184: AKJB0000009 | F184: MAHB0001274 | G184: HDFC0001764 | H184: NMGB0000069 | I184: SBIN0016754
E185: AKJB0000008 | F185: MAHB0001275 | G185: HDFC0001763 | H185: NMGB0000070 | I185: SBIN0016753
E186: AKJB0000007 | F186: MAHB0001276 | G186: HDFC0001762 | H186: NMGB0000071 | I186: SBIN0016752
E187: AKJB0000006 | F187: MAHB0001277 | G187: HDFC0001761 | H187: NMGB0000072 | I187: SBIN0016751
E188: AKJB0000005 | F188: MAHB0001278 | G188: HDFC0001760 | H188: NMGB0000073 | I188: SBIN0016750
E189: AKJB0000004 | F189: MAHB0001279 | G189: HDFC0001759 | H189: NMGB0000074 | I189: SBIN0016748
E190: AKJB0000003 | F190: MAHB0001280 | G190: HDFC0001758 | H190: NMGB0000075 | I190: SBIN0016747
E191: AKJB0000002 | F191: MAHB0001281 | G191: HDFC0001757 | H191: NMGB0000076 | I191: SBIN0016746
E192: AKJB0000001 | F192: MAHB0001282 | G192: HDFC0001756 | H192: NMGB0000077 | I192: SBIN0016745
E193: ALLA0AU1663 | F193: MAHB0001283 | G193: HDFC0001755 | H193: NMGB0000078 | I193: SBIN0016744
E194: ALLA0AU1662 | F194: MAHB0001284 | G194: HDFC0001754 | H194: NMGB0000079 | I194: SBIN0016743
E195: ALLA0AU1661 | F195: MAHB0001285 | G195: HDFC0001753 | H195: NMGB0000080 | I195: SBIN0016742
E196: ALLA0AU1660 | F196: MAHB0001286 | G196: HDFC0001752 | H196: NMGB0000081 | I196: SBIN0016741
E197: ALLA0AU1659 | F197: MAHB0001287 | G197: HDFC0001751 | H197: NMGB0000082 | I197: SBIN0016740
E198: ALLA0AU1658 | F198: MAHB0001288 | G198: HDFC0001750 | H198: NMGB0000083 | I198: SBIN0016739
E199: ALLA0AU1657 | F199: MAHB0001289 | G199: HDFC0001749 | H199: NMGB0000084 | I199: SBIN0016738
E200: ALLA0AU1656 | F200: MAHB0001290 | G200: HDFC0001748 | H200: NMGB0000085 | I200: SBIN0016737
E201: ALLA0AU1655 | F201: MAHB0001291 | G201: HDFC0001747 | H201: NMGB0000086 | I201: SBIN0016736
E202: ALLA0AU1654 | F202: MAHB0001292 | G202: HDFC0001746 | H202: NMGB0000087 | I202: SBIN0016735
... 4298 more rows

Sheet DataBase (hidden)
A1: DateOfProcessing | B1: =CONCATENATE(YEAR(TODAY()),"-",IF(MONTH(TODAY())<10,"0",""),MONTH(TODAY()),"-",IF(DAY(TODAY())<10,"0",""),DAY(TODAY())) -> 2025-10-06 | C1: Date Of interest calculation | F1: Capacity | H1: Selection80D | I1: Selection80DB | J1: Selection80DC | K1: Selection80DD | L1: Selection80DDB | M1: Selection80U | T1: OriginalOrRevised | V1: State | X1: RES-NOR | Z1: Country | AB1: EmployerCategory | AD1: Governed by Portugese | AF1: ReturnFileUnderSection | AL1: TypeOfAccount | AN1: Part Nature | AP1: Part Nature 1 | AR1: Part Nature 2 | AT1: RelevantClause80GGA | AV1: TAN Codes | AX1: Return Filed DD | AZ1: AY 2025 | BB1: AY 2024 | BE1: Dropdown When 115BAC is not yes in Sheet1 Income Details | BG1: Dropdown When 115BAC is not yes and Nature of employment either CG or SG in Sheet1 Income Details | BI1: Dropdown When 115BAC is not yes and Nature of employment either PCG or PSG in Sheet1 Income Details | BK1: Dropdown When 115BAC is yes in Sheet1 Income Details | BM1: Dropdown When 115BAC is yes and Nature of employment either CG or SG in Sheet1 Income Details | BO1: Dropdown When 115BAC is yes and Nature of employment either PCG or PSG in Sheet1 Income Details | BT1: Natureofdisability_list_80DD | BV1: Natureofdisability_list_80U | CC1: TCS - Collected Year | CH1: TDS2 | CJ1: TDS3 | CK1: Duplicate pincode list | CP1: All pincode list | CS1: State Code | DE1: 194B-Winning from lottery or crossword puzzle | DF1: 192-Salary-Payment to Government employees other than Indian Government employees
A2: Pwd | B2: infyxldev0152 | AX2: (Select) | AZ2: (Select) | BB2: (Select) | BT2: (Select) | BV2: (Select) | CC2: (Select) | CH2: (Select) | CJ2: (Select) | CK2: 110025 | CL2: DELHI | CM2: UTTAR PRADESH | CP2: 110001 | CQ2: DELHI | CS2: ANDAMAN AND NICOBAR ISLANDS | CT2: 01-ANDAMAN AND NICOBAR ISLANDS | DB2: Section TDS Deducted | DD2: TDS_sectionslist | DE2: 194BA-Winnings from online games | DF2: 192-Salary-Payment to employees other than Government employees
A3: Hash Key | B3: 7Z3mxclnABiXtYG | C3: TodayDate | D3: =CONCATENATE(IF(DAY(TODAY())<10,"0",""),DAY(TODAY()),"-",IF(MONTH(TODAY())<10,"0",""),MONTH(TODAY()),"-",YEAR(TODAY())) -> 06-10-2025 | F3: (Select) | H3: (Select) | I3: (Select) | J3: (Select) | K3: (Select) | L3: (Select) | M3: (Select) | O3: 1 | P3: Income Details | Q3: Y | R3: Y | T3: (Select) | U3: (Select) | V3: (Select) | X3: (Select) | Z3: (Select) | AB3: (Select) | AD3: (Select) | AF3: (Select) | AG3: (Select) | AI3: (Select) | AJ3: (Select) | AL3: (Select) | AN3: (Select) | AP3: (Select) | AR3: (Select) | AT3: (Select) | AV3: (Select) | AX3: Original Return 139(1)/139(4) | AZ3: Original Return 139(1)/139(4) | BB3: Updated return | BT3: 1-Dependent person with disability | BV3: 1-Self with disability | CC3: 2008-09 | CH3: 2008-09 | CJ3: 2017-18 | CK3: 244923 | CL3: UTTAR PRADESH | CM3: UTTARAKHAND | CP3: 110002 | CQ3: DELHI | CS3: ANDHRA PRADESH | CT3: 02-ANDHRA PRADESH | DB3: (Select) | DD3: (Select) | DE3: 194BB-Winning from horse race | DF3: 192-Salary-Payment to Indian Government employees
A4: HashIteration | B4: 1849 | C4: DateOfFiling | D4: 06/10/2025 | F4: Self | H4: 1-Self and Family (Non Senior citizen) | I4: 1-Self and Family ( senior citizen) | J4: 1-Self and family | K4: 1-Dependent Person with Disability | L4: 1-Self or Dependent | M4: 1-Self with disability | O4: 2 | P4: TDS | Q4: Y | R4: Y | T4: Original | U4: 01-ANDAMAN AND NICOBAR ISLANDS | V4: 01-ANDAMAN AND NICOBAR ISLANDS | X4: RES-Resident | Z4: 93-AFGHANISTAN | AB4: Central Government | AD4: Yes | AF4: 139(1)-On or before due date | AG4: 11 | AI4: 139(9) | AJ4: 18 | AL4: Savings | AN4: Agriculture Income (less than equal to Rs.5000) | AP4: Sec 10(5)-Leave Travel concession/assistance | AR4: Interest from Savings Bank Account | AT4: 80GGA(2)(a) Sum paid to Research Association or University, college or other institution for Scientific Research | AV4: HYD | AX4: Revised return | AZ4: Revised return | BE4: (Select) | BG4: (Select) | BI4: (Select) | BK4: (Select) | BM4: (Select) | BO4: (Select) | BT4: 2-Dependent person with severe disability | BV4: 2-Self with severe disability | CC4: 2009-10 | CH4: 2009-10 | CJ4: 2018-19 | CK4: 244924 | CL4: UTTAR PRADESH | CM4: UTTARAKHAND | CP4: 110003 | CQ4: DELHI | CS4: ARUNACHAL PRADESH | CT4: 03-ARUNACHAL PRADESH | DB4: 192A-TDS on PF withdrawal | DD4: 192-Salary-Payment to Government employees other than Indian Government employees | DE4: 194IA-TDS on Sale of immovable property
C5: DateOfFiling234A | D5: // | F5: Representative | H5: 2-Self and Family (Including Senior citizen) | I5: 2-Parents ( senior citizen) | J5: 2-Parent | K5: 2-Dependent person with Severe Disability | L5: 2-Self or Dependent- Senior Citizen | M5: 2-Self with severe disability | O5: 3 | P5: Taxes Paid and Verification | Q5: Y | R5: Y | T5: Revised | U5: 02-ANDHRA PRADESH | V5: 02-ANDHRA PRADESH | X5: NOR-Resident but not ordinarily Resident | Z5: 1001-ALAND ISLANDS | AB5: State Government | AD5: No | AF5: 139(4)-Belated | AG5: 12 | AI5: 142(1) | AJ5: 13 | AL5: Current | AN5: Sec 10(10BC) Any amount from the Central/State Govt./local authority by way of compensation on account of any disaster | AP5: Sec 10(6)-Remuneration received as an official, by whatever name called, of an embassy, high commission etc. | AR5: Interest from Deposit (Bank/Post Office/Cooperative Society) | AT5: 80GGA(2)(aa) Sum paid to Research Association or University, college or other institution for Social science or Statistical Research | AV5: VPN | AZ5: Updated return | BE5: Sec 10(5)-Leave Travel concession/assistance | BG5: Sec 10(5)-Leave Travel concession/assistance | BI5: Sec 10(5)-Leave Travel concession/assistance | BK5: Sec 10(6)-Remuneration received as an official, by whatever name called, of an embassy, high commission etc. | BM5: Sec 10(6)-Remuneration received as an official, by whatever name called, of an embassy, high commission etc. | BO5: Sec 10(6)-Remuneration received as an official, by whatever name called, of an embassy, high commission etc. | CC5: 2010-11 | CH5: 2010-11 | CJ5: 2019-20 | CK5: 247662 | CL5: UTTARAKHAND | CM5: UTTAR PRADESH | CP5: 110004 | CQ5: DELHI | CS5: ASSAM | CT5: 04-ASSAM | DB5: 193 -Interest on Securities | DD5: 192-Salary-Payment to employees other than Government employees | DE5: 194IC-Payment under specified agreement
H6: 3-Parents | I6: 3-Self and Family including parents (senior citizen) | J6: 3-Self and family and Parents | O6: 4 | P6: 80G | Q6: Y | R6: Y | T6: In response to Notice u/s 139(9) | U6: 03-ARUNACHAL PRADESH | V6: 03-ARUNACHAL PRADESH | Z6: 355-ALBANIA | AB6: Public Sector Undertaking | AF6: 139(5)-Revised | AG6: 17 | AI6: 148 | AJ6: 14 | AN6: Sec 10(10D) Any sum received under a life insurance policy, including the sum allocated by way of bonus on such policy except sum as mentioned in sub-clause (a) to (d) of Sec.10(10D) | AP6: Sec 10(7)-Allowances or perquisites paid or allowed as such outside India by the Government to a citizen of India for rendering service outside India | AR6: Interest from Income Tax Refund | AT6: 80GGA(2)(b) Sum paid to an association or institution for Rural Development | AV6: BBN | BE6: Sec 10(6)-Remuneration received as an official, by whatever name called, of an embassy, high commission etc. | BG6: Sec 10(6)-Remuneration received as an official, by whatever name called, of an embassy, high commission etc. | BI6: Sec 10(6)-Remuneration received as an official, by whatever name called, of an embassy, high commission etc. | BK6: Sec 10(7)-Allowances or perquisites paid or allowed as such outside India by the Government to a citizen of India for rendering service outside India | BM6: Sec 10(7)-Allowances or perquisites paid or allowed as such outside India by the Government to a citizen of India for rendering service outside India | BO6: Sec 10(7)-Allowances or perquisites paid or allowed as such outside India by the Government to a citizen of India for rendering service outside India | CC6: 2011-12 | CH6: 2011-12 | CJ6: 2020-21 | CK6: 396193 | CL6: GUJARAT | CM6: THE DADRA AND NAGAR HAVELI AND DAMAN AND DIU | CP6: 110005 | CQ6: DELHI | CS6: BIHAR | CT6: 05-BIHAR | DB6: 194 -Dividends | DD6: 192-Salary-Payment to Indian Government employees | DE6: 194LA-Payment of compensation on acquisition of certain immovable
F7: (Select) | H7: 4-Parents(Senior citizen) | O7: 5 | P7: BA | Q7: Y | R7: Y | U7: 04-ASSAM | V7: 04-ASSAM | Z7: 213-ALGERIA | AB7: Pensioners - Central Government | AF7: 119(2)(b)- After condonation of delay | AG7: 20 | AI7: 153C | AJ7: 16 | AN7: Sec 10(11) Statutory Provident Fund received | AP7: Sec 10(10)-Death-cum-retirement gratuity received | AR7: Family pension | AT7: 80GGA(2)(bb) Sum paid to PSU or Local Authority or an association or institution approved by the National Committee for carrying out any eligible project | AV7: BPL | BE7: Sec 10(7)-Allowances or perquisites paid or allowed as such outside India by the Government to a citizen of India for rendering service outside India | BG7: Sec 10(7)-Allowances or perquisites paid or allowed as such outside India by the Government to a citizen of India for rendering service outside India | BI7: Sec 10(7)-Allowances or perquisites paid or allowed as such outside India by the Government to a citizen of India for rendering service outside India | BK7: Sec 10(10)-Death-cum-retirement gratuity received | BM7: Sec 10(10)-Death-cum-retirement gratuity received | BO7: Sec 10(10)-Death-cum-retirement gratuity received | BT7: Typeofdependent_list | CC7: 2012-13 | CH7: 2012-13 | CJ7: 2021-22 | CK7: 396215 | CL7: THE DADRA AND NAGAR HAVELI AND DAMAN AND DIU | CM7: GUJARAT | CP7: 110006 | CQ7: DELHI | CS7: CHANDIGARH | CT7: 06-CHANDIGARH | DB7: 194A-Interest other than 'Interest on securities' | DD7: 192A-TDS on PF withdrawal | DE7: 194S-Payment of consideration for transfer of virtual digital asset by persons other than specified persons
F8: Representative | H8: 5-Self and Family including parents | U8: 05-BIHAR | V8: 05-BIHAR | Z8: 684-AMERICAN SAMOA | AB8: Pensioners - State Government | AF8: 139(8A) | AG8: 21 | AI8: 153A | AJ8: 15 | AN8: Sec 10(12) Recognized Provident Fund received | AP8: Sec 10(10A)-Commuted value of pension received | AR8: Interest accrued on contributions to provident fund to the extent taxable as per first proviso to section 10(11) | AT8: 80GGA(2)(c) Sum paid to an association or institution for Conservation of Natural Resources or for afforestation | AV8: JBP | BE8: Sec 10(10)-Death-cum-retirement gratuity received | BG8: Sec 10(10)-Death-cum-retirement gratuity received | BI8: Sec 10(10)-Death-cum-retirement gratuity received | BK8: Sec 10(10A)-Commuted value of pension received | BM8: Sec 10(10A)-Commuted value of pension received | BO8: Sec 10(10A)-Commuted value of pension received | BT8: (Select) | CC8: 2013-14 | CH8: 2013-14 | CJ8: 2022-23 | CK8: 396230 | CL8: THE DADRA AND NAGAR HAVELI AND DAMAN AND DIU | CM8: GUJARAT | CP8: 110007 | CQ8: DELHI | CS8: THE DADRA AND NAGAR HAVELI AND DAMAN AND DIU | CT8: 07-THE DADRA AND NAGAR HAVELI AND DAMAN AND DIU | DB8: 194DA-Payment in respect of life insurance policy | DD8: 193-Interest on Securities
H9: 6-Self and Family including senior citizen parents | L9: (Select) | U9: 06-CHANDIGARH | V9: 06-CHANDIGARH | Z9: 376-ANDORRA | AB9: Pensioners - Public sector undertaking | AN9: Sec 10(13) Approved superannuation fund received | AP9: Sec 10(10AA)-Earned leave encashment on Retirement | AR9: Interest accrued on contributions to provident fund to the extent taxable as per second proviso to section 10(11) | AT9: 80GGA(2)(cc) Sum paid for Afforestation, to the funds, which are notified by Central Govt. | AV9: CHE | BE9: Sec 10(10A)-Commuted value of pension received | BG9: Sec 10(10A)-Commuted value of pension received | BI9: Sec 10(10A)-Commuted value of pension received | BK9: Sec 10(10AA)-Earned leave encashment on Retirement | BM9: Sec 10(10AA)-Earned leave encashment on Retirement | BO9: Sec 10(10AA)-Earned leave encashment on Retirement | BT9: 1.Spouse | BV9: Typeofdisability_list_80U_80DD | CC9: 2014-15 | CH9: 2014-15 | CJ9: 2023-24 | CK9: 396235 | CL9: GUJARAT | CM9: THE DADRA AND NAGAR HAVELI AND DAMAN AND DIU | CP9: 110008 | CQ9: DELHI | CS9: DELHI | CT9: 09-DELHI | DB9: 194EE-Payments in respect of deposits under National Savings | DD9: 194-Dividends
H10: 7-Self(Senior citizen) & family including senior citizen parents | L10: (a) Dementia | U10: 07-DADRA AND NAGAR HAVELI | V10: 07-DADRA NAGAR AND HAVELI | Z10: 244-ANGOLA | AB10: Pensioners - Others | AN10: Sec 10(16) Scholarships granted to meet the cost of education | AP10: Sec 10(10B) First proviso - Compensation limit notified by CG in the Official Gazette | AR10: Interest accrued on contributions to provident fund to the extent taxable as per first proviso to section 10(12) | AT10: 80GGA(2)(d) Sum paid for Rural Development to the funds, which are notified by Central Govt. | AV10: CMB | BE10: Sec 10(10AA)-Earned leave encashment on Retirement | BG10: Sec 10(10AA)-Earned leave encashment on Retirement | BI10: Sec 10(10AA)-Earned leave encashment on Retirement | BK10: Sec 10(10B) First proviso - Compensation limit notified by CG in the Official Gazette | BM10: Sec 10(10C)-Amount received/receivable on voluntary retirement or termination of service | BO10: Sec 10(10C)-Amount received/receivable on voluntary retirement or termination of service | BT10: 2.Son | BV10: (Select) | CC10: 2015-16 | CH10: 2015-16 | CJ10: 2024-25 | CK10: 396240 | CL10: THE DADRA AND NAGAR HAVELI AND DAMAN AND DIU | CM10: GUJARAT | CP10: 110009 | CQ10: DELHI | CS10: GOA | CT10: 10-GOA | DB10: 194IB-Payment of rent by certain individuals or Hindu undivided | DD10: 194A-Interest other than 'Interest on securities'
L11: (b) Dystonia Musculorum Deformans | U11: 08-DAMAN AND DIU | V11: 08-DAMAN AND DIU | Z11: 1264-ANGUILLA | AB11: Others | AN11: Sec 10(17) Allowance MP/MLA/MLC | AP11: Sec 10(10B) Second proviso - Compensation under scheme approved by the Central Government | AR11: Interest accrued on contributions to provident fund to the extent taxable as per second proviso to section 10(12) | AT11: 80GGA(2)(e) Sum paid to National Urban Poverty Eradication Fund as setup and notified by Central Govt. | AV11: MRI | BE11: 10(10B) First proviso - Compensation limit notified by CG in the Official Gazette | BG11: Sec 10(10C)-Amount received/receivable on voluntary retirement or termination of service | BI11: Sec 10(10C)-Amount received/receivable on voluntary retirement or termination of service | BK11: Sec 10(10B) Second proviso - Compensation under scheme approved by the Central Government | BM11: Sec 10(10CC)-Tax paid by employer on non-monetary perquisite | BO11: Sec 10(10CC)-Tax paid by employer on non-monetary perquisite | BT11: 3.Daughter | BV11: (i) autism, cerebral palsy, or multiple disabilities | CC11: 2016-17 | CH11: 2016-17 | CK11: 503145 | CL11: TELANGANA | CM11: ANDHRA PRADESH | CP11: 110010 | CQ11: DELHI | CS11: GUJARAT | CT11: 11-GUJARAT | DB11: 194K-Income payable to a resident assessee in respect of units of a specified mutual fund or of the units of the Unit Trust of India | DD11: 194B-Winning from lottery or crossword puzzle
L12: (c) Motor Neuron Disease | U12: 09-DELHI | V12: 09-DELHI | Z12: 1010-ANTARCTICA | AB12: Not Applicable (eg. Family pension etc) | AN12: Sec 10(17A) Award instituted by Government | AP12: Sec 10(10C)-Amount received/receivable on voluntary retirement or termination of service | AR12: Any Other | AV12: DEL | BE12: 10(10B) Second proviso - Compensation under scheme approved by the Central Government | BG12: Sec 10(10CC)-Tax paid by employer on non-monetary perquisite | BI12: Sec 10(10CC)-Tax paid by employer on non-monetary perquisite | BK12: Sec 10(10C)-Amount received/receivable on voluntary retirement or termination of service | BM12: Section 10(14)(i) - Allowances referred in sub-clauses (a) to (c) of sub-rule (1) in Rule 2BB | BO12: Section 10(14)(i) - Allowances referred in sub-clauses (a) to (c) of sub-rule (1) in Rule 2BB | BT12: 4.Father | BV12: (ii) others | CC12: 2017-18 | CH12: 2017-18 | CK12: 503188 | CL12: ANDHRA PRADESH | CM12: TELANGANA | CP12: 110011 | CQ12: DELHI | CS12: HARYANA | CT12: 12-HARYANA | DB12: 194LBA(a)-Certain income in the form of interest from units of a business trust to a resident unit holder | DD12: 194BA-Winnings from online games
L13: (d) Ataxia | U13: 10-GOA | V13: 10-GOA | Z13: 1268-ANTIGUA AND BARBUDA | AN13: Sec 10(18) Pension received by winner of "Param Vir Chakra" or "Maha Vir Chakra" or "Vir Chakra" or such other gallantry award | AP13: Sec 10(10CC)-Tax paid by employer on non-monetary perquisite | AR13: Part Nature 3 | AV13: CAL | BE13: Sec 10(10C)- Amount received/receivable on voluntary retirement or termination of service | BG13: Sec 10(14)(i)-Prescribed Allowances or benefits (not in a nature of perquisite) specifically granted to meet expenses wholly, necessarily and exclusively and to the extent actually incurred, in performance of duties of office or employment | BI13: Sec 10(13A)-Allowance to meet expenditure incurred on house rent | BK13: Sec 10(10CC)-Tax paid by employer on non-monetary perquisite | BM13: Section 10(14)(ii) - Transport allowance granted to certain physically handicapped assessee | BO13: Section 10(14)(ii) - Transport allowance granted to certain physically handicapped assessee | BT13: 5.Mother | BV13: (iii) leprosy-cured | CC13: 2018-19 | CH13: 2018-19 | CK13: 503225 | CL13: TELANGANA | CM13: ANDHRA PRADESH | CP13: 110012 | CQ13: DELHI | CS13: HIMACHAL PRADESH | CT13: 13-HIMACHAL PRADESH | DB13: 194LBA(b)-Certain income in the form of dividend from units of a business trust to a resident unit holder | DD13: 194BB-Winning from horse race
L14: (e) Chorea | U14: 11-GUJARAT | V14: 11-GUJARAT | Z14: 54-ARGENTINA | AN14: Defense Medical Disability Pension | AP14: Sec 10(14)(i)-Prescribed Allowances or benefits (not in a nature of perquisite) specifically granted to meet expenses wholly, necessarily and exclusively and to the extent actually incurred, in performance of duties of office or employment | AR14: (Select) | AV14: MRT | BE14: Sec 10(10CC)-Tax paid by employer on non-monetary perquisite | BG14: Sec 10(14)(ii)-Prescribed Allowances or benefits granted to meet personal expenses in performance of duties of office or employment or to compensate him for increased cost of living | BI14: Sec 10(14)(i)-Prescribed Allowances or benefits (not in a nature of perquisite) specifically granted to meet expenses wholly, necessarily and exclusively and to the extent actually incurred, in performance of duties of office or employment | BK14: Section 10(14)(i) - Allowances referred in sub-clauses (a) to (c) of sub-rule (1) in Rule 2BB | BM14: Any Other | BO14: Any Other | BT14: 6.Brother | BV14: (iv) hearing impairment | CC14: 2019-20 | CH14: 2019-20 | CK14: 503230 | CL14: TELANGANA | CM14: ANDHRA PRADESH | CP14: 110013 | CQ14: DELHI | CS14: JAMMU AND KASHMIR | CT14: 14-JAMMU AND KASHMIR | DB14: 194LBB-Income in respect of units of investment fund | DD14: 194C-Payments to contractors and sub-contractors | DE14: 194E-Payments to non-resident sportsmen or sports associations
L15: (f) Hemiballismus | U15: 12-HARYANA | V15: 12-HARYANA | Z15: 374-ARMENIA | AN15: Sec 10(19) Armed Forces Family pension in case of death during operational duty | AP15: Sec 10(14)(ii)-Prescribed Allowances or benefits granted to meet personal expenses in performance of duties of office or employment or to compensate him for increased cost of living | AV15: AHM | BE15: Sec 10(14)(i)- Prescribed Allowances or benefits (not in a nature of perquisite) specifically granted to meet expenses wholly, necessarily and exclusively and to the extent actually incurred, in performance of duties of office or employment | BG15: Any Other | BI15: Sec 10(14)(ii)-Prescribed Allowances or benefits granted to meet personal expenses in performance of duties of office or employment or to compensate him for increased cost of living | BK15: Section 10(14)(ii) - Transport allowance granted to certain physically handicapped assessee | BM15: Exempt income received by a judge covered under the payment of salaries to Supreme Court/High Court judges Act /Rules | BT15: 7.Sister | BV15: (v) locomotor disability | CC15: 2020-21 | CH15: 2020-21 | CK15: 503235 | CL15: TELANGANA | CM15: ANDHRA PRADESH | CP15: 110014 | CQ15: DELHI | CS15: KARNATAKA | CT15: 15-KARNATAKA | DB15: 194P-Deduction of tax in case of specified senior citizen | DD15: 194D-Insurance commission | DE15: 194LB-Income by way of Interest from Infrastructure Debt fund
L16: (g) Aphasia | U16: 13-HIMACHAL PRADESH | V16: 13-HIMACHAL PRADESH | Z16: 297-ARUBA | AN16: Sec 10(26) Any income as referred to in section 10(26) | AP16: Any Other | AV16: BRD | BE16: Sec 10(14)(ii)- Prescribed Allowances or benefits granted to meet personal expenses in performance of duties of office or employment or to compensate him for increased cost of living. | BG16: Exempt income received by a judge covered under the payment of salaries to Supreme Court/High Court judges Act /Rules | BI16: Any Other | BK16: Any Other | BT16: 8.Member of the HUF (in case of HUF) | BV16: (vi) mental retardation | CC16: 2021-22 | CH16: 2021-22 | CK16: 503321 | CL16: TELANGANA | CM16: ANDHRA PRADESH | CP16: 110015 | CQ16: DELHI | CS16: KERALA | CT16: 16-KERALA | DD16: 194DA-Payment in respect of life insurance policy | DE16: 194LC-194LC (2)(i) and (ia) Income under clause (i) and (ia) of sub-section (2) of section 194LC
L17: (h) Parkinsons Disease | U17: 14-JAMMU AND KASHMIR | V17: 14-JAMMU AND KASHMIR | Z17: 61-AUSTRALIA | AN17: Sec 10(26AAA) Any income as referred to in section 10(26AAA) | AP17: Exempt income received by a judge covered under the payment of salaries to Supreme Court/High Court judges Act /Rules | AV17: RKT | BE17: Any Other | BV17: (vii) mental illness | CC17: 2022-23 | CH17: 2022-23 | CK17: 504214 | CL17: TELANGANA | CM17: ANDHRA PRADESH | CP17: 110016 | CQ17: DELHI | CS17: LAKSHADWEEP | CT17: 17-LAKSHADWEEP | DB17: Not using this range name("SectionTDSDeducted") as per DE V4 | DD17: 194E-Payments to non-resident sportsmen or sports associations | DE17: 194LC-194LC (2)(ib) Income under clause (ib) of sub-section (2) of section 194LC
L18: (i) Malignant Cancers | U18: 15-KARNATAKA | V18: 15-KARNATAKA | Z18: 43-AUSTRIA | AN18: Sec 10(12C) Any payment from the Agniveer Corpus Fund to a person enrolled under the Agnipath Scheme, or to his nominee | AV18: SRT | BV18: (viii) autism | CC18: 2023-24 | CH18: 2023-24 | CK18: 504215 | CL18: TELANGANA | CM18: ANDHRA PRADESH | CP18: 110017 | CQ18: DELHI | CS18: MADHYA PRADESH | CT18: 18-MADHYA PRADESH | DD18: 194EE-Payments in respect of deposits under National Savings | DE18: 194LC-194LC (2)(ic) Income under clause (ic) of sub-section (2) of section 194LC
L19: (j) Full Blown Acquired Immuno-Deficiency Syndrome (AIDS) | U19: 16-KERALA | V19: 16-KERALA | Z19: 994-AZERBAIJAN | AN19: Any Other | AV19: BLR | BV19: (ix) cerebral palsy | CC19: 2024-25 | CH19: 2024-25 | CK19: 504346 | CL19: TELANGANA | CM19: ANDHRA PRADESH | CP19: 110018 | CQ19: DELHI | CS19: MAHARASHTRA | CT19: 19-MAHARASHTRA | DD19: 194F-Payments on account of repurchase of units by Mutual Fund or Unit Trust of India | DE19: 194LBA(a)-Certain income in the form of interest from units of a business trust to a resident unit holder
L20: (k) Chronic Renal failure | U20: 17-LAKHSWADEEP | V20: 17-LAKHSWADEEP | Z20: 1242-BAHAMAS | AN20: LTCG u/s 112A not exceeding Rs. 1 Lakh | AV20: AGR | BG20: Sec 10(13A)-Allowance to meet expenditure incurred on house rent | BI20: New_List | BV20: (x) multiple disability | CK20: 505187 | CL20: TELANGANA | CM20: ANDHRA PRADESH | CP20: 110019 | CQ20: DELHI | CS20: MANIPUR | CT20: 20-MANIPUR | DD20: 194G-Commission, price, etc. on sale of lottery tickets | DE20: 194LBA(b)-Certain income in the form of dividend from units of a business trust to a resident unit holder
L21: (l) Hematological disorders | U21: 18-MADHYA PRADESH | V21: 18-MADHYA PRADESH | Z21: 973-BAHRAIN | AP21: (Select) | AV21: KNP | BI21: (Select) | CK21: 505325 | CL21: TELANGANA | CM21: ANDHRA PRADESH | CP21: 110020 | CQ21: DELHI | CS21: MEGHALAYA | CT21: 21-MEGHALAYA | DD21: 194H-Commission or brokerage | DE21: 194LBA(a)-194LBA(a) income referred to in section 10(23FC)(a) from units of a business trust-NR
L22: (m) Hemophilia | U22: 19-MAHARASHTRA | V22: 19-MAHARASHTRA | Z22: 880-BANGLADESH | AN22: (Select) | AP22: Sec 10(6)-Remuneration received as an official, by whatever name called, of an embassy, high commission etc. | AV22: CHN | BI22: Sec 10(5)-Leave Travel concession/assistance | BV22: (i) autism, cerebral palsy, or multiple disabilities and - "and removed as per DE sheet v0.7" | CK22: 505503 | CL22: TELANGANA | CM22: ANDHRA PRADESH | CP22: 110021 | CQ22: DELHI | CS22: MIZORAM | CT22: 22-MIZORAM | DD22: 194I(a)-Rent on hiring of plant and machinery | DE22: 194LBA(b)-194LBA(b) Income referred to in section 10(23FC)(b) from units of a business trust-NR
L23: (n) Thalassaemia | U23: 20-MANIPUR | V23: 20-MANIPUR | Z23: 1246-BARBADOS | AN23: Agriculture Income (less than equal to Rs.5000) | AP23: Sec 10(7)-Allowances or perquisites paid or allowed as such outside India by the Government to a citizen of India for rendering service outside India | AV23: TVD | BE23: Exempt income received by a judge covered under the payment of salaries to Supreme Court/High Court judges Act /Rules - Removed from the dropdown | BI23: Sec 10(6)-Remuneration received as an official, by whatever name called, of an embassy, high commission etc. | CK23: 505525 | CL23: TELANGANA | CM23: ANDHRA PRADESH | CP23: 110022 | CQ23: DELHI | CS23: NAGALAND | CT23: 23-NAGALAND | DD23: 194I(b)-Rent on other than plant and machinery | DE23: 194LBA(c)-194LBA(c) Income referred to in section 10(23FCA) from units of a business trust-NR
U24: 21-MEGHALAYA | V24: 21-MEGHALAYA | Z24: 375-BELARUS | AN24: Sec 10(10BC) Any amount from the Central/State Govt./local authority by way of compensation on account of any disaster | AP24: Sec 10(10)-Death-cum-retirement gratuity received | AV24: ALD | BI24: Sec 10(7)-Allowances or perquisites paid or allowed as such outside India by the Government to a citizen of India for rendering service outside India | CK24: 506003 | CL24: TELANGANA | CM24: ANDHRA PRADESH | CP24: 110023 | CQ24: DELHI | CS24: ODISHA | CT24: 24-ODISHA | DD24: 194IA-TDS on Sale of immovable property | DE24: 195-Other sums payable to a non-resident
U25: 22-MIZORAM | V25: 22-MIZORAM | Z25: 32-BELGIUM | AN25: Sec 10(10D) Any sum received under a life insurance policy, including the sum allocated by way of bonus on such policy except sum as mentioned in sub-clause (a) to (d) of Sec.10(1) | AP25: Sec 10(10A)-Commuted value of pension received | AV25: LKN | BI25: Sec 10(10)-Death-cum-retirement gratuity received | CK25: 509132 | CL25: TELANGANA | CM25: ANDHRA PRADESH | CP25: 110024 | CQ25: DELHI | CS25: PUDUCHERRY | CT25: 25-PUDUCHERRY | DD25: 194IB-Payment of rent by certain individuals or Hindu undivided | DE25: 196A-Income in respect of units of non-residents
U26: 23-NAGALAND | V26: 23-NAGALAND | Z26: 501-BELIZE | AN26: Sec 10(11) Statutory Provident Fund received | AP26: Sec 10(10AA)-Earned leave encashment on Retirement | AV26: MUM | BI26: Sec 10(10A)-Commuted value of pension received | CK26: 509324 | CL26: TELANGANA | CM26: ANDHRA PRADESH | CP26: 110026 | CQ26: DELHI | CS26: PUNJAB | CT26: 26-PUNJAB | DD26: 194IC-Payment under specified agreement | DE26: 196B-Payments in respect of units to an offshore fund
U27: 24-ODISHA | V27: 24-ODISHA | Z27: 229-BENIN | AN27: Sec 10(12) Recognized Provident Fund received | AP27: Sec 10(10B) First proviso - Compensation limit notified by CG in the Official Gazette | AV27: NGP | BI27: Sec 10(10AA)-Earned leave encashment on Retirement | CK27: 531149 | CL27: ANDHRA PRADESH | CM27: TELANGANA | CP27: 110027 | CQ27: DELHI | CS27: RAJASTHAN | CT27: 27-RAJASTHAN | DD27: 194J(a)-Fees for technical services | DE27: 196C-Income from foreign currency bonds or shares of Indian
U28: 25-PUDUCHERRY | V28: 25-PUDUCHERRY | Z28: 1441-BERMUDA | AN28: Sec 10(13) Approved superannuation fund received | AP28: Sec 10(10B) Second proviso - Compensation under scheme approved by the Central Government | AV28: AMR | BI28: Sec 10(10C)-Amount received/receivable on voluntary retirement or termination of service | CK28: 533464 | CL28: ANDHRA PRADESH | CM28: PUDUCHERRY | CP28: 110028 | CQ28: DELHI | CS28: SIKKIM | CT28: 28-SIKKIM | DD28: 194J(b)-Fees for professional services or royalty etc | DE28: 196D-Income of foreign institutional investors from securities
U29: 26-PUNJAB | V29: 26-PUNJAB | Z29: 975-BHUTAN | AN29: Sec 10(16) Scholarships granted to meet the cost of education | AP29: Sec 10(10C)-Amount received/receivable on voluntary retirement or termination of service | AV29: JLD | BI29: Sec 10(10CC)-Tax paid by employer on non-monetary perquisite | CK29: 605007 | CL29: TAMIL NADU | CM29: PUDUCHERRY | CP29: 110029 | CQ29: DELHI | CS29: TAMIL NADU | CT29: 29-TAMIL NADU | DD29: 194K-Income payable to a resident assessee in respect of units of a specified mutual fund or of the units of the Unit Trust of India | DE29: 196D(1A)-Income of specified fund from securities
U30: 27-RAJASTHAN | V30: 27-RAJASTHAN | Z30: 591-BOLIVIA (PLURINATIONAL STATE OF) | AN30: Sec 10(17A) Award instituted by Government | AP30: Sec 10(10CC)-Tax paid by employer on non-monetary perquisite | AV30: PTL | BI30: Sec 10(14)(i)-Prescribed Allowances or benefits (not in a nature of perquisite) specifically granted to meet expenses wholly, necessarily and exclusively and to the extent actually incurred, in performance of duties of office or employment | CK30: 605014 | CL30: TAMIL NADU | CM30: PUDUCHERRY | CP30: 110030 | CQ30: DELHI | CS30: TRIPURA | CT30: 30-TRIPURA | DD30: 194LA-Payment of compensation on acquisition of certain immovable
U31: 28-SIKKIM | V31: 28-SIKKIM | Z31: 1002-BONAIRE, SINT EUSTATIUS AND SABA | AN31: Sec 10(18) Pension received by winner of "Param Vir Chakra" or "Maha Vir Chakra" or "Vir Chakra" or such other gallantry award | AP31: Section 10(14)(i) - Allowances referred in sub-clauses (a) to (c) of sub-rule (1) in Rule 2BB | AV31: RTK | BI31: Sec 10(14)(ii)-Prescribed Allowances or benefits granted to meet personal expenses in performance of duties of office or employment or to compensate him for increased cost of living | CK31: 605102 | CL31: PUDUCHERRY | CM31: TAMIL NADU | CP31: 110031 | CQ31: DELHI | CS31: UTTAR PRADESH | CT31: 31-UTTAR PRADESH | DD31: 194LB-Income by way of Interest from Infrastructure Debt fund
U32: 29-TAMILNADU | V32: 29-TAMILNADU | Z32: 387-BOSNIA AND HERZEGOVINA | AN32: Defense Medical Disability Pension | AP32: Section 10(14)(ii) - Transport allowance granted to certain physically handicapped assessee | AV32: KLP | BI32: Any Other | CK32: 605105 | CL32: TAMIL NADU | CM32: PUDUCHERRY | CP32: 110032 | CQ32: DELHI | CS32: WEST BENGAL | CT32: 32-WEST BENGAL | DD32: 194LC-194LC (2)(i) and (ia) Income under clause (i) and (ia) of sub-section (2) of section 194LC
U33: 30-TRIPURA | V33: 30-TRIPURA | Z33: 267-BOTSWANA | AN33: Sec 10(19) Armed Forces Family pension in case of death during operational duty | AP33: Any Other | AV33: NSK | CK33: 605106 | CL33: PUDUCHERRY | CM33: TAMIL NADU | CP33: 110033 | CQ33: DELHI | CS33: CHHATTISGARH | CT33: 33-CHHATTISGARH | DD33: 194LC-194LC (2)(ib) Income under clause (ib) of sub-section (2) of section 194LC
U34: 31-UTTAR PRADESH | V34: 31-UTTAR PRADESH | Z34: 1003-BOUVET ISLAND | AN34: Sec 10(26) Any income as referred to in section 10(26) | AV34: PNE | CK34: 605107 | CL34: TAMIL NADU | CM34: PUDUCHERRY | CP34: 110034 | CQ34: DELHI | CS34: UTTARAKHAND | CT34: 34-UTTARAKHAND | DD34: 194LC-194LC (2)(ic) Income under clause (ic) of sub-section (2) of section 194LC | DE34: 194Q-Deduction of tax at source on payment of certain sum for purchase of goods
U35: 32-WEST BENGAL | V35: 32-WEST BENGAL | Z35: 55-BRAZIL | AN35: Sec 10(26AAA) Any income as referred to in section 10(26AAA) | AV35: PTN | CK35: 605110 | CL35: TAMIL NADU | CM35: PUDUCHERRY | CP35: 110035 | CQ35: DELHI | CS35: JHARKHAND | CT35: 35-JHARKHAND | DD35: 194LBA(a)-Certain income in the form of interest from units of a business trust to a resident unit holder | DE35: 194R-Benefits or perquisites of business or profession
U36: 33-CHHATTISGARH | V36: 33-CHHATTISGARH | Z36: 1014-BRITISH INDIAN OCEAN TERRITORY | AN36: Sec 10(12C) Any payment from the Agniveer Corpus Fund to a person enrolled under the Agnipath Scheme, or to his nominee | AV36: RCH | CK36: 605111 | CL36: TAMIL NADU | CM36: PUDUCHERRY | CP36: 110036 | CQ36: DELHI | CS36: TELANGANA | CT36: 36-TELANGANA | DD36: 194LBA(b)-Certain income in the form of dividend from units of a business trust to a resident unit holder | DE36: 194C-Payments to contractors and sub-contractors
U37: 34-UTTARAKHAND | V37: 34-UTTARAKHAND | Z37: 673-BRUNEI DARUSSALAM | AN37: Any Other | AP37: 1 | AV37: JDH | CK37: 605501 | CL37: TAMIL NADU | CM37: PUDUCHERRY | CP37: 110037 | CQ37: DELHI | CS37: LADAKH | CT37: 37-LADAKH | DD37: 194LBA(a)-194LBA(a) income referred to in section 10(23FC)(a) from units of a business trust-NR
U38: 35-JHARKHAND | V38: 35-JHARKHAND | Z38: 359-BULGARIA | AN38: LTCG u/s 112A not exceeding Rs. 1 Lakh | AV38: JPR | CK38: 605502 | CL38: TAMIL NADU | CM38: PUDUCHERRY | CP38: 110038 | CQ38: DELHI | DD38: 194LBA(b)-194LBA(b) Income referred to in section 10(23FC)(b) from units of a business trust-NR
U39: 36-TELANGANA | V39: 36-TELANGANA | Z39: 226-BURKINA FASO | AP39: (Select) | AV39: SHL | CK39: 607402 | CL39: PUDUCHERRY | CM39: TAMIL NADU | CP39: 110039 | CQ39: DELHI | DD39: 194LBA(c)-194LBA(c) Income referred to in section 10(23FCA) from units of a business trust-NR
U40: 37-LADAKH | V40: 37-LADAKH | Z40: 257-BURUNDI | AP40: Sec 10(5)-Leave Travel concession/assistance | CK40: 607403 | CL40: TAMIL NADU | CM40: PUDUCHERRY | CP40: 110040 | CQ40: DELHI | DD40: 194LBB-Income in respect of units of investment fund
V41: 99-FOREIGN | Z41: 238-CABO VERDE | AP41: Sec 10(6)-Remuneration received as an official, by whatever name called, of an embassy, high commission etc. | CK41: 609603 | CL41: PUDUCHERRY | CM41: TAMIL NADU | CP41: 110041 | CQ41: DELHI | DD41: 194R-Benefits or perquisites of business or profession
Z42: 855-CAMBODIA | AP42: Sec 10(7)-Allowances or perquisites paid or allowed as such outside India by the Government to a citizen of India for rendering service outside India | CK42: 609604 | CL42: TAMIL NADU | CM42: PUDUCHERRY | CP42: 110042 | CQ42: DELHI | DD42: 194S-Payment of consideration for transfer of virtual digital asset by persons other than specified persons
Z43: 237-CAMEROON | AP43: Sec 10(10)-Death-cum-retirement gratuity received | CK43: 781029 | CL43: MEGHALAYA | CM43: ASSAM | CP43: 110043 | CQ43: DELHI | DD43: Proviso to section 194B-Winnings from lotteries and crossword puzzles where consideration is made in kind or cash is not sufficient to meet the tax liability and tax has been paid before such winnings are released
Z44: 1-CANADA | AP44: Sec 10(10A)-Commuted value of pension received | CK44: 781131 | CL44: MEGHALAYA | CM44: ASSAM | CP44: 110044 | CQ44: DELHI | DD44: First Proviso to sub-section(1) of section 194R-Benefits or perquisites of business or profession where such benefit is provided in kind or where part in cash is not sufficient to meet tax liability and tax required to be deducted is paid before such benefit is released
Z45: 1345-CAYMAN ISLANDS | AP45: Sec 10(10AA)-Earned leave encashment on Retirement | CK45: 782410 | CL45: ASSAM | CM45: MEGHALAYA | CP45: 110045 | CQ45: DELHI | DD45: Proviso to sub- section(1) of section 194S-Payment for transfer of virtual digital asset where payment is in kind or in exchange of another virtual digital asset and tax required to be deducted is paid before such payment is released
Z46: 236-CENTRAL AFRICAN REPUBLIC | AP46: Sec 10(10B) First proviso - Compensation limit notified by CG in the Official Gazette | CK46: 802131 | CL46: BIHAR | CM46: UTTAR PRADESH | CP46: 110046 | CQ46: DELHI | DD46: 194LBC-Income in respect of investment in securitization trust
U47: 744 | V47: 01-ANDAMAN AND NICOBAR ISLANDS | Z47: 235-CHAD | AP47: Sec 10(10B) Second proviso - Compensation under scheme approved by the Central Government | CK47: 813206 | CL47: BIHAR | CM47: JHARKHAND | CP47: 110047 | CQ47: DELHI | DD47: 194LD-TDS on interest on bonds / government securities
U48: 515 | V48: 02-ANDHRA PRADESH | Z48: 56-CHILE | AP48: Sec 10(10C)-Amount received/receivable on voluntary retirement or termination of service | CP48: 110048 | CQ48: DELHI | DD48: 194M-Payment of certain sums by certain individuals or HUF
U49: 524 | V49: 02-ANDHRA PRADESH | Z49: 86-CHINA | AP49: Sec 10(10CC)-Tax paid by employer on non-monetary perquisite | CP49: 110049 | CQ49: DELHI | DD49: 194N-Payment of certain amounts in cash other than cases covered by first proviso or third proviso
U50: 522 | V50: 02-ANDHRA PRADESH | Z50: 9-CHRISTMAS ISLAND | AP50: Sec 10(14)(i)-Prescribed Allowances or benefits (not in a nature of perquisite) specifically granted to meet expenses wholly, necessarily and exclusively and to the extent actually incurred, in performance of duties of office or employment | CP50: 110051 | CQ50: DELHI | DD50: 194N -First Proviso Payment of certain amounts in cash to non-filers except in case of co-operativesocieties
U51: 534 | V51: 02-ANDHRA PRADESH | Z51: 672-COCOS (KEELING) ISLANDS | AP51: Sec 10(14)(ii)-Prescribed Allowances or benefits granted to meet personal expenses in performance of duties of office or employment or to compensate him for increased cost of living | CP51: 110052 | CQ51: DELHI | DD51: 194N -Third Proviso Payment of certain amounts in cash to co-operative societies not covered by first proviso
U52: 531 | V52: 02-ANDHRA PRADESH | Z52: 57-COLOMBIA | AP52: Any Other | CP52: 110053 | CQ52: DELHI | DD52: 194N-First Proviso read with Third Proviso Payment of certain amount in cash to non-filers being co-operative societies
U53: 516 | V53: 02-ANDHRA PRADESH | Z53: 270-COMOROS | CP53: 110054 | CQ53: DELHI | DD53: 194O-Payment of certain sums by e-commerce operator to e-commerce participant.
U54: 533 | V54: 02-ANDHRA PRADESH | Z54: 242-CONGO | CP54: 110055 | CQ54: DELHI | DD54: 194P-Deduction of tax in case of specified senior citizen
U55: 532 | V55: 02-ANDHRA PRADESH | Z55: 243-CONGO (DEMOCRATIC REPUBLIC OF THE) | CP55: 110056 | CQ55: DELHI | DD55: 194Q-Deduction of tax at source on payment of certain sum for purchase of goods
U56: 535 | V56: 02-ANDHRA PRADESH | Z56: 682-COOK ISLANDS | CP56: 110057 | CQ56: DELHI | DD56: 195-Other sums payable to a non-resident
U57: 518 | V57: 02-ANDHRA PRADESH | Z57: 506-COSTA RICA | CP57: 110058 | CQ57: DELHI | DD57: 196A-Income in respect of units of non-residents
U58: 505 | V58: 02-ANDHRA PRADESH | Z58: 225-CÔTE D'IVOIRE | CP58: 110059 | CQ58: DELHI | DD58: 196B-Payments in respect of units to an offshore fund
U59: 517 | V59: 02-ANDHRA PRADESH | Z59: 385-CROATIA | CP59: 110060 | CQ59: DELHI | DD59: 196C-Income from foreign currency bonds or shares of Indian
U60: 523 | V60: 02-ANDHRA PRADESH | Z60: 53-CUBA | CP60: 110061 | CQ60: DELHI | DD60: 196D-Income of foreign institutional investors from securities
U61: 504 | V61: 02-ANDHRA PRADESH | Z61: 1015-CURAÇAO | CP61: 110062 | CQ61: DELHI | DD61: 196D(1A)-Income of specified fund from securities
U62: 506 | V62: 02-ANDHRA PRADESH | Z62: 357-CYPRUS | CP62: 110063 | CQ62: DELHI | DD62: 194BA(2)-Sub-section (2) of section 194BA Net Winnings from online games where the net winnings are made in kind or cash is not sufficient to meet the tax liability and tax has been paid before such net winnings are released
U63: 503 | V63: 02-ANDHRA PRADESH | Z63: 420-CZECHIA | CP63: 110064 | CQ63: DELHI
U64: 521 | V64: 02-ANDHRA PRADESH | Z64: 45-DENMARK | CP64: 110065 | CQ64: DELHI
U65: 509 | V65: 02-ANDHRA PRADESH | Z65: 253-DJIBOUTI | CP65: 110066 | CQ65: DELHI
U66: 530 | V66: 02-ANDHRA PRADESH | Z66: 1767-DOMINICA | CP66: 110067 | CQ66: DELHI
U67: 520 | V67: 02-ANDHRA PRADESH | Z67: 1809-DOMINICAN REPUBLIC | CP67: 110068 | CQ67: DELHI
U68: 791 | V68: 03-ARUNACHAL PRADESH | Z68: 593-ECUADOR | CP68: 110069 | CQ68: DELHI
U69: 792 | V69: 03-ARUNACHAL PRADESH | Z69: 20-EGYPT | CP69: 110070 | CQ69: DELHI
U70: 790 | V70: 03-ARUNACHAL PRADESH | Z70: 503-EL SALVADOR | CP70: 110071 | CQ70: DELHI
U71: 783 | V71: 04-ASSAM | Z71: 240-EQUATORIAL GUINEA | CP71: 110072 | CQ71: DELHI
U72: 788 | V72: 04-ASSAM | Z72: 291-ERITREA | CP72: 110073 | CQ72: DELHI
U73: 784 | V73: 04-ASSAM | Z73: 372-ESTONIA | CP73: 110074 | CQ73: DELHI
U74: 781 | V74: 04-ASSAM | Z74: 251-ETHIOPIA | CP74: 110075 | CQ74: DELHI
U75: 786 | V75: 04-ASSAM | Z75: 500-FALKLAND ISLANDS (MALVINAS) | CP75: 110076 | CQ75: DELHI
U76: 785 | V76: 04-ASSAM | Z76: 298-FAROE ISLANDS | CP76: 110077 | CQ76: DELHI
U77: 787 | V77: 04-ASSAM | Z77: 679-FIJI | CP77: 110078 | CQ77: DELHI
U78: 782 | V78: 04-ASSAM | Z78: 358-FINLAND | CP78: 110080 | CQ78: DELHI
U79: 813 | V79: 05-BIHAR | Z79: 33-FRANCE | CP79: 110081 | CQ79: DELHI
U80: 812 | V80: 05-BIHAR | Z80: 594-FRENCH GUIANA | CP80: 110082 | CQ80: DELHI
U81: 853 | V81: 05-BIHAR | Z81: 689-FRENCH POLYNESIA | CP81: 110083 | CQ81: DELHI
U82: 848 | V82: 05-BIHAR | Z82: 1004-FRENCH SOUTHERN TERRITORIES | CP82: 110084 | CQ82: DELHI
U83: 851 | V83: 05-BIHAR | Z83: 241-GABON | CP83: 110085 | CQ83: DELHI
U84: 847 | V84: 05-BIHAR | Z84: 220-GAMBIA | CP84: 110086 | CQ84: DELHI
U85: 846 | V85: 05-BIHAR | Z85: 995-GEORGIA | CP85: 110087 | CQ85: DELHI
U86: 852 | V86: 05-BIHAR | Z86: 49-GERMANY | CP86: 110088 | CQ86: DELHI
U87: 845 | V87: 05-BIHAR | Z87: 233-GHANA | CP87: 110089 | CQ87: DELHI
U88: 841 | V88: 05-BIHAR | Z88: 350-GIBRALTAR | CP88: 110090 | CQ88: DELHI
U89: 802 | V89: 05-BIHAR | Z89: 30-GREECE | CP89: 110091 | CQ89: DELHI
U90: 804 | V90: 05-BIHAR | Z90: 299-GREENLAND | CP90: 110092 | CQ90: DELHI
U91: 811 | V91: 05-BIHAR | Z91: 1473-GRENADA | CP91: 110093 | CQ91: DELHI
U92: 824 | V92: 05-BIHAR | Z92: 590-GUADELOUPE | CP92: 110094 | CQ92: DELHI
U93: 821 | V93: 05-BIHAR | Z93: 1671-GUAM | CP93: 110095 | CQ93: DELHI
U94: 844 | V94: 05-BIHAR | Z94: 502-GUATEMALA | CP94: 110096 | CQ94: DELHI
U95: 855 | V95: 05-BIHAR | Z95: 1481-GUERNSEY | CP95: 110097 | CQ95: DELHI
U96: 843 | V96: 05-BIHAR | Z96: 224-GUINEA | CP96: 110099 | CQ96: DELHI
U97: 842 | V97: 05-BIHAR | Z97: 245-GUINEA-BISSAU | CP97: 110110 | CQ97: DELHI
U98: 854 | V98: 05-BIHAR | Z98: 592-GUYANA | CP98: 121001 | CQ98: HARYANA
U99: 805 | V99: 05-BIHAR | Z99: 509-HAITI | CP99: 121002 | CQ99: HARYANA
U100: 800 | V100: 05-BIHAR | Z100: 1005-HEARD ISLAND AND MCDONALD ISLANDS | CP100: 121003 | CQ100: HARYANA
U101: 803 | V101: 05-BIHAR | Z101: 6-HOLY SEE | CP101: 121004 | CQ101: HARYANA
U102: 801 | V102: 05-BIHAR | Z102: 504-HONDURAS | CP102: 121005 | CQ102: HARYANA
U103: 823 | V103: 05-BIHAR | Z103: 852-HONG KONG | CP103: 121006 | CQ103: HARYANA
U104: 814 | V104: 05-BIHAR | Z104: 36-HUNGARY | CP104: 121007 | CQ104: HARYANA
U105: 160 | V105: 06-CHANDIGARH | Z105: 354-ICELAND | CP105: 121008 | CQ105: HARYANA
U106: 495 | V106: 33-CHHATTISGARH | Z106: 91-INDIA | CP106: 121009 | CQ106: HARYANA
U107: 491 | V107: 33-CHHATTISGARH | Z107: 62-INDONESIA | CP107: 121010 | CQ107: HARYANA
U108: 494 | V108: 33-CHHATTISGARH | Z108: 98-IRAN (ISLAMIC REPUBLIC OF) | CP108: 121012 | CQ108: HARYANA
U109: 493 | V109: 33-CHHATTISGARH | Z109: 964-IRAQ | CP109: 121013 | CQ109: HARYANA
U110: 490 | V110: 33-CHHATTISGARH | Z110: 353-IRELAND | CP110: 121014 | CQ110: HARYANA
U111: 496 | V111: 33-CHHATTISGARH | Z111: 1624-ISLE OF MAN | CP111: 121015 | CQ111: HARYANA
U112: 497 | V112: 33-CHHATTISGARH | Z112: 972-ISRAEL | CP112: 121101 | CQ112: HARYANA
U113: 492 | V113: 33-CHHATTISGARH | Z113: 5-ITALY | CP113: 121102 | CQ113: HARYANA
U114: 110 | V114: 09-DELHI | Z114: 1876-JAMAICA | CP114: 121103 | CQ114: HARYANA
U115: 403 | V115: 10-GOA | Z115: 81-JAPAN | CP115: 121105 | CQ115: HARYANA
U116: 385 | V116: 11-GUJARAT | Z116: 1534-JERSEY | CP116: 121106 | CQ116: HARYANA
U117: 384 | V117: 11-GUJARAT | Z117: 962-JORDAN | CP117: 121107 | CQ117: HARYANA
U118: 383 | V118: 11-GUJARAT | Z118: 7-KAZAKHSTAN | CP118: 122001 | CQ118: HARYANA
U119: 393 | V119: 11-GUJARAT | Z119: 254-KENYA | CP119: 122002 | CQ119: HARYANA
U120: 394 | V120: 11-GUJARAT | Z120: 686-KIRIBATI | CP120: 122003 | CQ120: HARYANA
U121: 392 | V121: 11-GUJARAT | Z121: 850-KOREA (DEMOCRATIC PEOPLE'S REPUBLIC OF) | CP121: 122004 | CQ121: HARYANA
U122: 387 | V122: 11-GUJARAT | Z122: 82-KOREA (REPUBLIC OF) | CP122: 122005 | CQ122: HARYANA
U123: 388 | V123: 11-GUJARAT | Z123: 965-KUWAIT | CP123: 122006 | CQ123: HARYANA
U124: 396 | V124: 11-GUJARAT | Z124: 996-KYRGYZSTAN | CP124: 122007 | CQ124: HARYANA
U125: 382 | V125: 11-GUJARAT | Z125: 856-LAO PEOPLE'S DEMOCRATIC REPUBLIC | CP125: 122008 | CQ125: HARYANA
U126: 360 | V126: 11-GUJARAT | Z126: 371-LATVIA | CP126: 122009 | CQ126: HARYANA
U127: 363 | V127: 11-GUJARAT | Z127: 961-LEBANON | CP127: 122010 | CQ127: HARYANA
U128: 364 | V128: 11-GUJARAT | Z128: 266-LESOTHO | CP128: 122011 | CQ128: HARYANA
U129: 380 | V129: 11-GUJARAT | Z129: 231-LIBERIA | CP129: 122012 | CQ129: HARYANA
U130: 365 | V130: 11-GUJARAT | Z130: 218-LIBYA | CP130: 122015 | CQ130: HARYANA
U131: 362 | V131: 11-GUJARAT | Z131: 423-LIECHTENSTEIN | CP131: 122016 | CQ131: HARYANA
U132: 391 | V132: 11-GUJARAT | Z132: 370-LITHUANIA | CP132: 122017 | CQ132: HARYANA
U133: 361 | V133: 11-GUJARAT | Z133: 352-LUXEMBOURG | CP133: 122018 | CQ133: HARYANA
U134: 395 | V134: 11-GUJARAT | Z134: 853-MACAO | CP134: 122051 | CQ134: HARYANA
U135: 370 | V135: 11-GUJARAT | Z135: 389-MACEDONIA (THE FORMER YUGOSLAV REPUBLIC OF) | CP135: 122052 | CQ135: HARYANA
U136: 389 | V136: 11-GUJARAT | Z136: 261-MADAGASCAR | CP136: 122098 | CQ136: HARYANA
U137: 390 | V137: 11-GUJARAT | Z137: 265-MALAWI | CP137: 122101 | CQ137: HARYANA
U138: 126 | V138: 12-HARYANA | Z138: 60-MALAYSIA | CP138: 122102 | CQ138: HARYANA
U139: 121 | V139: 12-HARYANA | Z139: 960-MALDIVES | CP139: 122103 | CQ139: HARYANA
U140: 123 | V140: 12-HARYANA | Z140: 223-MALI | CP140: 122104 | CQ140: HARYANA
U141: 125 | V141: 12-HARYANA | Z141: 356-MALTA | CP141: 122105 | CQ141: HARYANA
U142: 134 | V142: 12-HARYANA | Z142: 692-MARSHALL ISLANDS | CP142: 122107 | CQ142: HARYANA
U143: 133 | V143: 12-HARYANA | Z143: 596-MARTINIQUE | CP143: 122108 | CQ143: HARYANA
U144: 136 | V144: 12-HARYANA | Z144: 222-MAURITANIA | CP144: 122413 | CQ144: HARYANA
U145: 124 | V145: 12-HARYANA | Z145: 230-MAURITIUS | CP145: 122414 | CQ145: HARYANA
U146: 131 | V146: 12-HARYANA | Z146: 269-MAYOTTE | CP146: 122502 | CQ146: HARYANA
U147: 132 | V147: 12-HARYANA | Z147: 52-MEXICO | CP147: 122503 | CQ147: HARYANA
U148: 122 | V148: 12-HARYANA | Z148: 691-MICRONESIA (FEDERATED STATES OF) | CP148: 122504 | CQ148: HARYANA
U149: 127 | V149: 12-HARYANA | Z149: 373-MOLDOVA (REPUBLIC OF) | CP149: 122505 | CQ149: HARYANA
U150: 135 | V150: 12-HARYANA | Z150: 377-MONACO | CP150: 122506 | CQ150: HARYANA
U151: 176 | V151: 13-HIMACHAL PRADESH | Z151: 976-MONGOLIA | CP151: 122508 | CQ151: HARYANA
U152: 174 | V152: 13-HIMACHAL PRADESH | Z152: 382-MONTENEGRO | CP152: 123001 | CQ152: HARYANA
U153: 177 | V153: 13-HIMACHAL PRADESH | Z153: 1664-MONTSERRAT | CP153: 123021 | CQ153: HARYANA
U154: 175 | V154: 13-HIMACHAL PRADESH | Z154: 212-MOROCCO | CP154: 123023 | CQ154: HARYANA
U155: 171 | V155: 13-HIMACHAL PRADESH | Z155: 258-MOZAMBIQUE | CP155: 123024 | CQ155: HARYANA
U156: 172 | V156: 13-HIMACHAL PRADESH | Z156: 95-MYANMAR | CP156: 123027 | CQ156: HARYANA
U157: 173 | V157: 13-HIMACHAL PRADESH | Z157: 264-NAMIBIA | CP157: 123028 | CQ157: HARYANA
U158: 192 | V158: 14-JAMMU AND KASHMIR | Z158: 674-NAURU | CP158: 123029 | CQ158: HARYANA
U159: 185 | V159: 14-JAMMU AND KASHMIR | Z159: 977-NEPAL | CP159: 123031 | CQ159: HARYANA
U160: 182 | V160: 14-JAMMU AND KASHMIR | Z160: 31-NETHERLANDS | CP160: 123034 | CQ160: HARYANA
U161: 181 | V161: 14-JAMMU AND KASHMIR | Z161: 687-NEW CALEDONIA | CP161: 123035 | CQ161: HARYANA
U162: 180 | V162: 14-JAMMU AND KASHMIR | Z162: 64-NEW ZEALAND | CP162: 123101 | CQ162: HARYANA
U163: 184 | V163: 14-JAMMU AND KASHMIR | Z163: 505-NICARAGUA | CP163: 123102 | CQ163: HARYANA
U164: 193 | V164: 14-JAMMU AND KASHMIR | Z164: 227-NIGER | CP164: 123103 | CQ164: HARYANA
U165: 191 | V165: 14-JAMMU AND KASHMIR | Z165: 234-NIGERIA | CP165: 123106 | CQ165: HARYANA
U166: 190 | V166: 14-JAMMU AND KASHMIR | Z166: 683-NIUE | CP166: 123110 | CQ166: HARYANA
U167: 822 | V167: 35-JHARKHAND | Z167: 15-NORFOLK ISLAND | CP167: 123301 | CQ167: HARYANA
U168: 825 | V168: 35-JHARKHAND | Z168: 1670-NORTHERN MARIANA ISLANDS | CP168: 123302 | CQ168: HARYANA
U169: 829 | V169: 35-JHARKHAND | Z169: 47-NORWAY | CP169: 123303 | CQ169: HARYANA
U170: 815 | V170: 35-JHARKHAND | Z170: 968-OMAN | CP170: 123401 | CQ170: HARYANA
U171: 816 | V171: 35-JHARKHAND | Z171: 92-PAKISTAN | CP171: 123411 | CQ171: HARYANA
U172: 835 | V172: 35-JHARKHAND | Z172: 680-PALAU | CP172: 123412 | CQ172: HARYANA
U173: 828 | V173: 35-JHARKHAND | Z173: 970-PALESTINE, STATE OF | CP173: 123501 | CQ173: HARYANA
U174: 826 | V174: 35-JHARKHAND | Z174: 507-PANAMA | CP174: 124001 | CQ174: HARYANA
U175: 834 | V175: 35-JHARKHAND | Z175: 675-PAPUA NEW GUINEA | CP175: 124010 | CQ175: HARYANA
U176: 833 | V176: 35-JHARKHAND | Z176: 595-PARAGUAY | CP176: 124021 | CQ176: HARYANA
U177: 832 | V177: 35-JHARKHAND | Z177: 51-PERU | CP177: 124022 | CQ177: HARYANA
U178: 827 | V178: 35-JHARKHAND | Z178: 63-PHILIPPINES | CP178: 124102 | CQ178: HARYANA
U179: 831 | V179: 35-JHARKHAND | Z179: 1011-PITCAIRN | CP179: 124103 | CQ179: HARYANA
U180: 575 | V180: 15-KARNATAKA | Z180: 48-POLAND | CP180: 124104 | CQ180: HARYANA
U181: 577 | V181: 15-KARNATAKA | Z181: 14-PORTUGAL | CP181: 124105 | CQ181: HARYANA
U182: 571 | V182: 15-KARNATAKA | Z182: 1787-PUERTO RICO | CP182: 124106 | CQ182: HARYANA
U183: 573 | V183: 15-KARNATAKA | Z183: 974-QATAR | CP183: 124107 | CQ183: HARYANA
U184: 574 | V184: 15-KARNATAKA | Z184: 262-RÉUNION | CP184: 124108 | CQ184: HARYANA
U185: 562 | V185: 15-KARNATAKA | Z185: 40-ROMANIA | CP185: 124109 | CQ185: HARYANA
U186: 585 | V186: 15-KARNATAKA | Z186: 8-RUSSIAN FEDERATION | CP186: 124111 | CQ186: HARYANA
U187: 570 | V187: 15-KARNATAKA | Z187: 250-RWANDA | CP187: 124112 | CQ187: HARYANA
U188: 591 | V188: 15-KARNATAKA | Z188: 1006-SAINT BARTHÉLEMY | CP188: 124113 | CQ188: HARYANA
U189: 561 | V189: 15-KARNATAKA | Z189: 290-SAINT HELENA, ASCENSION AND TRISTAN DA CUNHA | CP189: 124141 | CQ189: HARYANA
U190: 587 | V190: 15-KARNATAKA | Z190: 1869-SAINT KITTS AND NEVIS | CP190: 124142 | CQ190: HARYANA
U191: 580 | V191: 15-KARNATAKA | Z191: 1758-SAINT LUCIA | CP191: 124146 | CQ191: HARYANA
U192: 582 | V192: 15-KARNATAKA | Z192: 1007-SAINT MARTIN (FRENCH PART) | CP192: 124201 | CQ192: HARYANA
U193: 581 | V193: 15-KARNATAKA | Z193: 508-SAINT PIERRE AND MIQUELON | CP193: 124202 | CQ193: HARYANA
U194: 583 | V194: 15-KARNATAKA | Z194: 1784-SAINT VINCENT AND THE GRENADINES | CP194: 124303 | CQ194: HARYANA
U195: 586 | V195: 15-KARNATAKA | Z195: 685-SAMOA | CP195: 124401 | CQ195: HARYANA
U196: 590 | V196: 15-KARNATAKA | Z196: 378-SAN MARINO | CP196: 124404 | CQ196: HARYANA
U197: 572 | V197: 15-KARNATAKA | Z197: 239-SAO TOME AND PRINCIPE | CP197: 124406 | CQ197: HARYANA
U198: 584 | V198: 15-KARNATAKA | Z198: 966-SAUDI ARABIA | CP198: 124411 | CQ198: HARYANA
U199: 560 | V199: 15-KARNATAKA | Z199: 221-SENEGAL | CP199: 124412 | CQ199: HARYANA
U200: 576 | V200: 15-KARNATAKA | Z200: 381-SERBIA | CP200: 124501 | CQ200: HARYANA
... 362 more rows

Sheet SUMMARY (hidden)
C3: SUMMARY
C5: VERIFICATION
C6: Full Name | D6: =Ver.AssesseeVerName -> SHRINATH S. MAKHIJA
C7: PAN | D7: =sheet1.PAN -> AANPM6521G
C8: Son/daughter of | D8: =IF(LEN(Ver.FatherName)>0,Ver.FatherName,"") -> AJINKYA S. MAKHIJA
C9: Verification Date | D9: =IF((Ver.Date)>0,Ver.Date,"") -> 06/10/2025
C10: Verification PAN | D10: =IF(LEN( Ver.PAN)>0, Ver.PAN,"") -> AANPM6521G
C13: Schedules | D13: No. Of Entries | E13: Amount
C14: TDS on Salary | D14: 1 | E14: =IF(SUM(TDSal.TotalTDSSalary)>0,SUM(TDSal.TotalTDSSalary),0) -> 670000
C15: TDS on Other Than Salary | D15: 1 | E15: =IF(SUM(TDSoth.6income)>0,SUM(TDSoth.6income),0) -> 100000
C16: TDS on Rent | D16: 0 | E16: =IF(SUM(TDS26QB.6income)>0,SUM(TDS26QB.6income),0) -> 0
C17: Tax Payments | D17: 2 | E17: =IF(SUM(TaxP.Amt)>0,SUM(TaxP.Amt),0) -> 193000
C18: TCS | D18: 0 | E18: =IF(TCS.Sum>0,TCS.Sum,0) -> 0
C20: Instructions
C21: 1. Verify the count of number of entries against each schedule. 2. Ensure the total number of entries entered per schedule is valid and being reflected in the preview sheet. 3. In case this count does not match the number of entries, you may check and update the schedules. 4. Click on ‘Save JSON’ to generate the JSON file if all the details are verified.

Sheet Help (hidden)
B3: How to use this Excel Utility
A4: i | B4: Overview
A5: ii | B5: Before you begin
A6: iii | B6: Structure of the ITR utility
A7: iv | B7: Filing and Using the Excel utility
A8: v | B8: Validating the sheets
A9: vi | B9: Navigation
A10: vii | B10: Calculate Tax
A11: viii | B11: Generating the JSON
A12: ix | B12: Printing
A13: x | B13: Importing
A14: xi | B14: How to submit an ITR using Excel utility?
A16: i | B16: Overview :
B17: Fill up applicable schedules | C17: Navigate to each schedule applicable and fill the data.
B18: Validate each sheet | C18: Click on the 'Validate' Button on each filled sheet .Correct errors (if any) identified by the validate feature.
B19: Click on Calculate Tax | C19: Fill the necessary details in applicable schedules and click on 'Calculate Tax' for computation of tax. Please make sure you click the 'Calculate Tax' button before generation of JSON.
B20: Generate JSON | C20: After all required schedules have been filled ,validated and tax has been calculated (using 'Calculate Tax' button), click on Generate JSON which will recheck all sheets.
B21: Save JSON | C21: To save the JSON in the desired path, click on the 'Save JSON' button.
B22: Upload the JSON | C22: To upload the saved JSON, Go to https://incometaxindiaefiling.gov.in -> Login -> e-File -> Income Tax Return.
A24: ii | B24: Before you begin :
B25: Read the instructions for filling up the form available in the following website: http://www.incometaxindia.gov.in
B26: The ITR Utility is an Excel Workbook that consists of a number of individual, integrated worksheets. Each of the sheets contains one or more schedules for data entry. Initially, all the sheets are visible to the user. A number of these sheets are optional. The user can decide which sheets are applicable to their case and accordingly select Y or N to hide or show the sheets. Similarly , by selecting the sheets which the user needs for printing, it is possible to control how many sheets should be printed (in case all sheets are not required to be printed). Later on, these settings can always be changed.
A28: iii | B28: Structure of the ITR utility :
B29: Various sheets and schedules per sheet form part of the Utility. Each sheet includes a number of distinct, titled sections/schedules.
B30: Each sheet is identified by the sheet tabs located at the bottom of the Excel window. These tabs are labeled with abbreviation forms of the schedules of the sheet.
A32: iv | B32: Filing and Using the Excel utility :
B33: Every section/schedule is colour coded to facilitate the user. The different types of cells in the sheets are as follows:
B34: a) The mandatory fields are marked in red. The data entered will have a green background colour (Certain fields are mandatory under specific conditions only).
B35: b) Data entry cells for optional/non-mandatory fields have a black font and a green background colour.
B36: c) Fields whose values are auto calculated /auto populated by the utility have a blue font and a white background colour. Linked fields, where no data entry is done by the user, but a value is picked up from an existing cell elsewhere in the sheet, these have a blue font for the labels and a white background.
B37: All amounts are in Indian Rupee.
B38: All date fields must be entered in dd/mm/yyyy format. (Example: 22/03/2021)
B39: For percentage fields, only enter the value upto two decimal places. (percentage symbol is not required).
B40: Adding more rows : Schedules such as TDS, TCS, IT etc allow users to enter data in tabular format. Using the 'Add rows' button provided below these tables, the assessee can add as many rows as required. Note: Rows once added and not required (or empty rows) should not be deleted, even if they are blank. The utility does not generate JSON for rows left blank.
A42: v | B42: Validating the sheets :
B43: Validate the filled sheet using the 'Validate' button. Correct errors (if any) identified by the validate feature.
A45: vi | B45: Navigation :
B46: There are two navigation buttons in the utility : 'Next' and 'Previous'. The user can navigate between the sheets by either clicking on next or previous buttons as required.
A48: vii | B48: Calculate Tax :
B49: For the Tax to be computed the user must click on the 'Calculate Tax' button after filling the necessary details in applicable schedules.
A51: viii | B51: Generating the JSON :
B52: Verify all the information entered in the ITR Utility.
B53: Click on the 'Generate JSON' button. This will revalidate all the sheets, and direct the user to the confirmation page which shows the various schedules (and the no of rows per schedule) being generated.
B54: Once verified, the assessee can then click on 'Save JSON' option to generate and save the JSON.
B55: After successfully generating, a message will be displayed with the name and location of the saved JSON.
B56: This JSON can then be uploaded in the efiling portal.
A58: ix | B58: Printing :
B59: The print button in the utility provides an option to print after previewing.
A61: x | B61: Importing :
B62: a) Import Previous Version
B63: If the user has a filled ITR in a previous version, the user can import the data from the previous version to the current version. To import click on the 'Import Previous Version' button in the utility and browse the path of the previous version of filled ITR.
B64: b) Import Personal and Tax Details from Prefilled JSON
B65: The user can import the personal and Tax details into ITR1 excel utility by following the given steps.
B66: Step 1 : Login into the e-Filing portal using valid login credentials.
B67: Step 2 : Go to the 'Downloads' menu and click the 'Download Prefilled JSON' link. Select the 'Assessment Year' and download the Prefilled JSON in the desired location.
B68: Step 3 : Open the utility and click on the 'Import Personal/Tax Details from JSON' button.
B69: c) Import from JSON
B70: If the user has a generated JSON, the user can import the data from the generated JSON to utility. To import click on the 'Import Personal and Tax Details from Prefilled JSON' button in the utility and browse the path of the generated JSON.
A73: xi | B73: How to submit an ITR using Excel utility?
B74: 1.Download the ITR preparation utility for the assessment year under 'Downloads'.
B75: 2.Prepare the Income Tax return using the utility. Validate, Generate and Save the JSON in the desired path.
B76: 3. Login to e-Filing portal (https://incometaxindiaefiling.gov.in) and go to e-File --> Income Tax Return.
B77: 4.Select the appropriate ITR, Assessment Year and JSON (using browse button).
B78: 5.Upload Digital Signature Certificate(DSC) if applicable. Please ensure the DSC is registered with e-Filing.
B79: 6.Click on 'SUBMIT' button.
B80: 7.On successful submission, ITR-V/Acknowledgement would be displayed. Click on the link and download the ITR-V/Acknowledgement.
B81: Note: If ITR is uploaded with DSC, the Return Filing process is complete. The return will be further processed and the Assessee will be notified accordingly. Please check your emails on these notifications. OR The return is not uploaded with a DSC, an ITR-V Form should be printed, signed and submitted to CPC, Bangalore using Ordinary Post or Speed Post ONLY within 120 days from the date of e-Filing. On receipt of the ITR-V at CPC, the return will be further processed and the Assessee will be notified accordingly. Please check your emails on these notifications.
